Workbook

Sheet Notes
A1: MHL_MovingAverage.xlsm; Traders Tip spreadsheet created for the August 2016 Issue
A2: Coded beginning 2016-June-08 by Ronald McAllister (rpmac_xltt@sprynet.com)
A4: This Workbook demonstrates an EXCEL version of the ideas presented
A5: by Vitali Apirine in an article titled "The Middle-High-Low Moving Average"
A6: which originally appeared in the August 2016 issue of
A7: "Technical Analysis of Stocks and Commodities" magazine.
A9: CalculationsAndCharts construction Notes:
B11: VBA Code: Added logic to the CalculationsAndCharts tab "Worksheet_Change" event to alter the text of the appropriate Chart Clutter Control area Check Boxes
C12: when any of the User or MHL control values are changed. Just a bit more user friendly when the Check Box label accurately reflects
C13: the name shown in the chart legend for chart element the check box controls.
B15: Dates and symbols that may be used to approximate several of the charts from Mr. Apirine's article.
C16: Figure 2 | D16: 2014-10-16 | E16: 2014-12-23 | F16: ^GSPC
C17: Figure 3 | D17: 2006-03-24 | E17: 2007-04-19 | F17: ^GSPC
C18: Figure 4 | D18: 2012-03-09 | E18: 2013-02-12 | F18: ^GSPC
C19: Figure 5 | D19: 2001-10-15 | E19: 2003-09-19 | F19: ^RUT
C20: Figure 6 | D20: 2012-03-01 | E20: 2013-07-19 | F20: ^DJI
C21: Figure 7 | D21: 2009-02-05 | E21: 2010-11-09 | F21: ^RUT
A23: Development Notes:
C24: This workbook contains and uses VBA macros and may use VBA Class structures.
C25: Input Data
C26: The data in this workbook is sorted date descending (most recent date at the top). All formulas and
C27: VBA routines are built accordingly.
A29: Calculation and Chart Worksheet Usage Comments:
C30: In General, Items in Bolded BLUE are items you may freely change to play what-if games.
C31: Be sure to have a backup copy of the spreadsheet before you alter anything else.
A33: Features carried forward from the June 2016 version of my T-Tips Template
A34: Added a pair of buttons near cell F12 that will allow the user to step the charting window forward or backward one bar for each click.
A35: I find this to be a good way to test my understanding of the author's ideas as I step through the evolution of the price behavior and the indicators.
B37: First: In the "Help! I would like to plot data" area.
B38: Added button to resolve #NA problems by locating the bar in the input data with a slightly more recent date than what the user actually requested.
B39: I find this particularly useful when I have a general idea of where I want to be date wise. Now I can pick a set of dates "out of the air".
B40: If either (or both) of my date specifications fall between dates that are available in the price history,
B41: this button will resolve them to the dates of the nearest, slightly more recent input bars.
B42: I can then refine my data interval search as necessary from there.
B43: Really great when working with Weekly or Monthly studies!
C44: 2016Jun11 - added logic to the "I would like to chart.." button to detect #N/A values and terminate
C45: gracefully with a message instead of blowing up in the charting logic.
B47: Second: In the "Price Chart Windowing Controls" area. (A11 and A12)
B48: When retrieving data for a new symbol or when changing from daily to weekly or monthly data, there was the possibility that the
B49: residual settings in A11 and A12 would fall outside of the number bars available on the input data tab after the new data retrieval.
B50: In certain combinations, this could create a serious error in the chart sizing logic and crash the spreadsheet.
B51: I have taken this opportunity to update the validity checking logic used in the chart sizing macros
B52: to adjust these values as necessary so that they fall within the boundaries of the newly retrieved input data.
A53: Features carried forward from the October 2015 Traders Tips Template
B54: Improved automation: changes to any of the following will automatically initiate calculations appropriate to reflect a change.
C55: Changing either of cells A11 (pan) or A12 (zoom) will automatically initiate the same chart sizing macros that the manual
C56: "Set Chart" button uses.
B58: Added fail-over capability to attempt to retrieve company name and basic last trade info via screen scraper logic
C59: using the Yahoo stock Summary page. Until now, the way I have been doing this reports that ^DJI is Not Found!
C60: when there is history available. Will still report correctly for a truly Not Found Symbol
C61: Minor drawbacks to the screen scrape of the stock summary page include:
C62: Only date on the page is the date we request the page. I will use this date for now as the last trade date…
C63: But the user should be aware that this is not necessarily the correct date if you are making the inquiry on
C64: a weekend or market holiday.
C65: This is not a big issue as the last real trade will already be accounted for in the history download by about 6 pm on the real date of the trade.
C66: Note: This failover mechanism is only used if what I have been doing all along reports a "not found" for the requested symbol.

Sheet InputPriceData
A1: Russell 2000 (^RUT) -WCB (Daily)
A2: Last Trade: | B2: 2016-06-10 | C2: 1178.382446 | D2: 1178.382446 | E2: 1161.273438 | F2: 1163.930664 | G2: 0 | H2: 4:30pm | I2: -17.27124 | J2: =IFERROR(OFFSET(J2,0,-1,1,1)/(OFFSET(J2,0,-4,1,1)-OFFSET(J2,0,-1,1,1)),"") -> -0.0146217509 | L2: Notes: | M2: Online Yahoo Finance Query Interfaces used in the VBA code to obtain this data: | IJ2: 241.79
A3: Request Online Yahoo History for: | M3: A.) Price History Only: "http://ichart.finance.yahoo.com/table.csv"
A4: Symbol | B4: ^RUT | D4: Valid | I4: =OFFSET(I4,-2,0,1,1) -> -17.27124 | M4: B.) Price History w/ imbedded divs n splits: "http://ichart.finance.yahoo.com/x"
A5: From | B5: 1977-01-07 | D5: Data | AF5: Trailing 12 Div return (Cur Close)
A6: To | B6: =TODAY() -> 2016-06-12 | D6: Types | E6: =VLOOKUP(B7,D7:E10,2,FALSE) -> d | M6: C.) Fundamentals (in this case name and exchange):
A7: Data Type | B7: Daily | D7: Daily | E7: d | M7: "http://download.finance.yahoo.com/d/quotes.csv?"
D8: Weekly | E8: w | M8: For some how-to doc regarding this particular interface, including a list of the
A9: Available Data | D9: Monthly | E9: m | M9: specific fields you can include in a request to this interface see:
A10: Bar Count: | B10: =COUNTA(B15:B70000)-1 -> 7248 | M10: http://www.gummy-stuff.org/Yahoo-data.htm | AF10: =OFFSET(AC15,1,0,1,1)/OFFSET(N15,1,0,1,1) -> 0
A11: From: | B11: =IF(B10<=0,"",OFFSET(B15,B10,IF(HistReqDataType="v",1,0),1,1)) -> 1987-09-10 | M11: This web site includes a downloadable working EXCEL/VBA example | W11: Trailing 12 Month Dividend Returns
A12: To: | B12: =IF(B10<=0,"",IF(HistReqDataType="v",OFFSET(B15,2,1,1,1),OFFSET(B15,1,0,1,1))) -> 2016-06-10 | M12: of the capabilities of this interface. | W12: Raw Close price on Dividend date | X12: Div Year and Month | Y12: Looking for year ago Div Year and Month | Z12: Year ago Div Date we found | AA12: row offset to year ago div Date | AB12: Same month flag | AC12: Trailing 12 Div Total | AD12: Trailing 12 Div return
Q13: Split History | S13: =COUNT(Q16:Q3919) -> 0 | T13: Running | U13: Dividend History
B14: Raw Data Values | H14: Adjusted | I14: Price Adjust | J14: Vol Adjust | K14: Adjusted Values | P14: Last | Q14: Effective | R14: Shares | T14: Vol Adjust | V14: =COUNT(U16:U3919) -> 0
A15: RelRow | B15: Date | C15: Open | D15: High | E15: Low | F15: Close | G15: Volume | H15: Close | I15: Factor | J15: Factor | K15: Open | L15: High | M15: Low | N15: Close | O15: Volume | P15: Trade | Q15: 42533 | R15: New | S15: Old | T15: 1 | U15: Date | V15: $ / Share
A16: 1 | B16: 2016-06-10 | C16: 1178.380005 | D16: 1178.380005 | E16: 1161.27002 | F16: 1163.930054 | G16: 35150100 | H16: 1163.930054 | I16: =H16/F16 -> 1 | J16: =INDEX(OFFSET($T$15,0,0,$S$13+1,1),MATCH(B16,OFFSET($Q$15,0,0,$S$13+1,1),-1)) -> 1 | K16: =ROUND($I16*C16,2) -> 1178.38 | L16: =ROUND($I16*D16,2) -> 1178.38 | M16: 1161.27 | N16: 1163.93 | O16: =G16*J16 -> 35150100
A17: 2 | B17: 2016-06-09 | C17: 1188.22998 | D17: 1188.22998 | E17: 1177.859985 | F17: 1181.199951 | G17: 32903200 | H17: 1181.199951 | I17: =H17/F17 -> 1 | J17: =INDEX(OFFSET($T$15,0,0,$S$13+1,1),MATCH(B17,OFFSET($Q$15,0,0,$S$13+1,1),-1)) -> 1 | K17: =ROUND($I17*C17,2) -> 1188.23 | L17: =ROUND($I17*D17,2) -> 1188.23 | M17: =ROUND($I17*E17,2) -> 1177.86 | N17: =ROUND($I17*F17,2) -> 1181.2 | O17: =G17*J17 -> 32903200
A18: 3 | B18: 2016-06-08 | C18: 1180.199951 | D18: 1190.170044 | E18: 1180.199951 | F18: 1188.949951 | G18: 35620600 | H18: 1188.949951 | I18: 1 | J18: 1 | K18: 1180.2 | L18: 1190.17 | M18: 1180.2 | N18: 1188.95 | O18: 35620600
A19: 4 | B19: 2016-06-07 | C19: 1177.189941 | D19: 1183.75 | E19: 1175.050049 | F19: 1179.969971 | G19: 35347300 | H19: 1179.969971 | I19: 1 | J19: 1 | K19: 1177.19 | L19: 1183.75 | M19: 1175.05 | N19: 1179.97 | O19: 35347300
A20: 5 | B20: 2016-06-06 | C20: 1164.26001 | D20: 1179.339966 | E20: 1163.680054 | F20: 1176.869995 | G20: 34420200 | H20: 1176.869995 | I20: 1 | J20: 1 | K20: 1164.26 | L20: 1179.34 | M20: 1163.68 | N20: 1176.87 | O20: 34420200
A21: 6 | B21: 2016-06-03 | C21: 1170.390015 | D21: 1170.390015 | E21: 1155.839966 | F21: 1164.130005 | G21: 36277800 | H21: 1164.130005 | I21: 1 | J21: 1 | K21: 1170.39 | L21: 1170.39 | M21: 1155.84 | N21: 1164.13 | O21: 36277800
A22: 7 | B22: 2016-06-02 | C22: 1162.73999 | D22: 1170.77002 | E22: 1159.359985 | F22: 1170.579956 | G22: 36327200 | H22: 1170.579956 | I22: 1 | J22: 1 | K22: 1162.74 | L22: 1170.77 | M22: 1159.36 | N22: 1170.58 | O22: 36327200
A23: 8 | B23: 2016-06-01 | C23: 1154.51001 | D23: 1163.430054 | E23: 1148.599976 | F23: 1163.040039 | G23: 35251700 | H23: 1163.040039 | I23: 1 | J23: 1 | K23: 1154.51 | L23: 1163.43 | M23: 1148.6 | N23: 1163.04 | O23: 35251700
A24: 9 | B24: 2016-05-31 | C24: 1150.599976 | D24: 1158.969971 | E24: 1150.339966 | F24: 1154.790039 | G24: 45144100 | H24: 1154.790039 | I24: 1 | J24: 1 | K24: 1150.6 | L24: 1158.97 | M24: 1150.34 | N24: 1154.79 | O24: 45144100
A25: 10 | B25: 2016-05-27 | C25: 1139.97998 | D25: 1150.449951 | E25: 1139.97998 | F25: 1150.449951 | G25: 30791500 | H25: 1150.449951 | I25: 1 | J25: 1 | K25: 1139.98 | L25: 1150.45 | M25: 1139.98 | N25: 1150.45 | O25: 30791500
A26: 11 | B26: 2016-05-26 | C26: 1141.099976 | D26: 1143.189941 | E26: 1137.589966 | F26: 1139.75 | G26: 32309900 | H26: 1139.75 | I26: 1 | J26: 1 | K26: 1141.1 | L26: 1143.19 | M26: 1137.59 | N26: 1139.75 | O26: 32309900
A27: 12 | B27: 2016-05-25 | C27: 1136.369995 | D27: 1142.849976 | E27: 1136.369995 | F27: 1141.02002 | G27: 38591600 | H27: 1141.02002 | I27: 1 | J27: 1 | K27: 1136.37 | L27: 1142.85 | M27: 1136.37 | N27: 1141.02 | O27: 38591600
A28: 13 | B28: 2016-05-24 | C28: 1112.51001 | D28: 1136.290039 | E28: 1112.51001 | F28: 1135.310059 | G28: 36273400 | H28: 1135.310059 | I28: 1 | J28: 1 | K28: 1112.51 | L28: 1136.29 | M28: 1112.51 | N28: 1135.31 | O28: 36273400
A29: 14 | B29: 2016-05-23 | C29: 1112.469971 | D29: 1117.319946 | E29: 1110.869995 | F29: 1111.369995 | G29: 30554800 | H29: 1111.369995 | I29: 1 | J29: 1 | K29: 1112.47 | L29: 1117.32 | M29: 1110.87 | N29: 1111.37 | O29: 30554800
A30: 15 | B30: 2016-05-20 | C30: 1095.160034 | D30: 1112.319946 | E30: 1095.160034 | F30: 1112.280029 | G30: 35076500 | H30: 1112.280029 | I30: 1 | J30: 1 | K30: 1095.16 | L30: 1112.32 | M30: 1095.16 | N30: 1112.28 | O30: 35076500
A31: 16 | B31: 2016-05-19 | C31: 1101.689941 | D31: 1103.719971 | E31: 1085.939941 | F31: 1094.76001 | G31: 38467700 | H31: 1094.76001 | I31: 1 | J31: 1 | K31: 1101.69 | L31: 1103.72 | M31: 1085.94 | N31: 1094.76 | O31: 38467700
A32: 17 | B32: 2016-05-18 | C32: 1097.189941 | D32: 1110.72998 | E32: 1093.949951 | F32: 1102.949951 | G32: 41013200 | H32: 1102.949951 | I32: 1 | J32: 1 | K32: 1097.19 | L32: 1110.73 | M32: 1093.95 | N32: 1102.95 | O32: 41013200
A33: 18 | B33: 2016-05-17 | C33: 1115.410034 | D33: 1118.339966 | E33: 1094.060059 | F33: 1097.680054 | G33: 41089600 | H33: 1097.680054 | I33: 1 | J33: 1 | K33: 1115.41 | L33: 1118.34 | M33: 1094.06 | N33: 1097.68 | O33: 41089600
A34: 19 | B34: 2016-05-16 | C34: 1103.22998 | D34: 1119.680054 | E34: 1103.22998 | F34: 1116.209961 | G34: 35013600 | H34: 1116.209961 | I34: 1 | J34: 1 | K34: 1103.23 | L34: 1119.68 | M34: 1103.23 | N34: 1116.21 | O34: 35013600
A35: 20 | B35: 2016-05-13 | C35: 1108.369995 | D35: 1112.959961 | E35: 1099.439941 | F35: 1102.439941 | G35: 35798800 | H35: 1102.439941 | I35: 1 | J35: 1 | K35: 1108.37 | L35: 1112.96 | M35: 1099.44 | N35: 1102.44 | O35: 35798800
A36: 21 | B36: 2016-05-12 | C36: 1114.869995 | D36: 1119.890015 | E36: 1101.26001 | F36: 1108.599976 | G36: 37823900 | H36: 1108.599976 | I36: 1 | J36: 1 | K36: 1114.87 | L36: 1119.89 | M36: 1101.26 | N36: 1108.6 | O36: 37823900
A37: 22 | B37: 2016-05-11 | C37: 1128.469971 | D37: 1128.469971 | E37: 1114.609985 | F37: 1114.73999 | G37: 38219800 | H37: 1114.73999 | I37: 1 | J37: 1 | K37: 1128.47 | L37: 1128.47 | M37: 1114.61 | N37: 1114.74 | O37: 38219800
A38: 23 | B38: 2016-05-10 | C38: 1118.73999 | D38: 1129.040039 | E38: 1117.939941 | F38: 1128.829956 | G38: 36002000 | H38: 1128.829956 | I38: 1 | J38: 1 | K38: 1118.74 | L38: 1129.04 | M38: 1117.94 | N38: 1128.83 | O38: 36002000
A39: 24 | B39: 2016-05-09 | C39: 1114.719971 | D39: 1123.650024 | E39: 1113.079956 | F39: 1118.25 | G39: 37886200 | H39: 1118.25 | I39: 1 | J39: 1 | K39: 1114.72 | L39: 1123.65 | M39: 1113.08 | N39: 1118.25 | O39: 37886200
A40: 25 | B40: 2016-05-06 | C40: 1107.800049 | D40: 1114.77002 | E40: 1101.569946 | F40: 1114.719971 | G40: 37963500 | H40: 1114.719971 | I40: 1 | J40: 1 | K40: 1107.8 | L40: 1114.77 | M40: 1101.57 | N40: 1114.72 | O40: 37963500
A41: 26 | B41: 2016-05-05 | C41: 1114.349976 | D41: 1118.380005 | E41: 1107.640015 | F41: 1107.949951 | G41: 40085300 | H41: 1107.949951 | I41: 1 | J41: 1 | K41: 1114.35 | L41: 1118.38 | M41: 1107.64 | N41: 1107.95 | O41: 40085300
A42: 27 | B42: 2016-05-04 | C42: 1121.160034 | D42: 1123.689941 | E42: 1110.390015 | F42: 1113.130005 | G42: 40585600 | H42: 1113.130005 | I42: 1 | J42: 1 | K42: 1121.16 | L42: 1123.69 | M42: 1110.39 | N42: 1113.13 | O42: 40585600
A43: 28 | B43: 2016-05-03 | C43: 1138.869995 | D43: 1138.869995 | E43: 1116.530029 | F43: 1121.76001 | G43: 41733900 | H43: 1121.76001 | I43: 1 | J43: 1 | K43: 1138.87 | L43: 1138.87 | M43: 1116.53 | N43: 1121.76 | O43: 41733900
A44: 29 | B44: 2016-05-02 | C44: 1131.209961 | D44: 1140.920044 | E44: 1129.23999 | F44: 1140.920044 | G44: 38411100 | H44: 1140.920044 | I44: 1 | J44: 1 | K44: 1131.21 | L44: 1140.92 | M44: 1129.24 | N44: 1140.92 | O44: 38411100
A45: 30 | B45: 2016-04-29 | C45: 1140.109985 | D45: 1140.109985 | E45: 1124.26001 | F45: 1130.849976 | G45: 47047200 | H45: 1130.849976 | I45: 1 | J45: 1 | K45: 1140.11 | L45: 1140.11 | M45: 1124.26 | N45: 1130.85 | O45: 47047200
A46: 31 | B46: 2016-04-28 | C46: 1153.109985 | D46: 1155.550049 | E46: 1138.699951 | F46: 1140.400024 | G46: 43098400 | H46: 1140.400024 | I46: 1 | J46: 1 | K46: 1153.11 | L46: 1155.55 | M46: 1138.7 | N46: 1140.4 | O46: 43098400
A47: 32 | B47: 2016-04-27 | C47: 1150.920044 | D47: 1156.069946 | E47: 1145.849976 | F47: 1154.150024 | G47: 41001100 | H47: 1154.150024 | I47: 1 | J47: 1 | K47: 1150.92 | L47: 1156.07 | M47: 1145.85 | N47: 1154.15 | O47: 41001100
A48: 33 | B48: 2016-04-26 | C48: 1138.699951 | D48: 1150.819946 | E48: 1138.699951 | F48: 1150.72998 | G48: 35571900 | H48: 1150.72998 | I48: 1 | J48: 1 | K48: 1138.7 | L48: 1150.82 | M48: 1138.7 | N48: 1150.73 | O48: 35571900
A49: 34 | B49: 2016-04-25 | C49: 1146.26001 | D49: 1146.26001 | E49: 1134.849976 | F49: 1138.099976 | G49: 33197400 | H49: 1138.099976 | I49: 1 | J49: 1 | K49: 1146.26 | L49: 1146.26 | M49: 1134.85 | N49: 1138.1 | O49: 33197400
A50: 35 | B50: 2016-04-22 | C50: 1135.660034 | D50: 1147.410034 | E50: 1135.51001 | F50: 1146.689941 | G50: 37905800 | H50: 1146.689941 | I50: 1 | J50: 1 | K50: 1135.66 | L50: 1147.41 | M50: 1135.51 | N50: 1146.69 | O50: 37905800
A51: 36 | B51: 2016-04-21 | C51: 1142.369995 | D51: 1144.540039 | E51: 1133.439941 | F51: 1135.77002 | G51: 41752900 | H51: 1135.77002 | I51: 1 | J51: 1 | K51: 1142.37 | L51: 1144.54 | M51: 1133.44 | N51: 1135.77 | O51: 41752900
A52: 37 | B52: 2016-04-20 | C52: 1140.140015 | D52: 1147.719971 | E52: 1137.319946 | F52: 1142.290039 | G52: 41848800 | H52: 1142.290039 | I52: 1 | J52: 1 | K52: 1140.14 | L52: 1147.72 | M52: 1137.32 | N52: 1142.29 | O52: 41848800
A53: 38 | B53: 2016-04-19 | C53: 1139.829956 | D53: 1146.5 | E53: 1135.849976 | F53: 1140.22998 | G53: 38968300 | H53: 1140.22998 | I53: 1 | J53: 1 | K53: 1139.83 | L53: 1146.5 | M53: 1135.85 | N53: 1140.23 | O53: 38968300
A54: 39 | B54: 2016-04-18 | C54: 1129.719971 | D54: 1139.47998 | E54: 1125.160034 | F54: 1139.280029 | G54: 33168800 | H54: 1139.280029 | I54: 1 | J54: 1 | K54: 1129.72 | L54: 1139.48 | M54: 1125.16 | N54: 1139.28 | O54: 33168800
A55: 40 | B55: 2016-04-15 | C55: 1128.079956 | D55: 1132.140015 | E55: 1125.060059 | F55: 1130.920044 | G55: 37014500 | H55: 1130.920044 | I55: 1 | J55: 1 | K55: 1128.08 | L55: 1132.14 | M55: 1125.06 | N55: 1130.92 | O55: 37014500
A56: 41 | B56: 2016-04-14 | C56: 1130.079956 | D56: 1132.089966 | E56: 1125.130005 | F56: 1128.589966 | G56: 37658700 | H56: 1128.589966 | I56: 1 | J56: 1 | K56: 1130.08 | L56: 1132.09 | M56: 1125.13 | N56: 1128.59 | O56: 37658700
A57: 42 | B57: 2016-04-13 | C57: 1106.47998 | D57: 1129.930054 | E57: 1106.47998 | F57: 1129.930054 | G57: 41918300 | H57: 1129.930054 | I57: 1 | J57: 1 | K57: 1106.48 | L57: 1129.93 | M57: 1106.48 | N57: 1129.93 | O57: 41918300
A58: 43 | B58: 2016-04-12 | C58: 1094.459961 | D58: 1107.359985 | E58: 1091.650024 | F58: 1105.709961 | G58: 42397400 | H58: 1105.709961 | I58: 1 | J58: 1 | K58: 1094.46 | L58: 1107.36 | M58: 1091.65 | N58: 1105.71 | O58: 42397400
A59: 44 | B59: 2016-04-11 | C59: 1097.959961 | D59: 1110.430054 | E59: 1094.310059 | F59: 1094.339966 | G59: 35678400 | H59: 1094.339966 | I59: 1 | J59: 1 | K59: 1097.96 | L59: 1110.43 | M59: 1094.31 | N59: 1094.34 | O59: 35678400
A60: 45 | B60: 2016-04-08 | C60: 1093.859985 | D60: 1106.050049 | E60: 1093.77002 | F60: 1097.310059 | G60: 33595300 | H60: 1097.310059 | I60: 1 | J60: 1 | K60: 1093.86 | L60: 1106.05 | M60: 1093.77 | N60: 1097.31 | O60: 33595300
A61: 46 | B61: 2016-04-07 | C61: 1107.890015 | D61: 1107.890015 | E61: 1088.560059 | F61: 1092.790039 | G61: 38012500 | H61: 1092.790039 | I61: 1 | J61: 1 | K61: 1107.89 | L61: 1107.89 | M61: 1088.56 | N61: 1092.79 | O61: 38012500
A62: 47 | B62: 2016-04-06 | C62: 1095.98999 | D62: 1109.02002 | E62: 1094.23999 | F62: 1108.810059 | G62: 37508000 | H62: 1108.810059 | I62: 1 | J62: 1 | K62: 1095.99 | L62: 1109.02 | M62: 1094.24 | N62: 1108.81 | O62: 37508000
A63: 48 | B63: 2016-04-05 | C63: 1106.219971 | D63: 1106.219971 | E63: 1095.25 | F63: 1095.849976 | G63: 41549200 | H63: 1095.849976 | I63: 1 | J63: 1 | K63: 1106.22 | L63: 1106.22 | M63: 1095.25 | N63: 1095.85 | O63: 41549200
A64: 49 | B64: 2016-04-04 | C64: 1117.689941 | D64: 1119.410034 | E64: 1108.170044 | F64: 1108.540039 | G64: 34857100 | H64: 1108.540039 | I64: 1 | J64: 1 | K64: 1117.69 | L64: 1119.41 | M64: 1108.17 | N64: 1108.54 | O64: 34857100
A65: 50 | B65: 2016-04-01 | C65: 1112.900024 | D65: 1118.390015 | E65: 1102.119995 | F65: 1117.680054 | G65: 37499900 | H65: 1117.680054 | I65: 1 | J65: 1 | K65: 1112.9 | L65: 1118.39 | M65: 1102.12 | N65: 1117.68 | O65: 37499900
A66: 51 | B66: 2016-03-31 | C66: 1110.430054 | D66: 1117.790039 | E66: 1109.530029 | F66: 1114.030029 | G66: 37152800 | H66: 1114.030029 | I66: 1 | J66: 1 | K66: 1110.43 | L66: 1117.79 | M66: 1109.53 | N66: 1114.03 | O66: 37152800
A67: 52 | B67: 2016-03-30 | C67: 1110.189941 | D67: 1117.349976 | E67: 1107.72998 | F67: 1110.439941 | G67: 35903100 | H67: 1110.439941 | I67: 1 | J67: 1 | K67: 1110.19 | L67: 1117.35 | M67: 1107.73 | N67: 1110.44 | O67: 35903100
A68: 53 | B68: 2016-03-29 | C68: 1079.819946 | D68: 1109.209961 | E68: 1075.430054 | F68: 1109.079956 | G68: 38223300 | H68: 1109.079956 | I68: 1 | J68: 1 | K68: 1079.82 | L68: 1109.21 | M68: 1075.43 | N68: 1109.08 | O68: 38223300
A69: 54 | B69: 2016-03-28 | C69: 1079.939941 | D69: 1084.469971 | E69: 1073.459961 | F69: 1080.22998 | G69: 28090900 | H69: 1080.22998 | I69: 1 | J69: 1 | K69: 1079.94 | L69: 1084.47 | M69: 1073.46 | N69: 1080.23 | O69: 28090900
A70: 55 | B70: 2016-03-24 | C70: 1074.699951 | D70: 1079.540039 | E70: 1065.619995 | F70: 1079.540039 | G70: 34077200 | H70: 1079.540039 | I70: 1 | J70: 1 | K70: 1074.7 | L70: 1079.54 | M70: 1065.62 | N70: 1079.54 | O70: 34077200
A71: 56 | B71: 2016-03-23 | C71: 1097.050049 | D71: 1097.050049 | E71: 1075.699951 | F71: 1075.699951 | G71: 36395100 | H71: 1075.699951 | I71: 1 | J71: 1 | K71: 1097.05 | L71: 1097.05 | M71: 1075.7 | N71: 1075.7 | O71: 36395100
A72: 57 | B72: 2016-03-22 | C72: 1096.680054 | D72: 1100.76001 | E72: 1090 | F72: 1097.339966 | G72: 34184600 | H72: 1097.339966 | I72: 1 | J72: 1 | K72: 1096.68 | L72: 1100.76 | M72: 1090 | N72: 1097.34 | O72: 34184600
A73: 58 | B73: 2016-03-21 | C73: 1101.459961 | D73: 1103.630005 | E73: 1096.160034 | F73: 1098.579956 | G73: 33766000 | H73: 1098.579956 | I73: 1 | J73: 1 | K73: 1101.46 | L73: 1103.63 | M73: 1096.16 | N73: 1098.58 | O73: 33766000
A74: 59 | B74: 2016-03-18 | C74: 1092.01001 | D74: 1102.97998 | E74: 1092.01001 | F74: 1101.670044 | G74: 65031400 | H74: 1101.670044 | I74: 1 | J74: 1 | K74: 1092.01 | L74: 1102.98 | M74: 1092.01 | N74: 1101.67 | O74: 65031400
A75: 60 | B75: 2016-03-17 | C75: 1074.400024 | D75: 1094.689941 | E75: 1069.890015 | F75: 1091.25 | G75: 45304800 | H75: 1091.25 | I75: 1 | J75: 1 | K75: 1074.4 | L75: 1094.69 | M75: 1069.89 | N75: 1091.25 | O75: 45304800
A76: 61 | B76: 2016-03-16 | C76: 1066.079956 | D76: 1076.51001 | E76: 1063.660034 | F76: 1074.51001 | G76: 40570200 | H76: 1074.51001 | I76: 1 | J76: 1 | K76: 1066.08 | L76: 1076.51 | M76: 1063.66 | N76: 1074.51 | O76: 40570200
A77: 62 | B77: 2016-03-15 | C77: 1082.680054 | D77: 1082.680054 | E77: 1065.51001 | F77: 1066.670044 | G77: 35602800 | H77: 1066.670044 | I77: 1 | J77: 1 | K77: 1082.68 | L77: 1082.68 | M77: 1065.51 | N77: 1066.67 | O77: 35602800
A78: 63 | B78: 2016-03-14 | C78: 1086.969971 | D78: 1087.459961 | E78: 1079.900024 | F78: 1084.25 | G78: 34878500 | H78: 1084.25 | I78: 1 | J78: 1 | K78: 1086.97 | L78: 1087.46 | M78: 1079.9 | N78: 1084.25 | O78: 34878500
A79: 64 | B79: 2016-03-11 | C79: 1066.109985 | D79: 1087.869995 | E79: 1066.109985 | F79: 1087.560059 | G79: 40786200 | H79: 1087.560059 | I79: 1 | J79: 1 | K79: 1066.11 | L79: 1087.87 | M79: 1066.11 | N79: 1087.56 | O79: 40786200
A80: 65 | B80: 2016-03-10 | C80: 1073.410034 | D80: 1078.97998 | E80: 1054.560059 | F80: 1063.98999 | G80: 43767900 | H80: 1063.98999 | I80: 1 | J80: 1 | K80: 1073.41 | L80: 1078.98 | M80: 1054.56 | N80: 1063.99 | O80: 43767900
A81: 66 | B81: 2016-03-09 | C81: 1068.449951 | D81: 1074.199951 | E81: 1067.130005 | F81: 1072.77002 | G81: 40381200 | H81: 1072.77002 | I81: =H81/F81 -> 1 | J81: =INDEX(OFFSET($T$15,0,0,$S$13+1,1),MATCH(B81,OFFSET($Q$15,0,0,$S$13+1,1),-1)) -> 1 | K81: =ROUND($I81*C81,2) -> 1068.45 | L81: =ROUND($I81*D81,2) -> 1074.2 | M81: =ROUND($I81*E81,2) -> 1067.13 | N81: =ROUND($I81*F81,2) -> 1072.77 | O81: =G81*J81 -> 40381200
A82: 67 | B82: 2016-03-08 | C82: 1092.709961 | D82: 1092.709961 | E82: 1067.23999 | F82: 1067.880005 | G82: 46416500 | H82: 1067.880005 | I82: 1 | J82: 1 | K82: 1092.71 | L82: 1092.71 | M82: 1067.24 | N82: 1067.88 | O82: 46416500
A83: 68 | B83: 2016-03-07 | C83: 1081.280029 | D83: 1094.5 | E83: 1077.939941 | F83: 1094.150024 | G83: 49681800 | H83: 1094.150024 | I83: 1 | J83: 1 | K83: 1081.28 | L83: 1094.5 | M83: 1077.94 | N83: 1094.15 | O83: 49681800
A84: 69 | B84: 2016-03-04 | C84: 1076.339966 | D84: 1088.23999 | E84: 1073.819946 | F84: 1081.930054 | G84: 60499300 | H84: 1081.930054 | I84: 1 | J84: 1 | K84: 1076.34 | L84: 1088.24 | M84: 1073.82 | N84: 1081.93 | O84: 60499300
A85: 70 | B85: 2016-03-03 | C85: 1065.640015 | D85: 1076.089966 | E85: 1064.599976 | F85: 1076.050049 | G85: 50817000 | H85: 1076.050049 | I85: 1 | J85: 1 | K85: 1065.64 | L85: 1076.09 | M85: 1064.6 | N85: 1076.05 | O85: 50817000
A86: 71 | B86: 2016-03-02 | C86: 1054.23999 | D86: 1065.680054 | E86: 1052.150024 | F86: 1065.670044 | G86: 46666100 | H86: 1065.670044 | I86: 1 | J86: 1 | K86: 1054.24 | L86: 1065.68 | M86: 1052.15 | N86: 1065.67 | O86: 46666100
A87: 72 | B87: 2016-03-01 | C87: 1035.52002 | D87: 1054.48999 | E87: 1035.52002 | F87: 1054.48999 | G87: 48197500 | H87: 1054.48999 | I87: 1 | J87: 1 | K87: 1035.52 | L87: 1054.49 | M87: 1035.52 | N87: 1054.49 | O87: 48197500
A88: 73 | B88: 2016-02-29 | C88: 1037.209961 | D88: 1044.910034 | E88: 1033.670044 | F88: 1033.900024 | G88: 0 | H88: 1033.900024 | I88: 1 | J88: 1 | K88: 1037.21 | L88: 1044.91 | M88: 1033.67 | N88: 1033.9 | O88: 0
A89: 74 | B89: 2016-02-26 | C89: 1031.589966 | D89: 1039.709961 | E89: 1031.589966 | F89: 1037.180054 | G89: 43485100 | H89: 1037.180054 | I89: 1 | J89: 1 | K89: 1031.59 | L89: 1039.71 | M89: 1031.59 | N89: 1037.18 | O89: 43485100
A90: 75 | B90: 2016-02-25 | C90: 1022.960022 | D90: 1031.579956 | E90: 1020.460022 | F90: 1031.579956 | G90: 41182100 | H90: 1031.579956 | I90: 1 | J90: 1 | K90: 1022.96 | L90: 1031.58 | M90: 1020.46 | N90: 1031.58 | O90: 41182100
A91: 76 | B91: 2016-02-24 | C91: 1010.099976 | D91: 1023.059998 | E91: 996.700012 | F91: 1022.080017 | G91: 43172500 | H91: 1022.080017 | I91: 1 | J91: 1 | K91: 1010.1 | L91: 1023.06 | M91: 996.7 | N91: 1022.08 | O91: 43172500
A92: 77 | B92: 2016-02-23 | C92: 1021.25 | D92: 1021.25 | E92: 1012.150024 | F92: 1012.150024 | G92: 38906500 | H92: 1012.150024 | I92: 1 | J92: 1 | K92: 1021.25 | L92: 1021.25 | M92: 1012.15 | N92: 1012.15 | O92: 38906500
A93: 78 | B93: 2016-02-22 | C93: 1010.390015 | D93: 1025.280029 | E93: 1010.390015 | F93: 1021.73999 | G93: 40547100 | H93: 1021.73999 | I93: 1 | J93: 1 | K93: 1010.39 | L93: 1025.28 | M93: 1010.39 | N93: 1021.74 | O93: 40547100
A94: 79 | B94: 2016-02-19 | C94: 1003.719971 | D94: 1010.719971 | E94: 998.27002 | F94: 1010.01001 | G94: 41428500 | H94: 1010.01001 | I94: 1 | J94: 1 | K94: 1003.72 | L94: 1010.72 | M94: 998.27 | N94: 1010.01 | O94: 41428500
A95: 80 | B95: 2016-02-18 | C95: 1011.97998 | D95: 1013.599976 | E95: 1002.409973 | F95: 1004.710022 | G95: 44364900 | H95: 1004.710022 | I95: 1 | J95: 1 | K95: 1011.98 | L95: 1013.6 | M95: 1002.41 | N95: 1004.71 | O95: 44364900
A96: 81 | B96: 2016-02-17 | C96: 997.830017 | D96: 1016.280029 | E96: 997.830017 | F96: 1011.130005 | G96: 50115400 | H96: 1011.130005 | I96: 1 | J96: 1 | K96: 997.83 | L96: 1016.28 | M96: 997.83 | N96: 1011.13 | O96: 50115400
A97: 82 | B97: 2016-02-16 | C97: 972.450012 | D97: 996.390015 | E97: 972.450012 | F97: 995.799988 | G97: 45706700 | H97: 995.799988 | I97: 1 | J97: 1 | K97: 972.45 | L97: 996.39 | M97: 972.45 | N97: 995.8 | O97: 45706700
A98: 83 | B98: 2016-02-12 | C98: 955.340027 | D98: 972.869995 | E98: 955.340027 | F98: 971.98999 | G98: 46969200 | H98: 971.98999 | I98: 1 | J98: 1 | K98: 955.34 | L98: 972.87 | M98: 955.34 | N98: 971.99 | O98: 46969200
A99: 84 | B99: 2016-02-11 | C99: 958.890015 | D99: 958.890015 | E99: 943.099976 | F99: 953.719971 | G99: 55008000 | H99: 953.719971 | I99: 1 | J99: 1 | K99: 958.89 | L99: 958.89 | M99: 943.1 | N99: 953.72 | O99: 55008000
A100: 85 | B100: 2016-02-10 | C100: 965.52002 | D100: 983.450012 | E100: 963.320007 | F100: 963.47998 | G100: 44711700 | H100: 963.47998 | I100: 1 | J100: 1 | K100: 965.52 | L100: 983.45 | M100: 963.32 | N100: 963.48 | O100: 44711700
A101: 86 | B101: 2016-02-09 | C101: 967.849976 | D101: 975.140015 | E101: 957.090027 | F101: 963.900024 | G101: 51321400 | H101: 963.900024 | I101: 1 | J101: 1 | K101: 967.85 | L101: 975.14 | M101: 957.09 | N101: 963.9 | O101: 51321400
A102: 87 | B102: 2016-02-08 | C102: 982.150024 | D102: 982.150024 | E102: 955.710022 | F102: 969.340027 | G102: 56364600 | H102: 969.340027 | I102: 1 | J102: 1 | K102: 982.15 | L102: 982.15 | M102: 955.71 | N102: 969.34 | O102: 56364600
A103: 88 | B103: 2016-02-05 | C103: 1014.309998 | D103: 1014.309998 | E103: 985.619995 | F103: 985.619995 | G103: 49299400 | H103: 985.619995 | I103: 1 | J103: 1 | K103: 1014.31 | L103: 1014.31 | M103: 985.62 | N103: 985.62 | O103: 49299400
A104: 89 | B104: 2016-02-04 | C104: 1009.929993 | D104: 1025.109985 | E104: 1008.590027 | F104: 1014.789978 | G104: 51933200 | H104: 1014.789978 | I104: 1 | J104: 1 | K104: 1009.93 | L104: 1025.11 | M104: 1008.59 | N104: 1014.79 | O104: 51933200
A105: 90 | B105: 2016-02-03 | C105: 1009.5 | D105: 1016.919983 | E105: 989.25 | F105: 1010.299988 | G105: 51729500 | H105: 1010.299988 | I105: 1 | J105: 1 | K105: 1009.5 | L105: 1016.92 | M105: 989.25 | N105: 1010.3 | O105: 51729500
A106: 91 | B106: 2016-02-02 | C106: 1030.560059 | D106: 1030.560059 | E106: 1005.400024 | F106: 1008.840027 | G106: 44631900 | H106: 1008.840027 | I106: 1 | J106: 1 | K106: 1030.56 | L106: 1030.56 | M106: 1005.4 | N106: 1008.84 | O106: 44631900
A107: 92 | B107: 2016-02-01 | C107: 1033.530029 | D107: 1037.27002 | E107: 1020.590027 | F107: 1032.390015 | G107: 43225300 | H107: 1032.390015 | I107: 1 | J107: 1 | K107: 1033.53 | L107: 1037.27 | M107: 1020.59 | N107: 1032.39 | O107: 43225300
A108: 93 | B108: 2016-01-29 | C108: 1003.52002 | D108: 1035.380005 | E108: 1003.52002 | F108: 1035.380005 | G108: 54975700 | H108: 1035.380005 | I108: 1 | J108: 1 | K108: 1003.52 | L108: 1035.38 | M108: 1003.52 | N108: 1035.38 | O108: 54975700
A109: 94 | B109: 2016-01-28 | C109: 1004.150024 | D109: 1014.47998 | E109: 1000.380005 | F109: 1003.27002 | G109: 46930100 | H109: 1003.27002 | I109: 1 | J109: 1 | K109: 1004.15 | L109: 1014.48 | M109: 1000.38 | N109: 1003.27 | O109: 46930100
A110: 95 | B110: 2016-01-27 | C110: 1016.900024 | D110: 1021.849976 | E110: 998.809998 | F110: 1002.75 | G110: 47540400 | H110: 1002.75 | I110: 1 | J110: 1 | K110: 1016.9 | L110: 1021.85 | M110: 998.81 | N110: 1002.75 | O110: 47540400
A111: 96 | B111: 2016-01-26 | C111: 998.190002 | D111: 1019.51001 | E111: 998.190002 | F111: 1017.969971 | G111: 43579400 | H111: 1017.969971 | I111: 1 | J111: 1 | K111: 998.19 | L111: 1019.51 | M111: 998.19 | N111: 1017.97 | O111: 43579400
A112: 97 | B112: 2016-01-25 | C112: 1019.429993 | D112: 1019.429993 | E112: 996.039978 | F112: 997.369995 | G112: 44013800 | H112: 997.369995 | I112: 1 | J112: 1 | K112: 1019.43 | L112: 1019.43 | M112: 996.04 | N112: 997.37 | O112: 44013800
A113: 98 | B113: 2016-01-22 | C113: 999.809998 | D113: 1021.840027 | E113: 999.809998 | F113: 1020.659973 | G113: 49017600 | H113: 1020.659973 | I113: 1 | J113: 1 | K113: 999.81 | L113: 1021.84 | M113: 999.81 | N113: 1020.66 | O113: 49017600
A114: 99 | B114: 2016-01-21 | C114: 999.530029 | D114: 1014.5 | E114: 992.119995 | F114: 997.340027 | G114: 50788100 | H114: 997.340027 | I114: 1 | J114: 1 | K114: 999.53 | L114: 1014.5 | M114: 992.12 | N114: 997.34 | O114: 50788100
A115: 100 | B115: 2016-01-20 | C115: 991.789978 | D115: 1008.679993 | E115: 958.47998 | F115: 999.309998 | G115: 64160700 | H115: 999.309998 | I115: 1 | J115: 1 | K115: 991.79 | L115: 1008.68 | M115: 958.48 | N115: 999.31 | O115: 64160700
A116: 101 | B116: 2016-01-19 | C116: 1010.299988 | D116: 1017.830017 | E116: 985.219971 | F116: 994.869995 | G116: 49283500 | H116: 994.869995 | I116: 1 | J116: 1 | K116: 1010.3 | L116: 1017.83 | M116: 985.22 | N116: 994.87 | O116: 49283500
A117: 102 | B117: 2016-01-15 | C117: 1023.919983 | D117: 1023.919983 | E117: 983.97998 | F117: 1007.719971 | G117: 54684600 | H117: 1007.719971 | I117: 1 | J117: 1 | K117: 1023.92 | L117: 1023.92 | M117: 983.98 | N117: 1007.72 | O117: 54684600
A118: 103 | B118: 2016-01-14 | C118: 1010.640015 | D118: 1033.579956 | E118: 999.619995 | F118: 1025.670044 | G118: 52411100 | H118: 1025.670044 | I118: 1 | J118: 1 | K118: 1010.64 | L118: 1033.58 | M118: 999.62 | N118: 1025.67 | O118: 52411100
A119: 104 | B119: 2016-01-13 | C119: 1045.73999 | D119: 1050.660034 | E119: 1005.690002 | F119: 1010.190002 | G119: 50870300 | H119: 1010.190002 | I119: 1 | J119: 1 | K119: 1045.74 | L119: 1050.66 | M119: 1005.69 | N119: 1010.19 | O119: 50870300
A120: 105 | B120: 2016-01-12 | C120: 1044.97998 | D120: 1056.920044 | E120: 1028.140015 | F120: 1044.699951 | G120: 48872600 | H120: 1044.699951 | I120: 1 | J120: 1 | K120: 1044.98 | L120: 1056.92 | M120: 1028.14 | N120: 1044.7 | O120: 48872600
A121: 106 | B121: 2016-01-11 | C121: 1046.640015 | D121: 1052.589966 | E121: 1031.670044 | F121: 1041.900024 | G121: 46072900 | H121: 1041.900024 | I121: 1 | J121: 1 | K121: 1046.64 | L121: 1052.59 | M121: 1031.67 | N121: 1041.9 | O121: 46072900
A122: 107 | B122: 2016-01-08 | C122: 1065.849976 | D122: 1072.089966 | E122: 1045.109985 | F122: 1046.199951 | G122: 46649400 | H122: 1046.199951 | I122: 1 | J122: 1 | K122: 1065.85 | L122: 1072.09 | M122: 1045.11 | N122: 1046.2 | O122: 46649400
A123: 108 | B123: 2016-01-07 | C123: 1090.949951 | D123: 1090.949951 | E123: 1063.839966 | F123: 1064.569946 | G123: 50765900 | H123: 1064.569946 | I123: 1 | J123: 1 | K123: 1090.95 | L123: 1090.95 | M123: 1063.84 | N123: 1064.57 | O123: 50765900
A124: 109 | B124: 2016-01-06 | C124: 1109.459961 | D124: 1109.459961 | E124: 1088.77002 | F124: 1094.369995 | G124: 43366600 | H124: 1094.369995 | I124: 1 | J124: 1 | K124: 1109.46 | L124: 1109.46 | M124: 1088.77 | N124: 1094.37 | O124: 43366600
A125: 110 | B125: 2016-01-05 | C125: 1109.099976 | D125: 1112.670044 | E125: 1104.75 | F125: 1110.449951 | G125: 37066200 | H125: 1110.449951 | I125: 1 | J125: 1 | K125: 1109.1 | L125: 1112.67 | M125: 1104.75 | N125: 1110.45 | O125: 37066200
A126: 111 | B126: 2016-01-04 | C126: 1134.079956 | D126: 1134.079956 | E126: 1100.530029 | F126: 1108.619995 | G126: 43048800 | H126: 1108.619995 | I126: 1 | J126: 1 | K126: 1134.08 | L126: 1134.08 | M126: 1100.53 | N126: 1108.62 | O126: 43048800
A127: 112 | B127: 2015-12-31 | C127: 1149.329956 | D127: 1149.329956 | E127: 1135.569946 | F127: 1135.890015 | G127: 26553300 | H127: 1135.890015 | I127: 1 | J127: 1 | K127: 1149.33 | L127: 1149.33 | M127: 1135.57 | N127: 1135.89 | O127: 26553300
A128: 113 | B128: 2015-12-30 | C128: 1159.969971 | D128: 1160.380005 | E128: 1149.160034 | F128: 1149.640015 | G128: 23674300 | H128: 1149.640015 | I128: 1 | J128: 1 | K128: 1159.97 | L128: 1160.38 | M128: 1149.16 | N128: 1149.64 | O128: 23674300
A129: 114 | B129: 2015-12-29 | C129: 1148.959961 | D129: 1160.939941 | E129: 1148.73999 | F129: 1160.52002 | G129: 25420000 | H129: 1160.52002 | I129: 1 | J129: 1 | K129: 1148.96 | L129: 1160.94 | M129: 1148.74 | N129: 1160.52 | O129: 25420000
A130: 115 | B130: 2015-12-28 | C130: 1153.98999 | D130: 1153.98999 | E130: 1140.02002 | F130: 1148.209961 | G130: 24925100 | H130: 1148.209961 | I130: 1 | J130: 1 | K130: 1153.99 | L130: 1153.99 | M130: 1140.02 | N130: 1148.21 | O130: 24925100
A131: 116 | B131: 2015-12-24 | C131: 1152.75 | D131: 1159.709961 | E131: 1151.599976 | F131: 1154.76001 | G131: 14118600 | H131: 1154.76001 | I131: 1 | J131: 1 | K131: 1152.75 | L131: 1159.71 | M131: 1151.6 | N131: 1154.76 | O131: 14118600
A132: 117 | B132: 2015-12-23 | C132: 1139.040039 | D132: 1152.910034 | E132: 1139.040039 | F132: 1152.819946 | G132: 34840900 | H132: 1152.819946 | I132: 1 | J132: 1 | K132: 1139.04 | L132: 1152.91 | M132: 1139.04 | N132: 1152.82 | O132: 34840900
A133: 118 | B133: 2015-12-22 | C133: 1128.47998 | D133: 1138.650024 | E133: 1123.670044 | F133: 1137.689941 | G133: 35208600 | H133: 1137.689941 | I133: 1 | J133: 1 | K133: 1128.48 | L133: 1138.65 | M133: 1123.67 | N133: 1137.69 | O133: 35208600
A134: 119 | B134: 2015-12-21 | C134: 1122.160034 | D134: 1130.400024 | E134: 1120.609985 | F134: 1127.73999 | G134: 37602800 | H134: 1127.73999 | I134: 1 | J134: 1 | K134: 1122.16 | L134: 1130.4 | M134: 1120.61 | N134: 1127.74 | O134: 37602800
A135: 120 | B135: 2015-12-18 | C135: 1134.949951 | D135: 1134.949951 | E135: 1120.469971 | F135: 1121.02002 | G135: 66830700 | H135: 1121.02002 | I135: 1 | J135: 1 | K135: 1134.95 | L135: 1134.95 | M135: 1120.47 | N135: 1121.02 | O135: 66830700
A136: 121 | B136: 2015-12-17 | C136: 1149.209961 | D136: 1151.400024 | E136: 1135.349976 | F136: 1135.359985 | G136: 43273900 | H136: 1135.359985 | I136: 1 | J136: 1 | K136: 1149.21 | L136: 1151.4 | M136: 1135.35 | N136: 1135.36 | O136: 43273900
A137: 122 | B137: 2015-12-16 | C137: 1133.819946 | D137: 1150.27002 | E137: 1133.819946 | F137: 1148.969971 | G137: 45954500 | H137: 1148.969971 | I137: 1 | J137: 1 | K137: 1133.82 | L137: 1150.27 | M137: 1133.82 | N137: 1148.97 | O137: 45954500
A138: 123 | B138: 2015-12-15 | C138: 1117.02002 | D138: 1133.319946 | E138: 1117.02002 | F138: 1131.550049 | G138: 43535400 | H138: 1131.550049 | I138: 1 | J138: 1 | K138: 1117.02 | L138: 1133.32 | M138: 1117.02 | N138: 1131.55 | O138: 43535400
A139: 124 | B139: 2015-12-14 | C139: 1123.630005 | D139: 1126.48999 | E139: 1108.76001 | F139: 1115.859985 | G139: 46124400 | H139: 1115.859985 | I139: 1 | J139: 1 | K139: 1123.63 | L139: 1126.49 | M139: 1108.76 | N139: 1115.86 | O139: 46124400
A140: 125 | B140: 2015-12-11 | C140: 1146.22998 | D140: 1146.22998 | E140: 1121.27002 | F140: 1123.609985 | G140: 43010600 | H140: 1123.609985 | I140: 1 | J140: 1 | K140: 1146.23 | L140: 1146.23 | M140: 1121.27 | N140: 1123.61 | O140: 43010600
A141: 126 | B141: 2015-12-10 | C141: 1145.660034 | D141: 1154.839966 | E141: 1144.030029 | F141: 1149.02002 | G141: 37151500 | H141: 1149.02002 | I141: 1 | J141: 1 | K141: 1145.66 | L141: 1154.84 | M141: 1144.03 | N141: 1149.02 | O141: 37151500
A142: 127 | B142: 2015-12-09 | C142: 1158.97998 | D142: 1165.560059 | E142: 1142.75 | F142: 1145.869995 | G142: 43852500 | H142: 1145.869995 | I142: 1 | J142: 1 | K142: 1158.98 | L142: 1165.56 | M142: 1142.75 | N142: 1145.87 | O142: 43852500
A143: 128 | B143: 2015-12-08 | C143: 1162.25 | D143: 1163.72998 | E143: 1151.27002 | F143: 1159.400024 | G143: 41735700 | H143: 1159.400024 | I143: 1 | J143: 1 | K143: 1162.25 | L143: 1163.73 | M143: 1151.27 | N143: 1159.4 | O143: 41735700
A144: 129 | B144: 2015-12-07 | C144: 1183.069946 | D144: 1183.069946 | E144: 1161.579956 | F144: 1164.300049 | G144: 40438200 | H144: 1164.300049 | I144: 1 | J144: 1 | K144: 1183.07 | L144: 1183.07 | M144: 1161.58 | N144: 1164.3 | O144: 40438200
A145: 130 | B145: 2015-12-04 | C145: 1170.640015 | D145: 1183.819946 | E145: 1170.48999 | F145: 1183.400024 | G145: 42149100 | H145: 1183.400024 | I145: =H145/F145 -> 1 | J145: =INDEX(OFFSET($T$15,0,0,$S$13+1,1),MATCH(B145,OFFSET($Q$15,0,0,$S$13+1,1),-1)) -> 1 | K145: =ROUND($I145*C145,2) -> 1170.64 | L145: =ROUND($I145*D145,2) -> 1183.82 | M145: =ROUND($I145*E145,2) -> 1170.49 | N145: =ROUND($I145*F145,2) -> 1183.4 | O145: =G145*J145 -> 42149100
A146: 131 | B146: 2015-12-03 | C146: 1192.699951 | D146: 1196.680054 | E146: 1168.150024 | F146: 1170.569946 | G146: 43064900 | H146: 1170.569946 | I146: 1 | J146: 1 | K146: 1192.7 | L146: 1196.68 | M146: 1168.15 | N146: 1170.57 | O146: 43064900
A147: 132 | B147: 2015-12-02 | C147: 1203.890015 | D147: 1205.079956 | E147: 1190.849976 | F147: 1191.689941 | G147: 39506400 | H147: 1191.689941 | I147: 1 | J147: 1 | K147: 1203.89 | L147: 1205.08 | M147: 1190.85 | N147: 1191.69 | O147: 39506400
A148: 133 | B148: 2015-12-01 | C148: 1198.930054 | D148: 1204.400024 | E148: 1195.689941 | F148: 1204.160034 | G148: 37121200 | H148: 1204.160034 | I148: 1 | J148: 1 | K148: 1198.93 | L148: 1204.4 | M148: 1195.69 | N148: 1204.16 | O148: 37121200
A149: 134 | B149: 2015-11-30 | C149: 1202.77002 | D149: 1204.869995 | E149: 1197.199951 | F149: 1198.109985 | G149: 42450300 | H149: 1198.109985 | I149: 1 | J149: 1 | K149: 1202.77 | L149: 1204.87 | M149: 1197.2 | N149: 1198.11 | O149: 42450300
A150: 135 | B150: 2015-11-27 | C150: 1197.910034 | D150: 1203.689941 | E150: 1195.839966 | F150: 1202.380005 | G150: 14668400 | H150: 1202.380005 | I150: 1 | J150: 1 | K150: 1197.91 | L150: 1203.69 | M150: 1195.84 | N150: 1202.38 | O150: 14668400
A151: 136 | B151: 2015-11-25 | C151: 1188.900024 | D151: 1198.530029 | E151: 1188.51001 | F151: 1198.02002 | G151: 28529400 | H151: 1198.02002 | I151: 1 | J151: 1 | K151: 1188.9 | L151: 1198.53 | M151: 1188.51 | N151: 1198.02 | O151: 28529400
A152: 137 | B152: 2015-11-24 | C152: 1179.22998 | D152: 1189.660034 | E152: 1172.880005 | F152: 1188.810059 | G152: 38849300 | H152: 1188.810059 | I152: 1 | J152: 1 | K152: 1179.23 | L152: 1189.66 | M152: 1172.88 | N152: 1188.81 | O152: 38849300
A153: 138 | B153: 2015-11-23 | C153: 1174.890015 | D153: 1184.410034 | E153: 1173.75 | F153: 1180.359985 | G153: 35879800 | H153: 1180.359985 | I153: 1 | J153: 1 | K153: 1174.89 | L153: 1184.41 | M153: 1173.75 | N153: 1180.36 | O153: 35879800
A154: 139 | B154: 2015-11-20 | C154: 1168.349976 | D154: 1178.73999 | E154: 1168.349976 | F154: 1175.150024 | G154: 39296000 | H154: 1175.150024 | I154: 1 | J154: 1 | K154: 1168.35 | L154: 1178.74 | M154: 1168.35 | N154: 1175.15 | O154: 39296000
A155: 140 | B155: 2015-11-19 | C155: 1171.699951 | D155: 1172.290039 | E155: 1164.189941 | F155: 1166.72998 | G155: 36281100 | H155: 1166.72998 | I155: 1 | J155: 1 | K155: 1171.7 | L155: 1172.29 | M155: 1164.19 | N155: 1166.73 | O155: 36281100
A156: 141 | B156: 2015-11-18 | C156: 1153.390015 | D156: 1172.02002 | E156: 1153.390015 | F156: 1171.75 | G156: 39263900 | H156: 1171.75 | I156: 1 | J156: 1 | K156: 1153.39 | L156: 1172.02 | M156: 1153.39 | N156: 1171.75 | O156: 39263900
A157: 142 | B157: 2015-11-17 | C157: 1156.160034 | D157: 1166.339966 | E157: 1152.48999 | F157: 1153.209961 | G157: 44273500 | H157: 1153.209961 | I157: 1 | J157: 1 | K157: 1156.16 | L157: 1166.34 | M157: 1152.49 | N157: 1153.21 | O157: 44273500
A158: 143 | B158: 2015-11-16 | C158: 1146.369995 | D158: 1156.219971 | E158: 1140.76001 | F158: 1156.079956 | G158: 37412400 | H158: 1156.079956 | I158: 1 | J158: 1 | K158: 1146.37 | L158: 1156.22 | M158: 1140.76 | N158: 1156.08 | O158: 37412400
A159: 144 | B159: 2015-11-13 | C159: 1154.089966 | D159: 1158.430054 | E159: 1144.339966 | F159: 1146.550049 | G159: 42787500 | H159: 1146.550049 | I159: 1 | J159: 1 | K159: 1154.09 | L159: 1158.43 | M159: 1144.34 | N159: 1146.55 | O159: 42787500
A160: 145 | B160: 2015-11-12 | C160: 1177.349976 | D160: 1177.349976 | E160: 1154.380005 | F160: 1154.810059 | G160: 40163700 | H160: 1154.810059 | I160: 1 | J160: 1 | K160: 1177.35 | L160: 1177.35 | M160: 1154.38 | N160: 1154.81 | O160: 40163700
A161: 146 | B161: 2015-11-11 | C161: 1188.27002 | D161: 1189.849976 | E161: 1178.060059 | F161: 1178.069946 | G161: 36924100 | H161: 1178.069946 | I161: 1 | J161: 1 | K161: 1188.27 | L161: 1189.85 | M161: 1178.06 | N161: 1178.07 | O161: 36924100
A162: 147 | B162: 2015-11-10 | C162: 1183.689941 | D162: 1187.719971 | E162: 1177.430054 | F162: 1187.699951 | G162: 38214400 | H162: 1187.699951 | I162: 1 | J162: 1 | K162: 1183.69 | L162: 1187.72 | M162: 1177.43 | N162: 1187.7 | O162: 38214400
A163: 148 | B163: 2015-11-09 | C163: 1199.579956 | D163: 1199.579956 | E163: 1180.560059 | F163: 1184.430054 | G163: 38823500 | H163: 1184.430054 | I163: 1 | J163: 1 | K163: 1199.58 | L163: 1199.58 | M163: 1180.56 | N163: 1184.43 | O163: 38823500
A164: 149 | B164: 2015-11-06 | C164: 1190.030029 | D164: 1199.959961 | E164: 1181.780029 | F164: 1199.75 | G164: 43690200 | H164: 1199.75 | I164: 1 | J164: 1 | K164: 1190.03 | L164: 1199.96 | M164: 1181.78 | N164: 1199.75 | O164: 43690200
A165: 150 | B165: 2015-11-05 | C165: 1190.310059 | D165: 1191.930054 | E165: 1179.73999 | F165: 1190.689941 | G165: 40518900 | H165: 1190.689941 | I165: 1 | J165: 1 | K165: 1190.31 | L165: 1191.93 | M165: 1179.74 | N165: 1190.69 | O165: 40518900
A166: 151 | B166: 2015-11-04 | C166: 1192.280029 | D166: 1196.140015 | E166: 1185.390015 | F166: 1190.380005 | G166: 40788700 | H166: 1190.380005 | I166: 1 | J166: 1 | K166: 1192.28 | L166: 1196.14 | M166: 1185.39 | N166: 1190.38 | O166: 40788700
A167: 152 | B167: 2015-11-03 | C167: 1185.780029 | D167: 1196.560059 | E167: 1182.369995 | F167: 1191.579956 | G167: 42720600 | H167: 1191.579956 | I167: 1 | J167: 1 | K167: 1185.78 | L167: 1196.56 | M167: 1182.37 | N167: 1191.58 | O167: 42720600
A168: 153 | B168: 2015-11-02 | C168: 1161.949951 | D168: 1187.619995 | E168: 1161.949951 | F168: 1186.089966 | G168: 37600200 | H168: 1186.089966 | I168: 1 | J168: 1 | K168: 1161.95 | L168: 1187.62 | M168: 1161.95 | N168: 1186.09 | O168: 37600200
A169: 154 | B169: 2015-10-30 | C169: 1165.47998 | D169: 1167.650024 | E169: 1159.660034 | F169: 1161.859985 | G169: 42562000 | H169: 1161.859985 | I169: 1 | J169: 1 | K169: 1165.48 | L169: 1167.65 | M169: 1159.66 | N169: 1161.86 | O169: 42562000
A170: 155 | B170: 2015-10-29 | C170: 1178.359985 | D170: 1178.359985 | E170: 1164.23999 | F170: 1165.630005 | G170: 40089400 | H170: 1165.630005 | I170: 1 | J170: 1 | K170: 1178.36 | L170: 1178.36 | M170: 1164.24 | N170: 1165.63 | O170: 40089400
A171: 156 | B171: 2015-10-28 | C171: 1145.47998 | D171: 1178.780029 | E171: 1145.47998 | F171: 1178.719971 | G171: 46981100 | H171: 1178.719971 | I171: 1 | J171: 1 | K171: 1145.48 | L171: 1178.78 | M171: 1145.48 | N171: 1178.72 | O171: 46981100
A172: 157 | B172: 2015-10-27 | C172: 1158.530029 | D172: 1158.530029 | E172: 1139.920044 | F172: 1145.290039 | G172: 42168800 | H172: 1145.290039 | I172: 1 | J172: 1 | K172: 1158.53 | L172: 1158.53 | M172: 1139.92 | N172: 1145.29 | O172: 42168800
A173: 158 | B173: 2015-10-26 | C173: 1165.77002 | D173: 1165.77002 | E173: 1157.52002 | F173: 1159.5 | G173: 33858000 | H173: 1159.5 | I173: 1 | J173: 1 | K173: 1165.77 | L173: 1165.77 | M173: 1157.52 | N173: 1159.5 | O173: 33858000
A174: 159 | B174: 2015-10-23 | C174: 1157.040039 | D174: 1166.420044 | E174: 1155.650024 | F174: 1166.060059 | G174: 41084600 | H174: 1166.060059 | I174: 1 | J174: 1 | K174: 1157.04 | L174: 1166.42 | M174: 1155.65 | N174: 1166.06 | O174: 41084600
A175: 160 | B175: 2015-10-22 | C175: 1147.089966 | D175: 1160.079956 | E175: 1145.800049 | F175: 1154.52002 | G175: 44308500 | H175: 1154.52002 | I175: 1 | J175: 1 | K175: 1147.09 | L175: 1160.08 | M175: 1145.8 | N175: 1154.52 | O175: 44308500
A176: 161 | B176: 2015-10-21 | C176: 1164.02002 | D176: 1167.01001 | E176: 1144.900024 | F176: 1144.949951 | G176: 36277900 | H176: 1144.949951 | I176: 1 | J176: 1 | K176: 1164.02 | L176: 1167.01 | M176: 1144.9 | N176: 1144.95 | O176: 36277900
A177: 162 | B177: 2015-10-20 | C177: 1164.369995 | D177: 1169.609985 | E177: 1159.079956 | F177: 1163.27002 | G177: 33315000 | H177: 1163.27002 | I177: 1 | J177: 1 | K177: 1164.37 | L177: 1169.61 | M177: 1159.08 | N177: 1163.27 | O177: 33315000
A178: 163 | B178: 2015-10-19 | C178: 1161.800049 | D178: 1168.920044 | E178: 1155.569946 | F178: 1164.300049 | G178: 32873200 | H178: 1164.300049 | I178: 1 | J178: 1 | K178: 1161.8 | L178: 1168.92 | M178: 1155.57 | N178: 1164.3 | O178: 32873200
A179: 164 | B179: 2015-10-16 | C179: 1163.589966 | D179: 1165.22998 | E179: 1152.569946 | F179: 1162.310059 | G179: 35954300 | H179: 1162.310059 | I179: 1 | J179: 1 | K179: 1163.59 | L179: 1165.23 | M179: 1152.57 | N179: 1162.31 | O179: 35954300
A180: 165 | B180: 2015-10-15 | C180: 1137.97998 | D180: 1162.819946 | E180: 1135.670044 | F180: 1162.77002 | G180: 37062900 | H180: 1162.77002 | I180: 1 | J180: 1 | K180: 1137.98 | L180: 1162.82 | M180: 1135.67 | N180: 1162.77 | O180: 37062900
A181: 166 | B181: 2015-10-14 | C181: 1147.880005 | D181: 1153.469971 | E181: 1136.060059 | F181: 1136.969971 | G181: 36445900 | H181: 1136.969971 | I181: 1 | J181: 1 | K181: 1147.88 | L181: 1153.47 | M181: 1136.06 | N181: 1136.97 | O181: 36445900
A182: 167 | B182: 2015-10-13 | C182: 1163.25 | D182: 1169.709961 | E182: 1147.839966 | F182: 1147.839966 | G182: 34019200 | H182: 1147.839966 | I182: 1 | J182: 1 | K182: 1163.25 | L182: 1169.71 | M182: 1147.84 | N182: 1147.84 | O182: 34019200
A183: 168 | B183: 2015-10-12 | C183: 1165.449951 | D183: 1166.51001 | E183: 1159.540039 | F183: 1164.400024 | G183: 28932500 | H183: 1164.400024 | I183: 1 | J183: 1 | K183: 1165.45 | L183: 1166.51 | M183: 1159.54 | N183: 1164.4 | O183: 28932500
A184: 169 | B184: 2015-10-09 | C184: 1163.640015 | D184: 1168.76001 | E184: 1162.910034 | F184: 1165.359985 | G184: 37069000 | H184: 1165.359985 | I184: 1 | J184: 1 | K184: 1163.64 | L184: 1168.76 | M184: 1162.91 | N184: 1165.36 | O184: 37069000
A185: 170 | B185: 2015-10-08 | C185: 1152.430054 | D185: 1164.579956 | E185: 1149.300049 | F185: 1163.23999 | G185: 39391400 | H185: 1163.23999 | I185: 1 | J185: 1 | K185: 1152.43 | L185: 1164.58 | M185: 1149.3 | N185: 1163.24 | O185: 39391400
A186: 171 | B186: 2015-10-07 | C186: 1134.48999 | D186: 1152.609985 | E186: 1134.48999 | F186: 1152.599976 | G186: 46664700 | H186: 1152.599976 | I186: 1 | J186: 1 | K186: 1134.49 | L186: 1152.61 | M186: 1134.49 | N186: 1152.6 | O186: 46664700
A187: 172 | B187: 2015-10-06 | C187: 1141.430054 | D187: 1143.630005 | E187: 1127.119995 | F187: 1133.689941 | G187: 42024000 | H187: 1133.689941 | I187: 1 | J187: 1 | K187: 1141.43 | L187: 1143.63 | M187: 1127.12 | N187: 1133.69 | O187: 42024000
A188: 173 | B188: 2015-10-05 | C188: 1115.819946 | D188: 1142.180054 | E188: 1115.819946 | F188: 1141.640015 | G188: 43344900 | H188: 1141.640015 | I188: 1 | J188: 1 | K188: 1115.82 | L188: 1142.18 | M188: 1115.82 | N188: 1141.64 | O188: 43344900
A189: 174 | B189: 2015-10-02 | C189: 1095.579956 | D189: 1114.119995 | E189: 1080.609985 | F189: 1114.119995 | G189: 43785700 | H189: 1114.119995 | I189: 1 | J189: 1 | K189: 1095.58 | L189: 1114.12 | M189: 1080.61 | N189: 1114.12 | O189: 43785700
A190: 175 | B190: 2015-10-01 | C190: 1100.890015 | D190: 1103.699951 | E190: 1083.900024 | F190: 1097.550049 | G190: 39836000 | H190: 1097.550049 | I190: 1 | J190: 1 | K190: 1100.89 | L190: 1103.7 | M190: 1083.9 | N190: 1097.55 | O190: 39836000
A191: 176 | B191: 2015-09-30 | C191: 1087.079956 | D191: 1101.930054 | E191: 1087.079956 | F191: 1100.689941 | G191: 45250700 | H191: 1100.689941 | I191: 1 | J191: 1 | K191: 1087.08 | L191: 1101.93 | M191: 1087.08 | N191: 1100.69 | O191: 45250700
A192: 177 | B192: 2015-09-29 | C192: 1090.949951 | D192: 1098.02002 | E192: 1078.630005 | F192: 1083.910034 | G192: 41323900 | H192: 1083.910034 | I192: 1 | J192: 1 | K192: 1090.95 | L192: 1098.02 | M192: 1078.63 | N192: 1083.91 | O192: 41323900
A193: 178 | B193: 2015-09-28 | C193: 1121.869995 | D193: 1121.869995 | E193: 1087.469971 | F193: 1090.569946 | G193: 43266600 | H193: 1090.569946 | I193: 1 | J193: 1 | K193: 1121.87 | L193: 1121.87 | M193: 1087.47 | N193: 1090.57 | O193: 43266600
A194: 179 | B194: 2015-09-25 | C194: 1140.23999 | D194: 1146.719971 | E194: 1119.300049 | F194: 1122.790039 | G194: 37218700 | H194: 1122.790039 | I194: 1 | J194: 1 | K194: 1140.24 | L194: 1146.72 | M194: 1119.3 | N194: 1122.79 | O194: 37218700
A195: 180 | B195: 2015-09-24 | C195: 1137.880005 | D195: 1138.959961 | E195: 1124.75 | F195: 1137.540039 | G195: 40915300 | H195: 1137.540039 | I195: 1 | J195: 1 | K195: 1137.88 | L195: 1138.96 | M195: 1124.75 | N195: 1137.54 | O195: 40915300
A196: 181 | B196: 2015-09-23 | C196: 1143.410034 | D196: 1149.219971 | E196: 1137.410034 | F196: 1140.050049 | G196: 31905300 | H196: 1140.050049 | I196: 1 | J196: 1 | K196: 1143.41 | L196: 1149.22 | M196: 1137.41 | N196: 1140.05 | O196: 31905300
A197: 182 | B197: 2015-09-22 | C197: 1158.420044 | D197: 1158.420044 | E197: 1137.699951 | F197: 1143.030029 | G197: 38082600 | H197: 1143.030029 | I197: 1 | J197: 1 | K197: 1158.42 | L197: 1158.42 | M197: 1137.7 | N197: 1143.03 | O197: 38082600
A198: 183 | B198: 2015-09-21 | C198: 1165.040039 | D198: 1177.959961 | E198: 1158.099976 | F198: 1161.089966 | G198: 32593500 | H198: 1161.089966 | I198: 1 | J198: 1 | K198: 1165.04 | L198: 1177.96 | M198: 1158.1 | N198: 1161.09 | O198: 32593500
A199: 184 | B199: 2015-09-18 | C199: 1175.339966 | D199: 1175.339966 | E199: 1160.660034 | F199: 1163.349976 | G199: 60002400 | H199: 1163.349976 | I199: 1 | J199: 1 | K199: 1175.34 | L199: 1175.34 | M199: 1160.66 | N199: 1163.35 | O199: 60002400
A200: 185 | B200: 2015-09-17 | C200: 1175.089966 | D200: 1193.98999 | E200: 1173.699951 | F200: 1180.689941 | G200: 41837900 | H200: 1180.689941 | I200: 1 | J200: 1 | K200: 1175.09 | L200: 1193.99 | M200: 1173.7 | N200: 1180.69 | O200: 41837900
... 4300 more rows

Sheet CalculationsAndCharts
A1: MHL_MovingAverage
A2: =InputPriceData!A1 -> Russell 2000 (^RUT) -WCB (Daily) | R2: Chart Clutter Controls
A4: User Charting Controls | E4: Click to Shift Chart One Bar: | R4: FALSE
A5: Data Control | R5: FALSE
A6: =InputPriceData!$B$10 -> 7248 | B6: Available Input Data Rows | E6: Earliest: | F6: =OFFSET(InputPriceData!B15,CalculationsAndCharts!A6,0,1,1) -> 1987-09-10 | R6: FALSE
B7: Use Close Adjusted: | C7: TRUE | E7: Latest: | F7: =OFFSET(InputPriceData!B15,1,0,1,1) -> 2016-06-10
A8: =MIN(A6-A11,LastUsedRowInColumn(A:A)-32) -> 2500 | B8: Logically Available for Calc / Plot | E8: $ Change: | F8: =InputPriceData!I4 -> -17.27124 | R8: TRUE
R9: TRUE
A10: Price Chart Windowing Controls | F10: Y-axis Range
A11: 1359 | B11: Input Data Offset (Pan) | E11: Max High+ | F11: =CEILING(MAX(MAX(OFFSET($E$33,0,0,$A$12,1)))+2*F14,0.1) -> 854.5 | R11: FALSE
A12: 491 | B12: Data Points to Plot (Zoom) | E12: Min Low- | F12: =FLOOR(MIN(MIN(OFFSET($F$33,0,0,$A$12,1)))-2*F14,0.1) -> 295.9 | R12: FALSE
B13: First: | C13: =OFFSET(B32,A12,0,1,1) -> 2009-02-05 | E13: White space %: | F13: 0.05
B14: ="Last: " & OFFSET(InputPriceData!P15,1+A11,0,1,1) -> Last: | C14: =B33 -> 2011-01-14 | E14: Allowance: | F14: =FLOOR((CEILING(MAX(MAX(OFFSET($E$33,0,0,$A$12,1))),1)-FLOOR(MIN(MIN(OFFSET($F$33,0,0,$A$12,1))),1))*F13,0.01) -> 23.3 | R14: TRUE
A15: User Controls | C15: Alpha | D15: 1-Alpha | R15: FALSE
A16: 200 | B16: SMA of Close
A17: 50 | B17: EMA of Close | C17: =2/(A17+1) -> 0.03921568627 | D17: =1-C17 -> 0.9607843137
A18: MHL Controls
A19: 35 | B19: MHL Look Back
A20: 100 | B20: EMA Period | C20: =2/(A20+1) -> 0.0198019802 | D20: =1-C20 -> 0.9801980198
A21: 10 | B21: SMA Period
A23: Help! I would like to plot data
A24: From | B24: 2009-02-05 | C24: =OFFSET(InputPriceData!$A$15,MATCH(B24,OFFSET(InputPriceData!B15,1,0,InputPriceData!$B$10,1),0),0,1,1)-C25 -> 491 | E24: 445
A25: To | B25: 2011-01-14 | C25: =OFFSET(InputPriceData!$A$15,MATCH(B25,OFFSET(InputPriceData!$B$15,1,0,InputPriceData!$B$10,1),0),0,1,1)-1 -> 1359 | E25: =$A$12-$E$24+1 -> 47
H28: @ Cursor => | I28: =OFFSET(A32,$E$25,0,1,1)&"(RR)" -> 47(RR) | J28: =OFFSET($B$32,E25,0,1,1) -> 2010-11-09 | K28: =TEXT(OFFSET(D32,$E$25,0,1,1),"#,##0.00")&"(o)" -> 737.86(o) | L28: =TEXT(OFFSET(E32,$E$25,0,1,1),"#,##0.00")&"(h)" -> 738.99(h) | M28: =TEXT(OFFSET(F32,$E$25,0,1,1),"#,##0.00")&"(l)" -> 723.17(l) | N28: =TEXT(OFFSET(G32,$E$25,0,1,1),"#,##0.00")&"(c)" -> 725.98(c)
E29: Cursor ==> | AT29: Chart cursors
T30: Work Area for: Show / No Show On Chart | AT30: Work area
A31: Rel Row | H31: ="HH("&$A$19&")" -> HH(35) | I31: ="LL("&$A$19&")" -> LL(35) | J31: ="MHL("&$A$19&")" -> MHL(35) | K31: ="MHL EMA("&$A$19&","&$A$20&")" -> MHL EMA(35,100) | L31: ="EMA("&A20&")" -> EMA(100) | M31: ="MHL SMA("&$A$19&","&$A$21&")" -> MHL SMA(35,10) | N31: ="SMA("&A21&")" -> SMA(10) | O31: ="SMA("&A16&") of Close" -> SMA(200) of Close | P31: ="EMA("&A17&") of Close" -> EMA(50) of Close | T31: =H31 -> HH(35) | U31: =I31 -> LL(35) | V31: MHL(35) | W31: MHL EMA(35,100) | X31: EMA(100) | Y31: MHL SMA(35,10) | Z31: SMA(10) | AA31: SMA(200) of Close | AB31: EMA(50) of Close | AC31: Used To Color Vol Bars
B32: Date | C32: Volume | D32: Open | E32: High | F32: Low | G32: Close | AC32: Up Vol | AD32: Dn Vol | AT32: Volume Cursor | AV32: =MAX(OFFSET(C33,0,0,A12,1)) -> 106178100 | AW32: PB Cursor | AX32: =MAX(OFFSET(#REF!,0,0,$A$12,1)) ->  | AY32: Price Chart Cursor
A33: 1 | B33: =OFFSET(InputPriceData!B$15,CalculationsAndCharts!$A33+$A$11,0,1,1) -> 2011-01-14 | C33: =OFFSET(InputPriceData!G$15,CalculationsAndCharts!$A33+$A$11,IF($C$7,8,0),1,1) -> 46615900 | D33: =OFFSET(InputPriceData!C$15,CalculationsAndCharts!$A33+$A$11,IF($C$7,8,0),1,1) -> 800.65 | E33: =OFFSET(InputPriceData!D$15,CalculationsAndCharts!$A33+$A$11,IF($C$7,8,0),1,1) -> 807.89 | F33: =OFFSET(InputPriceData!E$15,CalculationsAndCharts!$A33+$A$11,IF($C$7,8,0),1,1) -> 799.05 | G33: =OFFSET(InputPriceData!F$15,CalculationsAndCharts!$A33+$A$11,IF($C$7,8,0),1,1) -> 807.57 | H33: =MAX(OFFSET(E33,0,0,$A$19,1)) -> 807.89 | I33: =MIN(OFFSET(F33,0,0,$A$19,1)) -> 720.58 | J33: =(H33+I33)/2 -> 764.235 | K33: =$C$20*$J33+$D$20*K34 -> 702.2580749 | L33: =IF($A33>$A$8,0,IF($A33=$A$8,$G33,$C$20*$G33+$D$20*L34)) -> 731.1481271 | M33: =AVERAGE(OFFSET(J33,0,0,$A$21,1)) -> 756.542 | N33: =IF($A33>$A$8,0,IF($A33=$A$8,$G33,AVERAGE(OFFSET($G33,0,0,$A$21,1)))) -> 795.465 | O33: =IF($A33>$A$8,0,IF($A33=$A$8,$G33,AVERAGE(OFFSET($G33,0,0,$A$16,1)))) -> 687.9476 | P33: =IF($A33>$A$8,0,IF($A33=$A$8,$G33,$C$17*$G33+$D$17*P34)) -> 763.2123101 | T33: =IF($R$4,H33,NA()) ->  | U33: =IF($R$5,I33,NA()) ->  | V33: =IF($R$6,J33,NA()) ->  | W33: =IF($R$8,K33,NA()) -> 702.2580749 | X33: =IF($R$9,L33,NA()) -> 731.1481271 | Y33: =IF($R$11,M33,NA()) ->  | Z33: =IF($R$12,N33,NA()) ->  | AA33: =IF($R$14,O33,NA()) -> 687.9476 | AB33: =IF($R$15,P33,NA()) ->  | AC33: =IF(G33>=D33,C33,NA()) -> 46615900 | AD33: =IF(G33<D33,C33,NA()) ->  | AT33: =$E$25 -> 47 | AV33: 0 | AW33: =$E$25 -> 47 | AX33: =MIN(OFFSET(#REF!,0,0,$A$12,1),OFFSET(#REF!,0,0,$A$12,1))*1.2 ->  | AY33: =$E$25 -> 47 | AZ33: =$F$11 -> 854.5
A34: 2 | B34: =OFFSET(InputPriceData!B$15,CalculationsAndCharts!$A34+$A$11,0,1,1) -> 2011-01-13 | C34: =OFFSET(InputPriceData!G$15,CalculationsAndCharts!$A34+$A$11,IF($C$7,8,0),1,1) -> 43108400 | D34: =OFFSET(InputPriceData!C$15,CalculationsAndCharts!$A34+$A$11,IF($C$7,8,0),1,1) -> 801.36 | E34: =OFFSET(InputPriceData!D$15,CalculationsAndCharts!$A34+$A$11,IF($C$7,8,0),1,1) -> 803.82 | F34: =OFFSET(InputPriceData!E$15,CalculationsAndCharts!$A34+$A$11,IF($C$7,8,0),1,1) -> 797.5 | G34: =OFFSET(InputPriceData!F$15,CalculationsAndCharts!$A34+$A$11,IF($C$7,8,0),1,1) -> 800.65 | H34: =MAX(OFFSET(E34,0,0,$A$19,1)) -> 803.82 | I34: =MIN(OFFSET(F34,0,0,$A$19,1)) -> 720.58 | J34: =(H34+I34)/2 -> 762.2 | K34: =$C$20*$J34+$D$20*K35 -> 701.0060158 | L34: =IF($A34>$A$8,0,IF($A34=$A$8,$G34,$C$20*$G34+$D$20*L35)) -> 729.6042509 | M34: =AVERAGE(OFFSET(J34,0,0,$A$21,1)) -> 754.854 | N34: =IF($A34>$A$8,0,IF($A34=$A$8,$G34,AVERAGE(OFFSET($G34,0,0,$A$21,1)))) -> 793.073 | O34: =IF($A34>$A$8,0,IF($A34=$A$8,$G34,AVERAGE(OFFSET($G34,0,0,$A$16,1)))) -> 687.32965 | P34: =IF($A34>$A$8,0,IF($A34=$A$8,$G34,$C$17*$G34+$D$17*P35)) -> 761.4017922 | T34: =IF($R$4,H34,NA()) ->  | U34: =IF($R$5,I34,NA()) ->  | V34: =IF($R$6,J34,NA()) ->  | W34: =IF($R$8,K34,NA()) -> 701.0060158 | X34: =IF($R$9,L34,NA()) -> 729.6042509 | Y34: =IF($R$11,M34,NA()) ->  | Z34: =IF($R$12,N34,NA()) ->  | AA34: =IF($R$14,O34,NA()) -> 687.32965 | AB34: =IF($R$15,P34,NA()) ->  | AD34: 43108400 | AT34: =$E$25 -> 47 | AV34: =1.2*AV32 -> 127413720 | AW34: =$E$25 -> 47 | AX34: =MAX(OFFSET(#REF!,0,0,$A$12,1),OFFSET(#REF!,0,0,$A$12,1))*1.2 ->  | AY34: =$E$25 -> 47 | AZ34: =$F$12 -> 295.9
A35: 3 | B35: =OFFSET(InputPriceData!B$15,CalculationsAndCharts!$A35+$A$11,0,1,1) -> 2011-01-12 | C35: =OFFSET(InputPriceData!G$15,CalculationsAndCharts!$A35+$A$11,IF($C$7,8,0),1,1) -> 42269400 | D35: =OFFSET(InputPriceData!C$15,CalculationsAndCharts!$A35+$A$11,IF($C$7,8,0),1,1) -> 795.82 | E35: =OFFSET(InputPriceData!D$15,CalculationsAndCharts!$A35+$A$11,IF($C$7,8,0),1,1) -> 802.4 | F35: =OFFSET(InputPriceData!E$15,CalculationsAndCharts!$A35+$A$11,IF($C$7,8,0),1,1) -> 795.82 | G35: =OFFSET(InputPriceData!F$15,CalculationsAndCharts!$A35+$A$11,IF($C$7,8,0),1,1) -> 801.36 | H35: 802.4 | I35: 715.08 | J35: 758.74 | K35: 699.7697737 | L35: 728.1689832 | M35: 753.3695 | N35: 791.982 | O35: 686.7196 | P35: 759.7998245 | W35: 699.7697737 | X35: 728.1689832 | AA35: 686.7196 | AC35: 42269400
A36: 4 | B36: =OFFSET(InputPriceData!B$15,CalculationsAndCharts!$A36+$A$11,0,1,1) -> 2011-01-11 | C36: =OFFSET(InputPriceData!G$15,CalculationsAndCharts!$A36+$A$11,IF($C$7,8,0),1,1) -> 40507500 | D36: =OFFSET(InputPriceData!C$15,CalculationsAndCharts!$A36+$A$11,IF($C$7,8,0),1,1) -> 794.56 | E36: =OFFSET(InputPriceData!D$15,CalculationsAndCharts!$A36+$A$11,IF($C$7,8,0),1,1) -> 797.86 | F36: =OFFSET(InputPriceData!E$15,CalculationsAndCharts!$A36+$A$11,IF($C$7,8,0),1,1) -> 790.99 | G36: =OFFSET(InputPriceData!F$15,CalculationsAndCharts!$A36+$A$11,IF($C$7,8,0),1,1) -> 794.76 | H36: 801.13 | I36: 715.08 | J36: 758.105 | K36: 698.578456 | L36: 726.6903768 | M36: 752.231 | N36: 790.872 | O36: 686.1325 | P36: 758.1034908 | W36: 698.578456 | X36: 726.6903768 | AA36: 686.1325 | AC36: 40507500
A37: 5 | B37: =OFFSET(InputPriceData!B$15,CalculationsAndCharts!$A37+$A$11,0,1,1) -> 2011-01-10 | C37: =OFFSET(InputPriceData!G$15,CalculationsAndCharts!$A37+$A$11,IF($C$7,8,0),1,1) -> 40364500 | D37: =OFFSET(InputPriceData!C$15,CalculationsAndCharts!$A37+$A$11,IF($C$7,8,0),1,1) -> 784.51 | E37: =OFFSET(InputPriceData!D$15,CalculationsAndCharts!$A37+$A$11,IF($C$7,8,0),1,1) -> 793.8 | F37: =OFFSET(InputPriceData!E$15,CalculationsAndCharts!$A37+$A$11,IF($C$7,8,0),1,1) -> 778.89 | G37: =OFFSET(InputPriceData!F$15,CalculationsAndCharts!$A37+$A$11,IF($C$7,8,0),1,1) -> 791.58 | H37: 801.13 | I37: 715.08 | J37: 758.105 | K37: 697.3758996 | L37: 725.3152329 | M37: 751.156 | N37: 790.342 | O37: 685.56995 | P37: 756.6073068 | W37: 697.3758996 | X37: 725.3152329 | AA37: 685.56995 | AC37: 40364500
A38: 6 | B38: =OFFSET(InputPriceData!B$15,CalculationsAndCharts!$A38+$A$11,0,1,1) -> 2011-01-07 | C38: =OFFSET(InputPriceData!G$15,CalculationsAndCharts!$A38+$A$11,IF($C$7,8,0),1,1) -> 49631100 | D38: =OFFSET(InputPriceData!C$15,CalculationsAndCharts!$A38+$A$11,IF($C$7,8,0),1,1) -> 792.45 | E38: =OFFSET(InputPriceData!D$15,CalculationsAndCharts!$A38+$A$11,IF($C$7,8,0),1,1) -> 794.66 | F38: =OFFSET(InputPriceData!E$15,CalculationsAndCharts!$A38+$A$11,IF($C$7,8,0),1,1) -> 777.06 | G38: =OFFSET(InputPriceData!F$15,CalculationsAndCharts!$A38+$A$11,IF($C$7,8,0),1,1) -> 787.83 | H38: 801.13 | I38: 713.96 | J38: 757.545 | K38: 696.1490491 | L38: 723.9765507 | M38: 750.081 | N38: 790.419 | O38: 685.0069 | P38: 755.1798499 | W38: 696.1490491 | X38: 723.9765507 | AA38: 685.0069 | AD38: 49631100
A39: 7 | B39: =OFFSET(InputPriceData!B$15,CalculationsAndCharts!$A39+$A$11,0,1,1) -> 2011-01-06 | C39: =OFFSET(InputPriceData!G$15,CalculationsAndCharts!$A39+$A$11,IF($C$7,8,0),1,1) -> 48441000 | D39: =OFFSET(InputPriceData!C$15,CalculationsAndCharts!$A39+$A$11,IF($C$7,8,0),1,1) -> 795.56 | E39: =OFFSET(InputPriceData!D$15,CalculationsAndCharts!$A39+$A$11,IF($C$7,8,0),1,1) -> 796.33 | F39: =OFFSET(InputPriceData!E$15,CalculationsAndCharts!$A39+$A$11,IF($C$7,8,0),1,1) -> 788.58 | G39: =OFFSET(InputPriceData!F$15,CalculationsAndCharts!$A39+$A$11,IF($C$7,8,0),1,1) -> 791.42 | H39: 801.13 | I39: 704.36 | J39: 752.745 | K39: 694.9087268 | L39: 722.6865821 | M39: 749.062 | N39: 790.532 | O39: 684.46325 | P39: 753.8471907 | W39: 694.9087268 | X39: 722.6865821 | AA39: 684.46325 | AD39: 48441000
A40: 8 | B40: =OFFSET(InputPriceData!B$15,CalculationsAndCharts!$A40+$A$11,0,1,1) -> 2011-01-05 | C40: =OFFSET(InputPriceData!G$15,CalculationsAndCharts!$A40+$A$11,IF($C$7,8,0),1,1) -> 47649200 | D40: =OFFSET(InputPriceData!C$15,CalculationsAndCharts!$A40+$A$11,IF($C$7,8,0),1,1) -> 784.25 | E40: =OFFSET(InputPriceData!D$15,CalculationsAndCharts!$A40+$A$11,IF($C$7,8,0),1,1) -> 795.09 | F40: =OFFSET(InputPriceData!E$15,CalculationsAndCharts!$A40+$A$11,IF($C$7,8,0),1,1) -> 783.02 | G40: =OFFSET(InputPriceData!F$15,CalculationsAndCharts!$A40+$A$11,IF($C$7,8,0),1,1) -> 795.09 | H40: 801.13 | I40: 701.43 | J40: 751.28 | K40: 693.7403173 | L40: 721.2980282 | M40: 748.523 | N40: 790.449 | O40: 683.92455 | P40: 752.3136067 | W40: 693.7403173 | X40: 721.2980282 | AA40: 683.92455 | AC40: 47649200
A41: 9 | B41: =OFFSET(InputPriceData!B$15,CalculationsAndCharts!$A41+$A$11,0,1,1) -> 2011-01-04 | C41: =OFFSET(InputPriceData!G$15,CalculationsAndCharts!$A41+$A$11,IF($C$7,8,0),1,1) -> 47964200 | D41: =OFFSET(InputPriceData!C$15,CalculationsAndCharts!$A41+$A$11,IF($C$7,8,0),1,1) -> 798.54 | E41: =OFFSET(InputPriceData!D$15,CalculationsAndCharts!$A41+$A$11,IF($C$7,8,0),1,1) -> 801.13 | F41: =OFFSET(InputPriceData!E$15,CalculationsAndCharts!$A41+$A$11,IF($C$7,8,0),1,1) -> 778.17 | G41: =OFFSET(InputPriceData!F$15,CalculationsAndCharts!$A41+$A$11,IF($C$7,8,0),1,1) -> 785.83 | H41: 801.13 | I41: 701.43 | J41: 751.28 | K41: 692.5778994 | L41: 719.8072813 | M41: 747.8565 | N41: 789.992 | O41: 683.4006 | P41: 750.5676314 | W41: 692.5778994 | X41: 719.8072813 | AA41: 683.4006 | AD41: 47964200
A42: 10 | B42: =OFFSET(InputPriceData!B$15,CalculationsAndCharts!$A42+$A$11,0,1,1) -> 2011-01-03 | C42: =OFFSET(InputPriceData!G$15,CalculationsAndCharts!$A42+$A$11,IF($C$7,8,0),1,1) -> 42866700 | D42: =OFFSET(InputPriceData!C$15,CalculationsAndCharts!$A42+$A$11,IF($C$7,8,0),1,1) -> 793.54 | E42: =OFFSET(InputPriceData!D$15,CalculationsAndCharts!$A42+$A$11,IF($C$7,8,0),1,1) -> 800.94 | F42: =OFFSET(InputPriceData!E$15,CalculationsAndCharts!$A42+$A$11,IF($C$7,8,0),1,1) -> 790.94 | G42: =OFFSET(InputPriceData!F$15,CalculationsAndCharts!$A42+$A$11,IF($C$7,8,0),1,1) -> 798.56 | H42: 800.94 | I42: 701.43 | J42: 751.185 | K42: 691.3919984 | L42: 718.473489 | M42: 746.7065 | N42: 789.639 | O42: 682.886 | P42: 749.1283511 | W42: 691.3919984 | X42: 718.473489 | AA42: 682.886 | AC42: 42866700
A43: 11 | B43: =OFFSET(InputPriceData!B$15,CalculationsAndCharts!$A43+$A$11,0,1,1) -> 2010-12-31 | C43: =OFFSET(InputPriceData!G$15,CalculationsAndCharts!$A43+$A$11,IF($C$7,8,0),1,1) -> 17997700 | D43: =OFFSET(InputPriceData!C$15,CalculationsAndCharts!$A43+$A$11,IF($C$7,8,0),1,1) -> 788.97 | E43: =OFFSET(InputPriceData!D$15,CalculationsAndCharts!$A43+$A$11,IF($C$7,8,0),1,1) -> 789.82 | F43: =OFFSET(InputPriceData!E$15,CalculationsAndCharts!$A43+$A$11,IF($C$7,8,0),1,1) -> 783.65 | G43: =OFFSET(InputPriceData!F$15,CalculationsAndCharts!$A43+$A$11,IF($C$7,8,0),1,1) -> 783.65 | H43: 793.28 | I43: 701.43 | J43: 747.355 | K43: 690.184059 | L43: 716.8555796 | M43: 745.266 | N43: 787.734 | O43: 682.26265 | P43: 747.1107328 | W43: 690.184059 | X43: 716.8555796 | AA43: 682.26265 | AD43: 17997700
A44: 12 | B44: =OFFSET(InputPriceData!B$15,CalculationsAndCharts!$A44+$A$11,0,1,1) -> 2010-12-30 | C44: =OFFSET(InputPriceData!G$15,CalculationsAndCharts!$A44+$A$11,IF($C$7,8,0),1,1) -> 19707200 | D44: =OFFSET(InputPriceData!C$15,CalculationsAndCharts!$A44+$A$11,IF($C$7,8,0),1,1) -> 789.84 | E44: =OFFSET(InputPriceData!D$15,CalculationsAndCharts!$A44+$A$11,IF($C$7,8,0),1,1) -> 793.04 | F44: =OFFSET(InputPriceData!E$15,CalculationsAndCharts!$A44+$A$11,IF($C$7,8,0),1,1) -> 789.66 | G44: =OFFSET(InputPriceData!F$15,CalculationsAndCharts!$A44+$A$11,IF($C$7,8,0),1,1) -> 789.74 | H44: 793.28 | I44: 701.43 | J44: 747.355 | K44: 689.0290905 | L44: 715.5061974 | M44: 744.2085 | N44: 787.025 | O44: 681.75245 | P44: 745.6193341 | W44: 689.0290905 | X44: 715.5061974 | AA44: 681.75245 | AD44: 19707200
A45: 13 | B45: =OFFSET(InputPriceData!B$15,CalculationsAndCharts!$A45+$A$11,0,1,1) -> 2010-12-29 | C45: =OFFSET(InputPriceData!G$15,CalculationsAndCharts!$A45+$A$11,IF($C$7,8,0),1,1) -> 22143800 | D45: =OFFSET(InputPriceData!C$15,CalculationsAndCharts!$A45+$A$11,IF($C$7,8,0),1,1) -> 789.81 | E45: =OFFSET(InputPriceData!D$15,CalculationsAndCharts!$A45+$A$11,IF($C$7,8,0),1,1) -> 791.57 | F45: =OFFSET(InputPriceData!E$15,CalculationsAndCharts!$A45+$A$11,IF($C$7,8,0),1,1) -> 789.75 | G45: =OFFSET(InputPriceData!F$15,CalculationsAndCharts!$A45+$A$11,IF($C$7,8,0),1,1) -> 790.26 | H45: 793.28 | I45: 701.43 | J45: 747.355 | K45: 687.8507893 | L45: 714.0065246 | M45: 743.151 | N45: 784.887 | O45: 681.22365 | P45: 743.8184906 | W45: 687.8507893 | X45: 714.0065246 | AA45: 681.22365 | AC45: 22143800
A46: 14 | B46: =OFFSET(InputPriceData!B$15,CalculationsAndCharts!$A46+$A$11,0,1,1) -> 2010-12-28 | C46: =OFFSET(InputPriceData!G$15,CalculationsAndCharts!$A46+$A$11,IF($C$7,8,0),1,1) -> 24784500 | D46: =OFFSET(InputPriceData!C$15,CalculationsAndCharts!$A46+$A$11,IF($C$7,8,0),1,1) -> 793.18 | E46: =OFFSET(InputPriceData!D$15,CalculationsAndCharts!$A46+$A$11,IF($C$7,8,0),1,1) -> 793.22 | F46: =OFFSET(InputPriceData!E$15,CalculationsAndCharts!$A46+$A$11,IF($C$7,8,0),1,1) -> 787.99 | G46: =OFFSET(InputPriceData!F$15,CalculationsAndCharts!$A46+$A$11,IF($C$7,8,0),1,1) -> 789.46 | H46: 793.28 | I46: 701.43 | J46: 747.355 | K46: 686.648684 | L46: 712.4660504 | M46: 742.0935 | N46: 783.027 | O46: 680.67025 | P46: 741.9229188 | W46: 686.648684 | X46: 712.4660504 | AA46: 680.67025 | AD46: 24784500
A47: 15 | B47: =OFFSET(InputPriceData!B$15,CalculationsAndCharts!$A47+$A$11,0,1,1) -> 2010-12-27 | C47: =OFFSET(InputPriceData!G$15,CalculationsAndCharts!$A47+$A$11,IF($C$7,8,0),1,1) -> 19924700 | D47: =OFFSET(InputPriceData!C$15,CalculationsAndCharts!$A47+$A$11,IF($C$7,8,0),1,1) -> 786.9 | E47: =OFFSET(InputPriceData!D$15,CalculationsAndCharts!$A47+$A$11,IF($C$7,8,0),1,1) -> 792.54 | F47: =OFFSET(InputPriceData!E$15,CalculationsAndCharts!$A47+$A$11,IF($C$7,8,0),1,1) -> 784.91 | G47: =OFFSET(InputPriceData!F$15,CalculationsAndCharts!$A47+$A$11,IF($C$7,8,0),1,1) -> 792.35 | H47: 793.28 | I47: 701.43 | J47: 747.355 | K47: 685.4222938 | L47: 710.9106171 | M47: 741.036 | N47: 781.291 | O47: 680.095 | P47: 739.9826298 | W47: 685.4222938 | X47: 710.9106171 | AA47: 680.095 | AC47: 19924700
A48: 16 | B48: =OFFSET(InputPriceData!B$15,CalculationsAndCharts!$A48+$A$11,0,1,1) -> 2010-12-23 | C48: =OFFSET(InputPriceData!G$15,CalculationsAndCharts!$A48+$A$11,IF($C$7,8,0),1,1) -> 25150200 | D48: =OFFSET(InputPriceData!C$15,CalculationsAndCharts!$A48+$A$11,IF($C$7,8,0),1,1) -> 790.63 | E48: =OFFSET(InputPriceData!D$15,CalculationsAndCharts!$A48+$A$11,IF($C$7,8,0),1,1) -> 792.22 | F48: =OFFSET(InputPriceData!E$15,CalculationsAndCharts!$A48+$A$11,IF($C$7,8,0),1,1) -> 788.32 | G48: =OFFSET(InputPriceData!F$15,CalculationsAndCharts!$A48+$A$11,IF($C$7,8,0),1,1) -> 788.96 | H48: 793.28 | I48: 701.43 | J48: 747.355 | K48: 684.171128 | L48: 709.265377 | M48: 739.8635 | N48: 779.739 | O48: 679.5162 | P48: 737.8451861 | W48: 684.171128 | X48: 709.265377 | AA48: 679.5162 | AD48: 25150200
A49: 17 | B49: =OFFSET(InputPriceData!B$15,CalculationsAndCharts!$A49+$A$11,0,1,1) -> 2010-12-22 | C49: =OFFSET(InputPriceData!G$15,CalculationsAndCharts!$A49+$A$11,IF($C$7,8,0),1,1) -> 12855900 | D49: =OFFSET(InputPriceData!C$15,CalculationsAndCharts!$A49+$A$11,IF($C$7,8,0),1,1) -> 790.46 | E49: =OFFSET(InputPriceData!D$15,CalculationsAndCharts!$A49+$A$11,IF($C$7,8,0),1,1) -> 793.28 | F49: =OFFSET(InputPriceData!E$15,CalculationsAndCharts!$A49+$A$11,IF($C$7,8,0),1,1) -> 789.43 | G49: =OFFSET(InputPriceData!F$15,CalculationsAndCharts!$A49+$A$11,IF($C$7,8,0),1,1) -> 790.59 | H49: 793.28 | I49: 701.43 | J49: 747.355 | K49: 682.8946862 | L49: 707.6553846 | M49: 738.178 | N49: 777.606 | O49: 678.9575 | P49: 735.7588671 | W49: 682.8946862 | X49: 707.6553846 | AA49: 678.9575 | AC49: 12855900
A50: 18 | B50: =OFFSET(InputPriceData!B$15,CalculationsAndCharts!$A50+$A$11,0,1,1) -> 2010-12-21 | C50: =OFFSET(InputPriceData!G$15,CalculationsAndCharts!$A50+$A$11,IF($C$7,8,0),1,1) -> 34796700 | D50: =OFFSET(InputPriceData!C$15,CalculationsAndCharts!$A50+$A$11,IF($C$7,8,0),1,1) -> 785.61 | E50: =OFFSET(InputPriceData!D$15,CalculationsAndCharts!$A50+$A$11,IF($C$7,8,0),1,1) -> 790.67 | F50: =OFFSET(InputPriceData!E$15,CalculationsAndCharts!$A50+$A$11,IF($C$7,8,0),1,1) -> 784.9 | G50: =OFFSET(InputPriceData!F$15,CalculationsAndCharts!$A50+$A$11,IF($C$7,8,0),1,1) -> 790.52 | H50: 790.67 | I50: 698.56 | J50: 744.615 | K50: 681.5924576 | L50: 705.9799378 | M50: 736.4925 | N50: 774.951 | O50: 678.3792 | P50: 733.5208617 | W50: 681.5924576 | X50: 705.9799378 | AA50: 678.3792 | AC50: 34796700
A51: 19 | B51: =OFFSET(InputPriceData!B$15,CalculationsAndCharts!$A51+$A$11,0,1,1) -> 2010-12-20 | C51: =OFFSET(InputPriceData!G$15,CalculationsAndCharts!$A51+$A$11,IF($C$7,8,0),1,1) -> 35481400 | D51: =OFFSET(InputPriceData!C$15,CalculationsAndCharts!$A51+$A$11,IF($C$7,8,0),1,1) -> 779.51 | E51: =OFFSET(InputPriceData!D$15,CalculationsAndCharts!$A51+$A$11,IF($C$7,8,0),1,1) -> 785.86 | F51: =OFFSET(InputPriceData!E$15,CalculationsAndCharts!$A51+$A$11,IF($C$7,8,0),1,1) -> 778.79 | G51: =OFFSET(InputPriceData!F$15,CalculationsAndCharts!$A51+$A$11,IF($C$7,8,0),1,1) -> 782.3 | H51: 785.86 | I51: 693.7 | J51: 739.78 | K51: 680.3192749 | L51: 704.2720578 | M51: 735.062 | N51: 772.341 | O51: 677.77475 | P51: 731.1943663 | W51: 680.3192749 | X51: 704.2720578 | AA51: 677.77475 | AC51: 35481400
A52: 20 | B52: =OFFSET(InputPriceData!B$15,CalculationsAndCharts!$A52+$A$11,0,1,1) -> 2010-12-17 | C52: =OFFSET(InputPriceData!G$15,CalculationsAndCharts!$A52+$A$11,IF($C$7,8,0),1,1) -> 46324700 | D52: =OFFSET(InputPriceData!C$15,CalculationsAndCharts!$A52+$A$11,IF($C$7,8,0),1,1) -> 777.08 | E52: =OFFSET(InputPriceData!D$15,CalculationsAndCharts!$A52+$A$11,IF($C$7,8,0),1,1) -> 779.55 | F52: =OFFSET(InputPriceData!E$15,CalculationsAndCharts!$A52+$A$11,IF($C$7,8,0),1,1) -> 772.74 | G52: =OFFSET(InputPriceData!F$15,CalculationsAndCharts!$A52+$A$11,IF($C$7,8,0),1,1) -> 779.51 | H52: 779.86 | I52: 693.7 | J52: 736.78 | K52: 679.1180482 | L52: 702.6957357 | M52: 733.696 | N52: 770.197 | O52: 677.1988 | P52: 729.108422 | W52: 679.1180482 | X52: 702.6957357 | AA52: 677.1988 | AC52: 46324700
A53: 21 | B53: =OFFSET(InputPriceData!B$15,CalculationsAndCharts!$A53+$A$11,0,1,1) -> 2010-12-16 | C53: =OFFSET(InputPriceData!G$15,CalculationsAndCharts!$A53+$A$11,IF($C$7,8,0),1,1) -> 47368200 | D53: =OFFSET(InputPriceData!C$15,CalculationsAndCharts!$A53+$A$11,IF($C$7,8,0),1,1) -> 771.04 | E53: =OFFSET(InputPriceData!D$15,CalculationsAndCharts!$A53+$A$11,IF($C$7,8,0),1,1) -> 778.29 | F53: =OFFSET(InputPriceData!E$15,CalculationsAndCharts!$A53+$A$11,IF($C$7,8,0),1,1) -> 767.73 | G53: =OFFSET(InputPriceData!F$15,CalculationsAndCharts!$A53+$A$11,IF($C$7,8,0),1,1) -> 776.56 | H53: 779.86 | I53: 693.7 | J53: 736.78 | K53: 677.9531602 | L53: 701.1439324 | M53: 732.3995 | N53: 767.888 | O53: 676.63135 | P53: 727.0512148 | W53: 677.9531602 | X53: 701.1439324 | AA53: 676.63135 | AC53: 47368200
A54: 22 | B54: =OFFSET(InputPriceData!B$15,CalculationsAndCharts!$A54+$A$11,0,1,1) -> 2010-12-15 | C54: =OFFSET(InputPriceData!G$15,CalculationsAndCharts!$A54+$A$11,IF($C$7,8,0),1,1) -> 44073400 | D54: =OFFSET(InputPriceData!C$15,CalculationsAndCharts!$A54+$A$11,IF($C$7,8,0),1,1) -> 771.04 | E54: =OFFSET(InputPriceData!D$15,CalculationsAndCharts!$A54+$A$11,IF($C$7,8,0),1,1) -> 778.29 | F54: =OFFSET(InputPriceData!E$15,CalculationsAndCharts!$A54+$A$11,IF($C$7,8,0),1,1) -> 767.91 | G54: =OFFSET(InputPriceData!F$15,CalculationsAndCharts!$A54+$A$11,IF($C$7,8,0),1,1) -> 768.36 | H54: 779.86 | I54: 693.7 | J54: 736.78 | K54: 676.7647392 | L54: 699.6203755 | M54: 730.787 | N54: 765.352 | O54: 676.0109 | P54: 725.030448 | W54: 676.7647392 | X54: 699.6203755 | AA54: 676.0109 | AD54: 44073400
A55: 23 | B55: =OFFSET(InputPriceData!B$15,CalculationsAndCharts!$A55+$A$11,0,1,1) -> 2010-12-14 | C55: =OFFSET(InputPriceData!G$15,CalculationsAndCharts!$A55+$A$11,IF($C$7,8,0),1,1) -> 41323500 | D55: =OFFSET(InputPriceData!C$15,CalculationsAndCharts!$A55+$A$11,IF($C$7,8,0),1,1) -> 774.07 | E55: =OFFSET(InputPriceData!D$15,CalculationsAndCharts!$A55+$A$11,IF($C$7,8,0),1,1) -> 775.19 | F55: =OFFSET(InputPriceData!E$15,CalculationsAndCharts!$A55+$A$11,IF($C$7,8,0),1,1) -> 770.32 | G55: =OFFSET(InputPriceData!F$15,CalculationsAndCharts!$A55+$A$11,IF($C$7,8,0),1,1) -> 771.66 | H55: 779.86 | I55: 693.7 | J55: 736.78 | K55: 675.5523097 | L55: 698.2316962 | M55: 728.811 | N55: 762.83 | O55: 675.4154 | P55: 723.2618949 | W55: 675.5523097 | X55: 698.2316962 | AA55: 675.4154 | AD55: 41323500
A56: 24 | B56: =OFFSET(InputPriceData!B$15,CalculationsAndCharts!$A56+$A$11,0,1,1) -> 2010-12-13 | C56: =OFFSET(InputPriceData!G$15,CalculationsAndCharts!$A56+$A$11,IF($C$7,8,0),1,1) -> 43612400 | D56: =OFFSET(InputPriceData!C$15,CalculationsAndCharts!$A56+$A$11,IF($C$7,8,0),1,1) -> 777.04 | E56: =OFFSET(InputPriceData!D$15,CalculationsAndCharts!$A56+$A$11,IF($C$7,8,0),1,1) -> 779.86 | F56: =OFFSET(InputPriceData!E$15,CalculationsAndCharts!$A56+$A$11,IF($C$7,8,0),1,1) -> 772.1 | G56: =OFFSET(InputPriceData!F$15,CalculationsAndCharts!$A56+$A$11,IF($C$7,8,0),1,1) -> 772.1 | H56: 779.86 | I56: 693.7 | J56: 736.78 | K56: 674.3153867 | L56: 696.7482961 | M56: 726.3535 | N56: 758.365 | O56: 674.79865 | P56: 721.286462 | W56: 674.3153867 | X56: 696.7482961 | AA56: 674.79865 | AD56: 43612400
A57: 25 | B57: =OFFSET(InputPriceData!B$15,CalculationsAndCharts!$A57+$A$11,0,1,1) -> 2010-12-10 | C57: =OFFSET(InputPriceData!G$15,CalculationsAndCharts!$A57+$A$11,IF($C$7,8,0),1,1) -> 45473100 | D57: =OFFSET(InputPriceData!C$15,CalculationsAndCharts!$A57+$A$11,IF($C$7,8,0),1,1) -> 768.22 | E57: =OFFSET(InputPriceData!D$15,CalculationsAndCharts!$A57+$A$11,IF($C$7,8,0),1,1) -> 777.56 | F57: =OFFSET(InputPriceData!E$15,CalculationsAndCharts!$A57+$A$11,IF($C$7,8,0),1,1) -> 766.8 | G57: =OFFSET(InputPriceData!F$15,CalculationsAndCharts!$A57+$A$11,IF($C$7,8,0),1,1) -> 776.83 | H57: 777.56 | I57: 693.7 | J57: 735.63 | K57: 673.0534753 | L57: 695.2260395 | M57: 723.896 | N57: 754.35 | O57: 674.1514 | P57: 719.2124401 | W57: 673.0534753 | X57: 695.2260395 | AA57: 674.1514 | AC57: 45473100
A58: 26 | B58: =OFFSET(InputPriceData!B$15,CalculationsAndCharts!$A58+$A$11,0,1,1) -> 2010-12-09 | C58: =OFFSET(InputPriceData!G$15,CalculationsAndCharts!$A58+$A$11,IF($C$7,8,0),1,1) -> 45225100 | D58: =OFFSET(InputPriceData!C$15,CalculationsAndCharts!$A58+$A$11,IF($C$7,8,0),1,1) -> 768.64 | E58: =OFFSET(InputPriceData!D$15,CalculationsAndCharts!$A58+$A$11,IF($C$7,8,0),1,1) -> 768.87 | F58: =OFFSET(InputPriceData!E$15,CalculationsAndCharts!$A58+$A$11,IF($C$7,8,0),1,1) -> 763.7 | G58: =OFFSET(InputPriceData!F$15,CalculationsAndCharts!$A58+$A$11,IF($C$7,8,0),1,1) -> 767.63 | H58: 770.51 | I58: 690.49 | J58: 730.5 | K58: 671.7893031 | L58: 693.5774746 | M58: 721.3985 | N58: 749.94 | O58: 673.41005 | P58: 716.8607029 | W58: 671.7893031 | X58: 693.5774746 | AA58: 673.41005 | AD58: 45225100
A59: 27 | B59: =OFFSET(InputPriceData!B$15,CalculationsAndCharts!$A59+$A$11,0,1,1) -> 2010-12-08 | C59: =OFFSET(InputPriceData!G$15,CalculationsAndCharts!$A59+$A$11,IF($C$7,8,0),1,1) -> 46075900 | D59: =OFFSET(InputPriceData!C$15,CalculationsAndCharts!$A59+$A$11,IF($C$7,8,0),1,1) -> 766.18 | E59: =OFFSET(InputPriceData!D$15,CalculationsAndCharts!$A59+$A$11,IF($C$7,8,0),1,1) -> 767.97 | F59: =OFFSET(InputPriceData!E$15,CalculationsAndCharts!$A59+$A$11,IF($C$7,8,0),1,1) -> 762.36 | G59: =OFFSET(InputPriceData!F$15,CalculationsAndCharts!$A59+$A$11,IF($C$7,8,0),1,1) -> 764.04 | H59: 770.51 | I59: 690.49 | J59: 730.5 | K59: 670.6032284 | L59: 692.081464 | M59: 719.31 | N59: 746.83 | O59: 672.7242 | P59: 714.7884867 | W59: 670.6032284 | X59: 692.081464 | AA59: 672.7242 | AD59: 46075900
A60: 28 | B60: =OFFSET(InputPriceData!B$15,CalculationsAndCharts!$A60+$A$11,0,1,1) -> 2010-12-07 | C60: =OFFSET(InputPriceData!G$15,CalculationsAndCharts!$A60+$A$11,IF($C$7,8,0),1,1) -> 69706300 | D60: =OFFSET(InputPriceData!C$15,CalculationsAndCharts!$A60+$A$11,IF($C$7,8,0),1,1) -> 764.9 | E60: =OFFSET(InputPriceData!D$15,CalculationsAndCharts!$A60+$A$11,IF($C$7,8,0),1,1) -> 770.51 | F60: =OFFSET(InputPriceData!E$15,CalculationsAndCharts!$A60+$A$11,IF($C$7,8,0),1,1) -> 763.41 | G60: =OFFSET(InputPriceData!F$15,CalculationsAndCharts!$A60+$A$11,IF($C$7,8,0),1,1) -> 764.42 | H60: 770.51 | I60: 690.11 | J60: 730.31 | K60: 669.3931926 | L60: 690.6277562 | M60: 717.2215 | N60: 742.419 | O60: 672.05615 | P60: 712.7782209 | W60: 669.3931926 | X60: 690.6277562 | AA60: 672.05615 | AD60: 69706300
A61: 29 | B61: =OFFSET(InputPriceData!B$15,CalculationsAndCharts!$A61+$A$11,0,1,1) -> 2010-12-06 | C61: =OFFSET(InputPriceData!G$15,CalculationsAndCharts!$A61+$A$11,IF($C$7,8,0),1,1) -> 35273700 | D61: =OFFSET(InputPriceData!C$15,CalculationsAndCharts!$A61+$A$11,IF($C$7,8,0),1,1) -> 755.29 | E61: =OFFSET(InputPriceData!D$15,CalculationsAndCharts!$A61+$A$11,IF($C$7,8,0),1,1) -> 762.13 | F61: =OFFSET(InputPriceData!E$15,CalculationsAndCharts!$A61+$A$11,IF($C$7,8,0),1,1) -> 754.11 | G61: =OFFSET(InputPriceData!F$15,CalculationsAndCharts!$A61+$A$11,IF($C$7,8,0),1,1) -> 760.86 | H61: 762.13 | I61: 690.11 | J61: 726.12 | K61: 668.16255 | L61: 689.1370038 | M61: 714.6115 | N61: 738.71 | O61: 671.3594 | P61: 710.6703932 | W61: 668.16255 | X61: 689.1370038 | AA61: 671.3594 | AC61: 35273700
A62: 30 | B62: =OFFSET(InputPriceData!B$15,CalculationsAndCharts!$A62+$A$11,0,1,1) -> 2010-12-03 | C62: =OFFSET(InputPriceData!G$15,CalculationsAndCharts!$A62+$A$11,IF($C$7,8,0),1,1) -> 37357800 | D62: =OFFSET(InputPriceData!C$15,CalculationsAndCharts!$A62+$A$11,IF($C$7,8,0),1,1) -> 748.83 | E62: =OFFSET(InputPriceData!D$15,CalculationsAndCharts!$A62+$A$11,IF($C$7,8,0),1,1) -> 757.52 | F62: =OFFSET(InputPriceData!E$15,CalculationsAndCharts!$A62+$A$11,IF($C$7,8,0),1,1) -> 746.56 | G62: =OFFSET(InputPriceData!F$15,CalculationsAndCharts!$A62+$A$11,IF($C$7,8,0),1,1) -> 756.42 | H62: 757.52 | I62: 690.11 | J62: 723.815 | K62: 666.9916925 | L62: 687.6880544 | M62: 712.2485 | N62: 735.06 | O62: 670.71635 | P62: 708.6218378 | W62: 666.9916925 | X62: 687.6880544 | AA62: 670.71635 | AC62: 37357800
A63: 31 | B63: =OFFSET(InputPriceData!B$15,CalculationsAndCharts!$A63+$A$11,0,1,1) -> 2010-12-02 | C63: =OFFSET(InputPriceData!G$15,CalculationsAndCharts!$A63+$A$11,IF($C$7,8,0),1,1) -> 49708000 | D63: =OFFSET(InputPriceData!C$15,CalculationsAndCharts!$A63+$A$11,IF($C$7,8,0),1,1) -> 743.14 | E63: =OFFSET(InputPriceData!D$15,CalculationsAndCharts!$A63+$A$11,IF($C$7,8,0),1,1) -> 751.2 | F63: =OFFSET(InputPriceData!E$15,CalculationsAndCharts!$A63+$A$11,IF($C$7,8,0),1,1) -> 743.14 | G63: =OFFSET(InputPriceData!F$15,CalculationsAndCharts!$A63+$A$11,IF($C$7,8,0),1,1) -> 751.2 | H63: 751.2 | I63: 690.11 | J63: 720.655 | K63: 665.8437469 | L63: 686.2995302 | M63: 710.116 | N63: 731.502 | O63: 670.09235 | P63: 706.6708924 | W63: 665.8437469 | X63: 686.2995302 | AA63: 670.09235 | AC63: 49708000
A64: 32 | B64: =OFFSET(InputPriceData!B$15,CalculationsAndCharts!$A64+$A$11,0,1,1) -> 2010-12-01 | C64: =OFFSET(InputPriceData!G$15,CalculationsAndCharts!$A64+$A$11,IF($C$7,8,0),1,1) -> 45481100 | D64: =OFFSET(InputPriceData!C$15,CalculationsAndCharts!$A64+$A$11,IF($C$7,8,0),1,1) -> 734.98 | E64: =OFFSET(InputPriceData!D$15,CalculationsAndCharts!$A64+$A$11,IF($C$7,8,0),1,1) -> 743.93 | F64: =OFFSET(InputPriceData!E$15,CalculationsAndCharts!$A64+$A$11,IF($C$7,8,0),1,1) -> 734.7 | G64: =OFFSET(InputPriceData!F$15,CalculationsAndCharts!$A64+$A$11,IF($C$7,8,0),1,1) -> 743.14 | H64: 743.93 | I64: 690.11 | J64: 717.02 | K64: 664.7364488 | L64: 684.9884096 | M64: 708.2995 | N64: 727.159 | O64: 669.48295 | P64: 704.8533778 | W64: 664.7364488 | X64: 684.9884096 | AA64: 669.48295 | AC64: 45481100
A65: 33 | B65: =OFFSET(InputPriceData!B$15,CalculationsAndCharts!$A65+$A$11,0,1,1) -> 2010-11-30 | C65: =OFFSET(InputPriceData!G$15,CalculationsAndCharts!$A65+$A$11,IF($C$7,8,0),1,1) -> 42847000 | D65: =OFFSET(InputPriceData!C$15,CalculationsAndCharts!$A65+$A$11,IF($C$7,8,0),1,1) -> 725.56 | E65: =OFFSET(InputPriceData!D$15,CalculationsAndCharts!$A65+$A$11,IF($C$7,8,0),1,1) -> 730.71 | F65: =OFFSET(InputPriceData!E$15,CalculationsAndCharts!$A65+$A$11,IF($C$7,8,0),1,1) -> 721.69 | G65: =OFFSET(InputPriceData!F$15,CalculationsAndCharts!$A65+$A$11,IF($C$7,8,0),1,1) -> 727.01 | H65: 738.99 | I65: 685.42 | J65: 712.205 | K65: 663.6802155 | L65: 683.81363 | M65: 706.8465 | N65: 723.379 | O65: 668.8914 | P65: 703.2906585 | W65: 663.6802155 | X65: 683.81363 | AA65: 668.8914 | AC65: 42847000
A66: 34 | B66: =OFFSET(InputPriceData!B$15,CalculationsAndCharts!$A66+$A$11,0,1,1) -> 2010-11-29 | C66: =OFFSET(InputPriceData!G$15,CalculationsAndCharts!$A66+$A$11,IF($C$7,8,0),1,1) -> 36734500 | D66: =OFFSET(InputPriceData!C$15,CalculationsAndCharts!$A66+$A$11,IF($C$7,8,0),1,1) -> 732.71 | E66: =OFFSET(InputPriceData!D$15,CalculationsAndCharts!$A66+$A$11,IF($C$7,8,0),1,1) -> 733.54 | F66: =OFFSET(InputPriceData!E$15,CalculationsAndCharts!$A66+$A$11,IF($C$7,8,0),1,1) -> 720.58 | G66: =OFFSET(InputPriceData!F$15,CalculationsAndCharts!$A66+$A$11,IF($C$7,8,0),1,1) -> 731.95 | H66: 738.99 | I66: 685.42 | J66: 712.205 | K66: 662.6999168 | L66: 682.9409761 | M66: 705.5265 | N66: 722.672 | O66: 668.36055 | P66: 702.3225221 | W66: 662.6999168 | X66: 682.9409761 | AA66: 668.36055 | AD66: 36734500
A67: 35 | B67: =OFFSET(InputPriceData!B$15,CalculationsAndCharts!$A67+$A$11,0,1,1) -> 2010-11-26 | C67: =OFFSET(InputPriceData!G$15,CalculationsAndCharts!$A67+$A$11,IF($C$7,8,0),1,1) -> 16138200 | D67: =OFFSET(InputPriceData!C$15,CalculationsAndCharts!$A67+$A$11,IF($C$7,8,0),1,1) -> 736.52 | E67: =OFFSET(InputPriceData!D$15,CalculationsAndCharts!$A67+$A$11,IF($C$7,8,0),1,1) -> 736.52 | F67: =OFFSET(InputPriceData!E$15,CalculationsAndCharts!$A67+$A$11,IF($C$7,8,0),1,1) -> 730.2 | G67: =OFFSET(InputPriceData!F$15,CalculationsAndCharts!$A67+$A$11,IF($C$7,8,0),1,1) -> 732.73 | H67: 738.99 | I67: 682.32 | J67: 710.655 | K67: 661.6998141 | L67: 681.9508948 | M67: 704.2065 | N67: 721.404 | O67: 667.7544 | P67: 701.1132373 | W67: 661.6998141 | X67: 681.9508948 | AA67: 667.7544 | AD67: 16138200
A68: 36 | B68: =OFFSET(InputPriceData!B$15,CalculationsAndCharts!$A68+$A$11,0,1,1) -> 2010-11-24 | C68: =OFFSET(InputPriceData!G$15,CalculationsAndCharts!$A68+$A$11,IF($C$7,8,0),1,1) -> 33842500 | D68: =OFFSET(InputPriceData!C$15,CalculationsAndCharts!$A68+$A$11,IF($C$7,8,0),1,1) -> 725.45 | E68: =OFFSET(InputPriceData!D$15,CalculationsAndCharts!$A68+$A$11,IF($C$7,8,0),1,1) -> 736.53 | F68: =OFFSET(InputPriceData!E$15,CalculationsAndCharts!$A68+$A$11,IF($C$7,8,0),1,1) -> 725.45 | G68: =OFFSET(InputPriceData!F$15,CalculationsAndCharts!$A68+$A$11,IF($C$7,8,0),1,1) -> 736.53 | H68: 738.99 | I68: 680.24 | J68: 709.615 | K68: 660.7108204 | L68: 680.9250543 | M68: 702.886 | N68: 721.289 | O68: 667.11805 | P68: 699.8227572 | W68: 660.7108204 | X68: 680.9250543 | AA68: 667.11805 | AC68: 33842500
A69: 37 | B69: =OFFSET(InputPriceData!B$15,CalculationsAndCharts!$A69+$A$11,0,1,1) -> 2010-11-23 | C69: =OFFSET(InputPriceData!G$15,CalculationsAndCharts!$A69+$A$11,IF($C$7,8,0),1,1) -> 41330700 | D69: =OFFSET(InputPriceData!C$15,CalculationsAndCharts!$A69+$A$11,IF($C$7,8,0),1,1) -> 720.07 | E69: =OFFSET(InputPriceData!D$15,CalculationsAndCharts!$A69+$A$11,IF($C$7,8,0),1,1) -> 721.11 | F69: =OFFSET(InputPriceData!E$15,CalculationsAndCharts!$A69+$A$11,IF($C$7,8,0),1,1) -> 715.08 | G69: =OFFSET(InputPriceData!F$15,CalculationsAndCharts!$A69+$A$11,IF($C$7,8,0),1,1) -> 719.93 | H69: 738.99 | I69: 680.24 | J69: 709.615 | K69: 659.7228572 | L69: 679.8017221 | M69: 701.2635 | N69: 721.123 | O69: 666.4145 | P69: 698.3245024 | W69: 659.7228572 | X69: 679.8017221 | AA69: 666.4145 | AD69: 41330700
A70: 38 | B70: =OFFSET(InputPriceData!B$15,CalculationsAndCharts!$A70+$A$11,0,1,1) -> 2010-11-22 | C70: =OFFSET(InputPriceData!G$15,CalculationsAndCharts!$A70+$A$11,IF($C$7,8,0),1,1) -> 36895000 | D70: =OFFSET(InputPriceData!C$15,CalculationsAndCharts!$A70+$A$11,IF($C$7,8,0),1,1) -> 722.34 | E70: =OFFSET(InputPriceData!D$15,CalculationsAndCharts!$A70+$A$11,IF($C$7,8,0),1,1) -> 728.4 | F70: =OFFSET(InputPriceData!E$15,CalculationsAndCharts!$A70+$A$11,IF($C$7,8,0),1,1) -> 717.66 | G70: =OFFSET(InputPriceData!F$15,CalculationsAndCharts!$A70+$A$11,IF($C$7,8,0),1,1) -> 727.33 | H70: 738.99 | I70: 669.43 | J70: 704.21 | K70: 658.7149351 | L70: 678.9910498 | M70: 699.641 | N70: 721.728 | O70: 665.7907 | P70: 697.4426454 | W70: 658.7149351 | X70: 678.9910498 | AA70: 665.7907 | AC70: 36895000
A71: 39 | B71: =OFFSET(InputPriceData!B$15,CalculationsAndCharts!$A71+$A$11,0,1,1) -> 2010-11-19 | C71: =OFFSET(InputPriceData!G$15,CalculationsAndCharts!$A71+$A$11,IF($C$7,8,0),1,1) -> 36753900 | D71: =OFFSET(InputPriceData!C$15,CalculationsAndCharts!$A71+$A$11,IF($C$7,8,0),1,1) -> 720.66 | E71: =OFFSET(InputPriceData!D$15,CalculationsAndCharts!$A71+$A$11,IF($C$7,8,0),1,1) -> 725.06 | F71: =OFFSET(InputPriceData!E$15,CalculationsAndCharts!$A71+$A$11,IF($C$7,8,0),1,1) -> 715.53 | G71: =OFFSET(InputPriceData!F$15,CalculationsAndCharts!$A71+$A$11,IF($C$7,8,0),1,1) -> 724.36 | H71: 738.99 | I71: 665.99 | J71: 702.49 | K71: 657.7958429 | L71: 678.0145053 | M71: 698.546 | N71: 722.672 | O71: 665.0865 | P71: 696.2227533 | W71: 657.7958429 | X71: 678.0145053 | AA71: 665.0865 | AC71: 36753900
A72: 40 | B72: =OFFSET(InputPriceData!B$15,CalculationsAndCharts!$A72+$A$11,0,1,1) -> 2010-11-18 | C72: =OFFSET(InputPriceData!G$15,CalculationsAndCharts!$A72+$A$11,IF($C$7,8,0),1,1) -> 46872600 | D72: =OFFSET(InputPriceData!C$15,CalculationsAndCharts!$A72+$A$11,IF($C$7,8,0),1,1) -> 713.96 | E72: =OFFSET(InputPriceData!D$15,CalculationsAndCharts!$A72+$A$11,IF($C$7,8,0),1,1) -> 724.11 | F72: =OFFSET(InputPriceData!E$15,CalculationsAndCharts!$A72+$A$11,IF($C$7,8,0),1,1) -> 713.96 | G72: =OFFSET(InputPriceData!F$15,CalculationsAndCharts!$A72+$A$11,IF($C$7,8,0),1,1) -> 720.84 | H72: 738.99 | I72: 665.99 | J72: 702.49 | K72: 656.8929307 | L72: 677.0782327 | M72: 697.623 | N72: 723.895 | O72: 664.4296 | P72: 695.0742943 | W72: 656.8929307 | X72: 677.0782327 | AA72: 664.4296 | AC72: 46872600
A73: 41 | B73: =OFFSET(InputPriceData!B$15,CalculationsAndCharts!$A73+$A$11,0,1,1) -> 2010-11-17 | C73: =OFFSET(InputPriceData!G$15,CalculationsAndCharts!$A73+$A$11,IF($C$7,8,0),1,1) -> 39047800 | D73: =OFFSET(InputPriceData!C$15,CalculationsAndCharts!$A73+$A$11,IF($C$7,8,0),1,1) -> 706.42 | E73: =OFFSET(InputPriceData!D$15,CalculationsAndCharts!$A73+$A$11,IF($C$7,8,0),1,1) -> 709.27 | F73: =OFFSET(InputPriceData!E$15,CalculationsAndCharts!$A73+$A$11,IF($C$7,8,0),1,1) -> 704.36 | G73: =OFFSET(InputPriceData!F$15,CalculationsAndCharts!$A73+$A$11,IF($C$7,8,0),1,1) -> 707.77 | H73: 738.99 | I73: 665.99 | J73: 702.49 | K73: 655.9717777 | L73: 676.1941566 | M73: 696.2 | N73: 725.157 | O73: 663.7738 | P73: 694.0226328 | W73: 655.9717777 | X73: 676.1941566 | AA73: 663.7738 | AC73: 39047800
A74: 42 | B74: =OFFSET(InputPriceData!B$15,CalculationsAndCharts!$A74+$A$11,0,1,1) -> 2010-11-16 | C74: =OFFSET(InputPriceData!G$15,CalculationsAndCharts!$A74+$A$11,IF($C$7,8,0),1,1) -> 51163800 | D74: =OFFSET(InputPriceData!C$15,CalculationsAndCharts!$A74+$A$11,IF($C$7,8,0),1,1) -> 715.05 | E74: =OFFSET(InputPriceData!D$15,CalculationsAndCharts!$A74+$A$11,IF($C$7,8,0),1,1) -> 715.33 | F74: =OFFSET(InputPriceData!E$15,CalculationsAndCharts!$A74+$A$11,IF($C$7,8,0),1,1) -> 701.43 | G74: =OFFSET(InputPriceData!F$15,CalculationsAndCharts!$A74+$A$11,IF($C$7,8,0),1,1) -> 705.34 | H74: 738.99 | I74: 665.99 | J74: 702.49 | K74: 655.0320157 | L74: 675.5562608 | M74: 693.8605 | N74: 725.894 | O74: 663.28825 | P74: 693.4615158 | W74: 655.0320157 | X74: 675.5562608 | AA74: 663.28825 | AD74: 51163800
A75: 43 | B75: =OFFSET(InputPriceData!B$15,CalculationsAndCharts!$A75+$A$11,0,1,1) -> 2010-11-15 | C75: =OFFSET(InputPriceData!G$15,CalculationsAndCharts!$A75+$A$11,IF($C$7,8,0),1,1) -> 35033700 | D75: =OFFSET(InputPriceData!C$15,CalculationsAndCharts!$A75+$A$11,IF($C$7,8,0),1,1) -> 722.35 | E75: =OFFSET(InputPriceData!D$15,CalculationsAndCharts!$A75+$A$11,IF($C$7,8,0),1,1) -> 727.02 | F75: =OFFSET(InputPriceData!E$15,CalculationsAndCharts!$A75+$A$11,IF($C$7,8,0),1,1) -> 719.54 | G75: =OFFSET(InputPriceData!F$15,CalculationsAndCharts!$A75+$A$11,IF($C$7,8,0),1,1) -> 719.94 | H75: 738.99 | I75: 659.02 | J75: 699.005 | K75: 654.0732685 | L75: 674.9545691 | M75: 691.4665 | N75: 726.649 | O75: 662.8318 | P75: 692.9766797 | W75: 654.0732685 | X75: 674.9545691 | AA75: 662.8318 | AD75: 35033700
A76: 44 | B76: =OFFSET(InputPriceData!B$15,CalculationsAndCharts!$A76+$A$11,0,1,1) -> 2010-11-12 | C76: =OFFSET(InputPriceData!G$15,CalculationsAndCharts!$A76+$A$11,IF($C$7,8,0),1,1) -> 42136200 | D76: =OFFSET(InputPriceData!C$15,CalculationsAndCharts!$A76+$A$11,IF($C$7,8,0),1,1) -> 727.74 | E76: =OFFSET(InputPriceData!D$15,CalculationsAndCharts!$A76+$A$11,IF($C$7,8,0),1,1) -> 729.26 | F76: =OFFSET(InputPriceData!E$15,CalculationsAndCharts!$A76+$A$11,IF($C$7,8,0),1,1) -> 718.8 | G76: =OFFSET(InputPriceData!F$15,CalculationsAndCharts!$A76+$A$11,IF($C$7,8,0),1,1) -> 719.27 | H76: 738.99 | I76: 659.02 | J76: 699.005 | K76: 653.1655568 | L76: 674.0457725 | M76: 689.421 | N76: 724.511 | O76: 662.27835 | P76: 691.876136 | W76: 653.1655568 | X76: 674.0457725 | AA76: 662.27835 | AD76: 42136200
A77: 45 | B77: =OFFSET(InputPriceData!B$15,CalculationsAndCharts!$A77+$A$11,0,1,1) -> 2010-11-11 | C77: =OFFSET(InputPriceData!G$15,CalculationsAndCharts!$A77+$A$11,IF($C$7,8,0),1,1) -> 39311200 | D77: =OFFSET(InputPriceData!C$15,CalculationsAndCharts!$A77+$A$11,IF($C$7,8,0),1,1) -> 734.17 | E77: =OFFSET(InputPriceData!D$15,CalculationsAndCharts!$A77+$A$11,IF($C$7,8,0),1,1) -> 734.21 | F77: =OFFSET(InputPriceData!E$15,CalculationsAndCharts!$A77+$A$11,IF($C$7,8,0),1,1) -> 724.77 | G77: =OFFSET(InputPriceData!F$15,CalculationsAndCharts!$A77+$A$11,IF($C$7,8,0),1,1) -> 731.58 | H77: 738.99 | I77: 655.91 | J77: 697.45 | K77: 652.2395074 | L77: 673.1321517 | M77: 687.293 | N77: 722.919 | O77: 661.6922 | P77: 690.7580191 | W77: 652.2395074 | X77: 673.1321517 | AA77: 661.6922 | AD77: 39311200
A78: 46 | B78: =OFFSET(InputPriceData!B$15,CalculationsAndCharts!$A78+$A$11,0,1,1) -> 2010-11-10 | C78: =OFFSET(InputPriceData!G$15,CalculationsAndCharts!$A78+$A$11,IF($C$7,8,0),1,1) -> 45613000 | D78: =OFFSET(InputPriceData!C$15,CalculationsAndCharts!$A78+$A$11,IF($C$7,8,0),1,1) -> 726.76 | E78: =OFFSET(InputPriceData!D$15,CalculationsAndCharts!$A78+$A$11,IF($C$7,8,0),1,1) -> 734.87 | F78: =OFFSET(InputPriceData!E$15,CalculationsAndCharts!$A78+$A$11,IF($C$7,8,0),1,1) -> 721.53 | G78: =OFFSET(InputPriceData!F$15,CalculationsAndCharts!$A78+$A$11,IF($C$7,8,0),1,1) -> 734.87 | H78: 738.99 | I78: 647.79 | J78: 693.39 | K78: 651.3261641 | L78: 671.9513871 | M78: 684.9215 | N78: 719.864 | O78: 661.07395 | P78: 689.0918158 | W78: 651.3261641 | X78: 671.9513871 | AA78: 661.07395 | AC78: 45613000
A79: 47 | B79: =OFFSET(InputPriceData!B$15,CalculationsAndCharts!$A79+$A$11,0,1,1) -> 2010-11-09 | C79: =OFFSET(InputPriceData!G$15,CalculationsAndCharts!$A79+$A$11,IF($C$7,8,0),1,1) -> 48480400 | D79: =OFFSET(InputPriceData!C$15,CalculationsAndCharts!$A79+$A$11,IF($C$7,8,0),1,1) -> 737.86 | E79: =OFFSET(InputPriceData!D$15,CalculationsAndCharts!$A79+$A$11,IF($C$7,8,0),1,1) -> 738.99 | F79: =OFFSET(InputPriceData!E$15,CalculationsAndCharts!$A79+$A$11,IF($C$7,8,0),1,1) -> 723.17 | G79: =OFFSET(InputPriceData!F$15,CalculationsAndCharts!$A79+$A$11,IF($C$7,8,0),1,1) -> 725.98 | H79: 738.99 | I79: 647.79 | J79: 693.39 | K79: 650.4763897 | L79: 670.680304 | M79: 682.803 | N79: 716.8 | O79: 660.4915 | P79: 687.2233185 | W79: 650.4763897 | X79: 670.680304 | AA79: 660.4915 | AD79: 48480400
A80: 48 | B80: =OFFSET(InputPriceData!B$15,CalculationsAndCharts!$A80+$A$11,0,1,1) -> 2010-11-08 | C80: =OFFSET(InputPriceData!G$15,CalculationsAndCharts!$A80+$A$11,IF($C$7,8,0),1,1) -> 39372300 | D80: =OFFSET(InputPriceData!C$15,CalculationsAndCharts!$A80+$A$11,IF($C$7,8,0),1,1) -> 734.46 | E80: =OFFSET(InputPriceData!D$15,CalculationsAndCharts!$A80+$A$11,IF($C$7,8,0),1,1) -> 737.88 | F80: =OFFSET(InputPriceData!E$15,CalculationsAndCharts!$A80+$A$11,IF($C$7,8,0),1,1) -> 731.68 | G80: =OFFSET(InputPriceData!F$15,CalculationsAndCharts!$A80+$A$11,IF($C$7,8,0),1,1) -> 736.77 | H80: 738.73 | I80: 647.79 | J80: 693.26 | K80: 649.609448 | L80: 669.5631385 | M80: 680.6845 | N80: 714.895 | O80: 659.9224 | P80: 685.6414131 | W80: 649.609448 | X80: 669.5631385 | AA80: 659.9224 | AC80: 39372300
A81: 49 | B81: =OFFSET(InputPriceData!B$15,CalculationsAndCharts!$A81+$A$11,0,1,1) -> 2010-11-05 | C81: =OFFSET(InputPriceData!G$15,CalculationsAndCharts!$A81+$A$11,IF($C$7,8,0),1,1) -> 56374600 | D81: =OFFSET(InputPriceData!C$15,CalculationsAndCharts!$A81+$A$11,IF($C$7,8,0),1,1) -> 733.55 | E81: =OFFSET(InputPriceData!D$15,CalculationsAndCharts!$A81+$A$11,IF($C$7,8,0),1,1) -> 738.73 | F81: =OFFSET(InputPriceData!E$15,CalculationsAndCharts!$A81+$A$11,IF($C$7,8,0),1,1) -> 732.61 | G81: =OFFSET(InputPriceData!F$15,CalculationsAndCharts!$A81+$A$11,IF($C$7,8,0),1,1) -> 736.59 | H81: 738.73 | I81: 647.79 | J81: 693.26 | K81: 648.7276187 | L81: 668.2054241 | M81: 678.4865 | N81: 712.007 | O81: 659.3291 | P81: 683.554532 | W81: 648.7276187 | X81: 668.2054241 | AA81: 659.3291 | AC81: 56374600
A82: 50 | B82: =OFFSET(InputPriceData!B$15,CalculationsAndCharts!$A82+$A$11,0,1,1) -> 2010-11-04 | C82: =OFFSET(InputPriceData!G$15,CalculationsAndCharts!$A82+$A$11,IF($C$7,8,0),1,1) -> 56954700 | D82: =OFFSET(InputPriceData!C$15,CalculationsAndCharts!$A82+$A$11,IF($C$7,8,0),1,1) -> 715.13 | E82: =OFFSET(InputPriceData!D$15,CalculationsAndCharts!$A82+$A$11,IF($C$7,8,0),1,1) -> 733.47 | F82: =OFFSET(InputPriceData!E$15,CalculationsAndCharts!$A82+$A$11,IF($C$7,8,0),1,1) -> 715.13 | G82: =OFFSET(InputPriceData!F$15,CalculationsAndCharts!$A82+$A$11,IF($C$7,8,0),1,1) -> 733.46 | H82: 733.47 | I82: 643.05 | J82: 688.26 | K82: 647.8279746 | L82: 666.8239175 | M82: 676.1575 | N82: 708.691 | O82: 658.73175 | P82: 681.3898191 | W82: 647.8279746 | X82: 666.8239175 | AA82: 658.73175 | AC82: 56954700
A83: 51 | B83: =OFFSET(InputPriceData!B$15,CalculationsAndCharts!$A83+$A$11,0,1,1) -> 2010-11-03 | C83: =OFFSET(InputPriceData!G$15,CalculationsAndCharts!$A83+$A$11,IF($C$7,8,0),1,1) -> 46654800 | D83: =OFFSET(InputPriceData!C$15,CalculationsAndCharts!$A83+$A$11,IF($C$7,8,0),1,1) -> 713.13 | E83: =OFFSET(InputPriceData!D$15,CalculationsAndCharts!$A83+$A$11,IF($C$7,8,0),1,1) -> 715.14 | F83: =OFFSET(InputPriceData!E$15,CalculationsAndCharts!$A83+$A$11,IF($C$7,8,0),1,1) -> 706 | G83: =OFFSET(InputPriceData!F$15,CalculationsAndCharts!$A83+$A$11,IF($C$7,8,0),1,1) -> 715.14 | H83: 715.14 | I83: 643.05 | J83: 679.095 | K83: 647.0111661 | L83: 665.477734 | M83: 674.0525 | N83: 705.157 | O83: 658.20625 | P83: 679.2645056 | W83: 647.0111661 | X83: 665.477734 | AA83: 658.20625 | AC83: 46654800
A84: 52 | B84: =OFFSET(InputPriceData!B$15,CalculationsAndCharts!$A84+$A$11,0,1,1) -> 2010-11-02 | C84: =OFFSET(InputPriceData!G$15,CalculationsAndCharts!$A84+$A$11,IF($C$7,8,0),1,1) -> 38662000 | D84: =OFFSET(InputPriceData!C$15,CalculationsAndCharts!$A84+$A$11,IF($C$7,8,0),1,1) -> 698.56 | E84: =OFFSET(InputPriceData!D$15,CalculationsAndCharts!$A84+$A$11,IF($C$7,8,0),1,1) -> 712.89 | F84: =OFFSET(InputPriceData!E$15,CalculationsAndCharts!$A84+$A$11,IF($C$7,8,0),1,1) -> 698.56 | G84: =OFFSET(InputPriceData!F$15,CalculationsAndCharts!$A84+$A$11,IF($C$7,8,0),1,1) -> 712.89 | H84: 714.05 | I84: 643.05 | J84: 678.55 | K84: 646.3630078 | L84: 664.4744559 | M84: 671.881 | N84: 703.854 | O84: 657.8286 | P84: 677.8001997 | W84: 646.3630078 | X84: 664.4744559 | AA84: 657.8286 | AC84: 38662000
A85: 53 | B85: =OFFSET(InputPriceData!B$15,CalculationsAndCharts!$A85+$A$11,0,1,1) -> 2010-11-01 | C85: =OFFSET(InputPriceData!G$15,CalculationsAndCharts!$A85+$A$11,IF($C$7,8,0),1,1) -> 41291800 | D85: =OFFSET(InputPriceData!C$15,CalculationsAndCharts!$A85+$A$11,IF($C$7,8,0),1,1) -> 706.13 | E85: =OFFSET(InputPriceData!D$15,CalculationsAndCharts!$A85+$A$11,IF($C$7,8,0),1,1) -> 710.3 | F85: =OFFSET(InputPriceData!E$15,CalculationsAndCharts!$A85+$A$11,IF($C$7,8,0),1,1) -> 693.7 | G85: =OFFSET(InputPriceData!F$15,CalculationsAndCharts!$A85+$A$11,IF($C$7,8,0),1,1) -> 698.56 | H85: 714.05 | I85: 643.05 | J85: 678.55 | K85: 645.7127655 | L85: 663.4963641 | M85: 669.464 | N85: 701.98 | O85: 657.5099 | P85: 676.3679629 | W85: 645.7127655 | X85: 663.4963641 | AA85: 657.5099 | AD85: 41291800
A86: 54 | B86: =OFFSET(InputPriceData!B$15,CalculationsAndCharts!$A86+$A$11,0,1,1) -> 2010-10-29 | C86: =OFFSET(InputPriceData!G$15,CalculationsAndCharts!$A86+$A$11,IF($C$7,8,0),1,1) -> 35378800 | D86: =OFFSET(InputPriceData!C$15,CalculationsAndCharts!$A86+$A$11,IF($C$7,8,0),1,1) -> 701.03 | E86: =OFFSET(InputPriceData!D$15,CalculationsAndCharts!$A86+$A$11,IF($C$7,8,0),1,1) -> 705.6 | F86: =OFFSET(InputPriceData!E$15,CalculationsAndCharts!$A86+$A$11,IF($C$7,8,0),1,1) -> 699.3 | G86: =OFFSET(InputPriceData!F$15,CalculationsAndCharts!$A86+$A$11,IF($C$7,8,0),1,1) -> 703.35 | H86: 714.05 | I86: 641.4 | J86: 677.725 | K86: 645.0493871 | L86: 662.7880078 | M86: 667.047 | N86: 703.137 | O86: 657.2069 | P86: 675.4621655 | W86: 645.0493871 | X86: 662.7880078 | AA86: 657.2069 | AC86: 35378800
A87: 55 | B87: =OFFSET(InputPriceData!B$15,CalculationsAndCharts!$A87+$A$11,0,1,1) -> 2010-10-28 | C87: =OFFSET(InputPriceData!G$15,CalculationsAndCharts!$A87+$A$11,IF($C$7,8,0),1,1) -> 42834600 | D87: =OFFSET(InputPriceData!C$15,CalculationsAndCharts!$A87+$A$11,IF($C$7,8,0),1,1) -> 707.74 | E87: =OFFSET(InputPriceData!D$15,CalculationsAndCharts!$A87+$A$11,IF($C$7,8,0),1,1) -> 709.71 | F87: =OFFSET(InputPriceData!E$15,CalculationsAndCharts!$A87+$A$11,IF($C$7,8,0),1,1) -> 698.12 | G87: =OFFSET(InputPriceData!F$15,CalculationsAndCharts!$A87+$A$11,IF($C$7,8,0),1,1) -> 701.03 | H87: 714.05 | I87: 633.42 | J87: 673.735 | K87: 644.3892737 | L87: 661.9685737 | M87: 664.655 | N87: 703.118 | O87: 656.9223 | P87: 674.3238865 | W87: 644.3892737 | X87: 661.9685737 | AA87: 656.9223 | AD87: 42834600
A88: 56 | B88: =OFFSET(InputPriceData!B$15,CalculationsAndCharts!$A88+$A$11,0,1,1) -> 2010-10-27 | C88: =OFFSET(InputPriceData!G$15,CalculationsAndCharts!$A88+$A$11,IF($C$7,8,0),1,1) -> 43356700 | D88: =OFFSET(InputPriceData!C$15,CalculationsAndCharts!$A88+$A$11,IF($C$7,8,0),1,1) -> 703.18 | E88: =OFFSET(InputPriceData!D$15,CalculationsAndCharts!$A88+$A$11,IF($C$7,8,0),1,1) -> 705.66 | F88: =OFFSET(InputPriceData!E$15,CalculationsAndCharts!$A88+$A$11,IF($C$7,8,0),1,1) -> 696.24 | G88: =OFFSET(InputPriceData!F$15,CalculationsAndCharts!$A88+$A$11,IF($C$7,8,0),1,1) -> 704.23 | H88: 714.05 | I88: 630.36 | J88: 672.205 | K88: 643.7964307 | L88: 661.1794539 | M88: 662.6225 | N88: 703.484 | O88: 656.63495 | P88: 673.2338411 | W88: 643.7964307 | X88: 661.1794539 | AA88: 656.63495 | AC88: 43356700
A89: 57 | B89: =OFFSET(InputPriceData!B$15,CalculationsAndCharts!$A89+$A$11,0,1,1) -> 2010-10-26 | C89: =OFFSET(InputPriceData!G$15,CalculationsAndCharts!$A89+$A$11,IF($C$7,8,0),1,1) -> 42036800 | D89: =OFFSET(InputPriceData!C$15,CalculationsAndCharts!$A89+$A$11,IF($C$7,8,0),1,1) -> 704.19 | E89: =OFFSET(InputPriceData!D$15,CalculationsAndCharts!$A89+$A$11,IF($C$7,8,0),1,1) -> 710.84 | F89: =OFFSET(InputPriceData!E$15,CalculationsAndCharts!$A89+$A$11,IF($C$7,8,0),1,1) -> 700.6 | G89: =OFFSET(InputPriceData!F$15,CalculationsAndCharts!$A89+$A$11,IF($C$7,8,0),1,1) -> 706.93 | H89: 714.05 | I89: 630.36 | J89: 672.205 | K89: 643.2225202 | L89: 660.3097459 | M89: 660.403 | N89: 703.708 | O89: 656.2913 | P89: 671.9686917 | W89: 643.2225202 | X89: 660.3097459 | AA89: 656.2913 | AC89: 42036800
A90: 58 | B90: =OFFSET(InputPriceData!B$15,CalculationsAndCharts!$A90+$A$11,0,1,1) -> 2010-10-25 | C90: =OFFSET(InputPriceData!G$15,CalculationsAndCharts!$A90+$A$11,IF($C$7,8,0),1,1) -> 42213800 | D90: =OFFSET(InputPriceData!C$15,CalculationsAndCharts!$A90+$A$11,IF($C$7,8,0),1,1) -> 705.66 | E90: =OFFSET(InputPriceData!D$15,CalculationsAndCharts!$A90+$A$11,IF($C$7,8,0),1,1) -> 714.05 | F90: =OFFSET(InputPriceData!E$15,CalculationsAndCharts!$A90+$A$11,IF($C$7,8,0),1,1) -> 705.66 | G90: =OFFSET(InputPriceData!F$15,CalculationsAndCharts!$A90+$A$11,IF($C$7,8,0),1,1) -> 707.89 | H90: 714.05 | I90: 628.51 | J90: 671.28 | K90: 642.6370156 | L90: 659.3679226 | M90: 657.512 | N90: 702.619 | O90: 655.9766 | P90: 670.5416996 | W90: 642.6370156 | X90: 659.3679226 | AA90: 655.9766 | AC90: 42213800
A91: 59 | B91: =OFFSET(InputPriceData!B$15,CalculationsAndCharts!$A91+$A$11,0,1,1) -> 2010-10-22 | C91: =OFFSET(InputPriceData!G$15,CalculationsAndCharts!$A91+$A$11,IF($C$7,8,0),1,1) -> 31778900 | D91: =OFFSET(InputPriceData!C$15,CalculationsAndCharts!$A91+$A$11,IF($C$7,8,0),1,1) -> 699.82 | E91: =OFFSET(InputPriceData!D$15,CalculationsAndCharts!$A91+$A$11,IF($C$7,8,0),1,1) -> 703.57 | F91: =OFFSET(InputPriceData!E$15,CalculationsAndCharts!$A91+$A$11,IF($C$7,8,0),1,1) -> 698.19 | G91: =OFFSET(InputPriceData!F$15,CalculationsAndCharts!$A91+$A$11,IF($C$7,8,0),1,1) -> 703.43 | H91: 711.43 | I91: 628.51 | J91: 669.97 | K91: 642.0583694 | L91: 658.3876786 | M91: 654.7135 | N91: 701.178 | O91: 655.65995 | P91: 669.0172791 | W91: 642.0583694 | X91: 658.3876786 | AA91: 655.65995 | AC91: 31778900
A92: 60 | B92: =OFFSET(InputPriceData!B$15,CalculationsAndCharts!$A92+$A$11,0,1,1) -> 2010-10-21 | C92: =OFFSET(InputPriceData!G$15,CalculationsAndCharts!$A92+$A$11,IF($C$7,8,0),1,1) -> 46254700 | D92: =OFFSET(InputPriceData!C$15,CalculationsAndCharts!$A92+$A$11,IF($C$7,8,0),1,1) -> 705.33 | E92: =OFFSET(InputPriceData!D$15,CalculationsAndCharts!$A92+$A$11,IF($C$7,8,0),1,1) -> 709.42 | F92: =OFFSET(InputPriceData!E$15,CalculationsAndCharts!$A92+$A$11,IF($C$7,8,0),1,1) -> 690.49 | G92: =OFFSET(InputPriceData!F$15,CalculationsAndCharts!$A92+$A$11,IF($C$7,8,0),1,1) -> 698.12 | H92: 711.43 | I92: 622.99 | J92: 667.21 | K92: 641.4944981 | L92: 657.4777328 | M92: 651.9545 | N92: 700.217 | O92: 655.35265 | P92: 667.6126783 | W92: 641.4944981 | X92: 657.4777328 | AA92: 655.35265 | AD92: 46254700
A93: 61 | B93: =OFFSET(InputPriceData!B$15,CalculationsAndCharts!$A93+$A$11,0,1,1) -> 2010-10-20 | C93: =OFFSET(InputPriceData!G$15,CalculationsAndCharts!$A93+$A$11,IF($C$7,8,0),1,1) -> 50278800 | D93: =OFFSET(InputPriceData!C$15,CalculationsAndCharts!$A93+$A$11,IF($C$7,8,0),1,1) -> 696.96 | E93: =OFFSET(InputPriceData!D$15,CalculationsAndCharts!$A93+$A$11,IF($C$7,8,0),1,1) -> 705.49 | F93: =OFFSET(InputPriceData!E$15,CalculationsAndCharts!$A93+$A$11,IF($C$7,8,0),1,1) -> 696.23 | G93: =OFFSET(InputPriceData!F$15,CalculationsAndCharts!$A93+$A$11,IF($C$7,8,0),1,1) -> 702.11 | H93: 711.43 | I93: 603.33 | J93: 657.38 | K93: 640.974993 | L93: 656.6566768 | M93: 649.142 | N93: 698.828 | O93: 655.0518 | P93: 666.3674815 | W93: 640.974993 | X93: 656.6566768 | AA93: 655.0518 | AC93: 50278800
A94: 62 | B94: =OFFSET(InputPriceData!B$15,CalculationsAndCharts!$A94+$A$11,0,1,1) -> 2010-10-19 | C94: =OFFSET(InputPriceData!G$15,CalculationsAndCharts!$A94+$A$11,IF($C$7,8,0),1,1) -> 56001200 | D94: =OFFSET(InputPriceData!C$15,CalculationsAndCharts!$A94+$A$11,IF($C$7,8,0),1,1) -> 702.43 | E94: =OFFSET(InputPriceData!D$15,CalculationsAndCharts!$A94+$A$11,IF($C$7,8,0),1,1) -> 706.93 | F94: =OFFSET(InputPriceData!E$15,CalculationsAndCharts!$A94+$A$11,IF($C$7,8,0),1,1) -> 690.11 | G94: =OFFSET(InputPriceData!F$15,CalculationsAndCharts!$A94+$A$11,IF($C$7,8,0),1,1) -> 694.15 | H94: 711.43 | I94: 597.33 | J94: 654.38 | K94: 640.6435787 | L94: 655.7384279 | M94: 647.3125 | N94: 697.15 | O94: 654.7337 | P94: 664.9086032 | W94: 640.6435787 | X94: 655.7384279 | AA94: 654.7337 | AD94: 56001200
A95: 63 | B95: =OFFSET(InputPriceData!B$15,CalculationsAndCharts!$A95+$A$11,0,1,1) -> 2010-10-18 | C95: =OFFSET(InputPriceData!G$15,CalculationsAndCharts!$A95+$A$11,IF($C$7,8,0),1,1) -> 44500500 | D95: =OFFSET(InputPriceData!C$15,CalculationsAndCharts!$A95+$A$11,IF($C$7,8,0),1,1) -> 703.16 | E95: =OFFSET(InputPriceData!D$15,CalculationsAndCharts!$A95+$A$11,IF($C$7,8,0),1,1) -> 710.13 | F95: =OFFSET(InputPriceData!E$15,CalculationsAndCharts!$A95+$A$11,IF($C$7,8,0),1,1) -> 703.02 | G95: =OFFSET(InputPriceData!F$15,CalculationsAndCharts!$A95+$A$11,IF($C$7,8,0),1,1) -> 710.13 | H95: 711.43 | I95: 597.33 | J95: 654.38 | K95: 640.3660753 | L95: 654.9624365 | M95: 645.783 | N95: 696.67 | O95: 654.46345 | P95: 663.7150768 | W95: 640.3660753 | X95: 654.9624365 | AA95: 654.46345 | AC95: 44500500
A96: 64 | B96: =OFFSET(InputPriceData!B$15,CalculationsAndCharts!$A96+$A$11,0,1,1) -> 2010-10-15 | C96: =OFFSET(InputPriceData!G$15,CalculationsAndCharts!$A96+$A$11,IF($C$7,8,0),1,1) -> 57249100 | D96: =OFFSET(InputPriceData!C$15,CalculationsAndCharts!$A96+$A$11,IF($C$7,8,0),1,1) -> 709.06 | E96: =OFFSET(InputPriceData!D$15,CalculationsAndCharts!$A96+$A$11,IF($C$7,8,0),1,1) -> 711.43 | F96: =OFFSET(InputPriceData!E$15,CalculationsAndCharts!$A96+$A$11,IF($C$7,8,0),1,1) -> 699.79 | G96: =OFFSET(InputPriceData!F$15,CalculationsAndCharts!$A96+$A$11,IF($C$7,8,0),1,1) -> 703.16 | H96: 711.43 | I96: 596.18 | J96: 653.805 | K96: 640.0829657 | L96: 653.8479403 | M96: 644.0035 | N96: 692.602 | O96: 654.03975 | P96: 661.8205901 | W96: 640.0829657 | X96: 653.8479403 | AA96: 654.03975 | AD96: 57249100
A97: 65 | B97: =OFFSET(InputPriceData!B$15,CalculationsAndCharts!$A97+$A$11,0,1,1) -> 2010-10-14 | C97: =OFFSET(InputPriceData!G$15,CalculationsAndCharts!$A97+$A$11,IF($C$7,8,0),1,1) -> 49694100 | D97: =OFFSET(InputPriceData!C$15,CalculationsAndCharts!$A97+$A$11,IF($C$7,8,0),1,1) -> 706.37 | E97: =OFFSET(InputPriceData!D$15,CalculationsAndCharts!$A97+$A$11,IF($C$7,8,0),1,1) -> 708.62 | F97: =OFFSET(InputPriceData!E$15,CalculationsAndCharts!$A97+$A$11,IF($C$7,8,0),1,1) -> 699.5 | G97: =OFFSET(InputPriceData!F$15,CalculationsAndCharts!$A97+$A$11,IF($C$7,8,0),1,1) -> 704.69 | H97: 710.64 | I97: 596.18 | J97: 653.41 | K97: 639.8057529 | L97: 652.8517371 | M97: 642.2815 | N97: 690.215 | O97: 653.691 | P97: 660.1332672 | W97: 639.8057529 | X97: 652.8517371 | AA97: 653.691 | AC97: =IF(G97>=D97,C97,NA()) ->  | AD97: =IF(G97<D97,C97,NA()) -> 49694100
A98: 66 | B98: =OFFSET(InputPriceData!B$15,CalculationsAndCharts!$A98+$A$11,0,1,1) -> 2010-10-13 | C98: =OFFSET(InputPriceData!G$15,CalculationsAndCharts!$A98+$A$11,IF($C$7,8,0),1,1) -> 49694100 | D98: =OFFSET(InputPriceData!C$15,CalculationsAndCharts!$A98+$A$11,IF($C$7,8,0),1,1) -> 698.98 | E98: =OFFSET(InputPriceData!D$15,CalculationsAndCharts!$A98+$A$11,IF($C$7,8,0),1,1) -> 710.64 | F98: =OFFSET(InputPriceData!E$15,CalculationsAndCharts!$A98+$A$11,IF($C$7,8,0),1,1) -> 697.81 | G98: =OFFSET(InputPriceData!F$15,CalculationsAndCharts!$A98+$A$11,IF($C$7,8,0),1,1) -> 706.47 | H98: =MAX(OFFSET(E98,0,0,$A$19,1)) -> 710.64 | I98: =MIN(OFFSET(F98,0,0,$A$19,1)) -> 589.38 | J98: =(H98+I98)/2 -> 650.01 | K98: =$C$20*$J98+$D$20*K99 -> 639.5309196 | L98: =IF($A98>$A$8,0,IF($A98=$A$8,$G98,$C$20*$G98+$D$20*L99)) -> 651.8044994 | M98: =AVERAGE(OFFSET(J98,0,0,$A$21,1)) -> 640.599 | N98: =IF($A98>$A$8,0,IF($A98=$A$8,$G98,AVERAGE(OFFSET($G98,0,0,$A$21,1)))) -> 687.36 | O98: =IF($A98>$A$8,0,IF($A98=$A$8,$G98,AVERAGE(OFFSET($G98,0,0,$A$16,1)))) -> 653.33345 | P98: =IF($A98>$A$8,0,IF($A98=$A$8,$G98,$C$17*$G98+$D$17*P99)) -> 658.3146251 | T98: =IF($R$4,H98,NA()) ->  | U98: =IF($R$5,I98,NA()) ->  | V98: =IF($R$6,J98,NA()) ->  | W98: =IF($R$8,K98,NA()) -> 639.5309196 | X98: =IF($R$9,L98,NA()) -> 651.8044994 | Y98: =IF($R$11,M98,NA()) ->  | Z98: =IF($R$12,N98,NA()) ->  | AA98: =IF($R$14,O98,NA()) -> 653.33345 | AB98: =IF($R$15,P98,NA()) ->  | AC98: 49694100
A99: 67 | B99: =OFFSET(InputPriceData!B$15,CalculationsAndCharts!$A99+$A$11,0,1,1) -> 2010-10-12 | C99: =OFFSET(InputPriceData!G$15,CalculationsAndCharts!$A99+$A$11,IF($C$7,8,0),1,1) -> 40761700 | D99: =OFFSET(InputPriceData!C$15,CalculationsAndCharts!$A99+$A$11,IF($C$7,8,0),1,1) -> 693.46 | E99: =OFFSET(InputPriceData!D$15,CalculationsAndCharts!$A99+$A$11,IF($C$7,8,0),1,1) -> 697.61 | F99: =OFFSET(InputPriceData!E$15,CalculationsAndCharts!$A99+$A$11,IF($C$7,8,0),1,1) -> 685.42 | G99: =OFFSET(InputPriceData!F$15,CalculationsAndCharts!$A99+$A$11,IF($C$7,8,0),1,1) -> 696.04 | H99: 698.01 | I99: 588.58 | J99: 643.295 | K99: 639.319221 | L99: 650.7001459 | M99: 638.9715 | N99: 684.477 | O99: 652.96985 | P99: 656.3490996 | W99: 639.319221 | X99: 650.7001459 | AA99: 652.96985 | AC99: 40761700
A100: 68 | B100: =OFFSET(InputPriceData!B$15,CalculationsAndCharts!$A100+$A$11,0,1,1) -> 2010-10-11 | C100: =OFFSET(InputPriceData!G$15,CalculationsAndCharts!$A100+$A$11,IF($C$7,8,0),1,1) -> 31181100 | D100: =OFFSET(InputPriceData!C$15,CalculationsAndCharts!$A100+$A$11,IF($C$7,8,0),1,1) -> 693.68 | E100: =OFFSET(InputPriceData!D$15,CalculationsAndCharts!$A100+$A$11,IF($C$7,8,0),1,1) -> 698.01 | F100: =OFFSET(InputPriceData!E$15,CalculationsAndCharts!$A100+$A$11,IF($C$7,8,0),1,1) -> 692.14 | G100: =OFFSET(InputPriceData!F$15,CalculationsAndCharts!$A100+$A$11,IF($C$7,8,0),1,1) -> 693.48 | H100: 698.01 | I100: 588.58 | J100: 643.295 | K100: 639.2389022 | L100: 649.7841893 | M100: 637.865 | N100: 682.416 | O100: 652.66 | P100: 654.7290628 | W100: 639.2389022 | X100: 649.7841893 | AA100: 652.66 | AD100: 31181100
A101: 69 | B101: =OFFSET(InputPriceData!B$15,CalculationsAndCharts!$A101+$A$11,0,1,1) -> 2010-10-08 | C101: =OFFSET(InputPriceData!G$15,CalculationsAndCharts!$A101+$A$11,IF($C$7,8,0),1,1) -> 38714200 | D101: =OFFSET(InputPriceData!C$15,CalculationsAndCharts!$A101+$A$11,IF($C$7,8,0),1,1) -> 684.56 | E101: =OFFSET(InputPriceData!D$15,CalculationsAndCharts!$A101+$A$11,IF($C$7,8,0),1,1) -> 696.18 | F101: =OFFSET(InputPriceData!E$15,CalculationsAndCharts!$A101+$A$11,IF($C$7,8,0),1,1) -> 682.32 | G101: =OFFSET(InputPriceData!F$15,CalculationsAndCharts!$A101+$A$11,IF($C$7,8,0),1,1) -> 693.82 | H101: 696.18 | I101: 588.58 | J101: 642.38 | K101: 639.1569608 | L101: 648.9014456 | M101: 636.5835 | N101: 679.897 | O101: 652.3475 | P101: 653.1473919 | W101: 639.1569608 | X101: 648.9014456 | AA101: 652.3475 | AC101: 38714200
A102: 70 | B102: =OFFSET(InputPriceData!B$15,CalculationsAndCharts!$A102+$A$11,0,1,1) -> 2010-10-07 | C102: =OFFSET(InputPriceData!G$15,CalculationsAndCharts!$A102+$A$11,IF($C$7,8,0),1,1) -> 39105500 | D102: =OFFSET(InputPriceData!C$15,CalculationsAndCharts!$A102+$A$11,IF($C$7,8,0),1,1) -> 685.27 | E102: =OFFSET(InputPriceData!D$15,CalculationsAndCharts!$A102+$A$11,IF($C$7,8,0),1,1) -> 689.38 | F102: =OFFSET(InputPriceData!E$15,CalculationsAndCharts!$A102+$A$11,IF($C$7,8,0),1,1) -> 680.24 | G102: =OFFSET(InputPriceData!F$15,CalculationsAndCharts!$A102+$A$11,IF($C$7,8,0),1,1) -> 684.23 | H102: 689.59 | I102: 588.58 | J102: 639.085 | K102: 639.0918489 | L102: 647.9940001 | M102: 635.3935 | N102: 677.616 | O102: 651.9964 | P102: 651.4872855 | W102: 639.0918489 | X102: 647.9940001 | AA102: 651.9964 | AD102: 39105500
A103: 71 | B103: =OFFSET(InputPriceData!B$15,CalculationsAndCharts!$A103+$A$11,0,1,1) -> 2010-10-06 | C103: =OFFSET(InputPriceData!G$15,CalculationsAndCharts!$A103+$A$11,IF($C$7,8,0),1,1) -> 40731600 | D103: =OFFSET(InputPriceData!C$15,CalculationsAndCharts!$A103+$A$11,IF($C$7,8,0),1,1) -> 687.97 | E103: =OFFSET(InputPriceData!D$15,CalculationsAndCharts!$A103+$A$11,IF($C$7,8,0),1,1) -> 689.44 | F103: =OFFSET(InputPriceData!E$15,CalculationsAndCharts!$A103+$A$11,IF($C$7,8,0),1,1) -> 682.61 | G103: =OFFSET(InputPriceData!F$15,CalculationsAndCharts!$A103+$A$11,IF($C$7,8,0),1,1) -> 685.33 | H103: 689.59 | I103: 588.58 | J103: 639.085 | K103: 639.0919873 | L103: 647.2619597 | M103: 634.533 | N103: 674.077 | O103: 651.66825 | P103: 650.1508481 | W103: 639.0919873 | X103: 647.2619597 | AA103: 651.66825 | AD103: 40731600
A104: 72 | B104: =OFFSET(InputPriceData!B$15,CalculationsAndCharts!$A104+$A$11,0,1,1) -> 2010-10-05 | C104: =OFFSET(InputPriceData!G$15,CalculationsAndCharts!$A104+$A$11,IF($C$7,8,0),1,1) -> 40688400 | D104: =OFFSET(InputPriceData!C$15,CalculationsAndCharts!$A104+$A$11,IF($C$7,8,0),1,1) -> 669.43 | E104: =OFFSET(InputPriceData!D$15,CalculationsAndCharts!$A104+$A$11,IF($C$7,8,0),1,1) -> 689.59 | F104: =OFFSET(InputPriceData!E$15,CalculationsAndCharts!$A104+$A$11,IF($C$7,8,0),1,1) -> 669.43 | G104: =OFFSET(InputPriceData!F$15,CalculationsAndCharts!$A104+$A$11,IF($C$7,8,0),1,1) -> 689.35 | H104: 689.59 | I104: 588.58 | J104: 639.085 | K104: 639.0921285 | L104: 646.4929083 | M104: 633.6725 | N104: 671.215 | O104: 651.29445 | P104: 648.7149644 | W104: 639.0921285 | X104: 646.4929083 | AA104: 651.29445 | AC104: 40688400
A105: 73 | B105: =OFFSET(InputPriceData!B$15,CalculationsAndCharts!$A105+$A$11,0,1,1) -> 2010-10-04 | C105: =OFFSET(InputPriceData!G$15,CalculationsAndCharts!$A105+$A$11,IF($C$7,8,0),1,1) -> 36041100 | D105: =OFFSET(InputPriceData!C$15,CalculationsAndCharts!$A105+$A$11,IF($C$7,8,0),1,1) -> 679.28 | E105: =OFFSET(InputPriceData!D$15,CalculationsAndCharts!$A105+$A$11,IF($C$7,8,0),1,1) -> 679.96 | F105: =OFFSET(InputPriceData!E$15,CalculationsAndCharts!$A105+$A$11,IF($C$7,8,0),1,1) -> 665.99 | G105: =OFFSET(InputPriceData!F$15,CalculationsAndCharts!$A105+$A$11,IF($C$7,8,0),1,1) -> 669.45 | H105: 684.59 | I105: 588.58 | J105: 636.585 | K105: 639.0922725 | L105: 645.6271085 | M105: 632.812 | N105: 668.746 | O105: 650.86895 | P105: 647.0563915 | W105: 639.0922725 | X105: 645.6271085 | AA105: 650.86895 | AD105: 36041100
A106: 74 | B106: =OFFSET(InputPriceData!B$15,CalculationsAndCharts!$A106+$A$11,0,1,1) -> 2010-10-01 | C106: =OFFSET(InputPriceData!G$15,CalculationsAndCharts!$A106+$A$11,IF($C$7,8,0),1,1) -> 42989100 | D106: =OFFSET(InputPriceData!C$15,CalculationsAndCharts!$A106+$A$11,IF($C$7,8,0),1,1) -> 680.95 | E106: =OFFSET(InputPriceData!D$15,CalculationsAndCharts!$A106+$A$11,IF($C$7,8,0),1,1) -> 681.73 | F106: =OFFSET(InputPriceData!E$15,CalculationsAndCharts!$A106+$A$11,IF($C$7,8,0),1,1) -> 673.31 | G106: =OFFSET(InputPriceData!F$15,CalculationsAndCharts!$A106+$A$11,IF($C$7,8,0),1,1) -> 679.29 | H106: 684.59 | I106: 588.58 | J106: 636.585 | K106: 639.1429244 | L106: 645.145838 | M106: 632.0995 | N106: 668.799 | O106: 650.57775 | P106: 646.1423667 | W106: 639.1429244 | X106: 645.145838 | AA106: 650.57775 | AD106: 42989100
A107: 75 | B107: =OFFSET(InputPriceData!B$15,CalculationsAndCharts!$A107+$A$11,0,1,1) -> 2010-09-30 | C107: =OFFSET(InputPriceData!G$15,CalculationsAndCharts!$A107+$A$11,IF($C$7,8,0),1,1) -> 42841600 | D107: =OFFSET(InputPriceData!C$15,CalculationsAndCharts!$A107+$A$11,IF($C$7,8,0),1,1) -> 681.51 | E107: =OFFSET(InputPriceData!D$15,CalculationsAndCharts!$A107+$A$11,IF($C$7,8,0),1,1) -> 684.59 | F107: =OFFSET(InputPriceData!E$15,CalculationsAndCharts!$A107+$A$11,IF($C$7,8,0),1,1) -> 670.45 | G107: =OFFSET(InputPriceData!F$15,CalculationsAndCharts!$A107+$A$11,IF($C$7,8,0),1,1) -> 676.14 | H107: 684.59 | I107: 588.58 | J107: 636.585 | K107: 639.1945997 | L107: 644.4560569 | M107: 631.093 | N107: 666.014 | O107: 650.21285 | P107: 644.7894021 | W107: 639.1945997 | X107: 644.4560569 | AA107: 650.21285 | AD107: 42841600
A108: 76 | B108: =OFFSET(InputPriceData!B$15,CalculationsAndCharts!$A108+$A$11,0,1,1) -> 2010-09-29 | C108: =OFFSET(InputPriceData!G$15,CalculationsAndCharts!$A108+$A$11,IF($C$7,8,0),1,1) -> 39902800 | D108: =OFFSET(InputPriceData!C$15,CalculationsAndCharts!$A108+$A$11,IF($C$7,8,0),1,1) -> 672.71 | E108: =OFFSET(InputPriceData!D$15,CalculationsAndCharts!$A108+$A$11,IF($C$7,8,0),1,1) -> 678.89 | F108: =OFFSET(InputPriceData!E$15,CalculationsAndCharts!$A108+$A$11,IF($C$7,8,0),1,1) -> 672.25 | G108: =OFFSET(InputPriceData!F$15,CalculationsAndCharts!$A108+$A$11,IF($C$7,8,0),1,1) -> 677.64 | H108: 678.89 | I108: 588.58 | J108: 633.735 | K108: 639.2473189 | L108: 643.8159773 | M108: 630.0865 | N108: 663.181 | O108: 649.8811 | P108: 643.5097858 | W108: 639.2473189 | X108: 643.8159773 | AA108: 649.8811 | AC108: 39902800
A109: 77 | B109: =OFFSET(InputPriceData!B$15,CalculationsAndCharts!$A109+$A$11,0,1,1) -> 2010-09-28 | C109: =OFFSET(InputPriceData!G$15,CalculationsAndCharts!$A109+$A$11,IF($C$7,8,0),1,1) -> 40258400 | D109: =OFFSET(InputPriceData!C$15,CalculationsAndCharts!$A109+$A$11,IF($C$7,8,0),1,1) -> 669.74 | E109: =OFFSET(InputPriceData!D$15,CalculationsAndCharts!$A109+$A$11,IF($C$7,8,0),1,1) -> 675.88 | F109: =OFFSET(InputPriceData!E$15,CalculationsAndCharts!$A109+$A$11,IF($C$7,8,0),1,1) -> 659.02 | G109: =OFFSET(InputPriceData!F$15,CalculationsAndCharts!$A109+$A$11,IF($C$7,8,0),1,1) -> 675.43 | H109: 675.88 | I109: 588.58 | J109: 632.23 | K109: 639.3586789 | L109: 643.1326637 | M109: 629.365 | N109: 660.668 | O109: 649.49475 | P109: 642.1167158 | W109: 639.3586789 | X109: 643.1326637 | AA109: 649.49475 | AC109: 40258400
A110: 78 | B110: =OFFSET(InputPriceData!B$15,CalculationsAndCharts!$A110+$A$11,0,1,1) -> 2010-09-27 | C110: =OFFSET(InputPriceData!G$15,CalculationsAndCharts!$A110+$A$11,IF($C$7,8,0),1,1) -> 35878600 | D110: =OFFSET(InputPriceData!C$15,CalculationsAndCharts!$A110+$A$11,IF($C$7,8,0),1,1) -> 671.02 | E110: =OFFSET(InputPriceData!D$15,CalculationsAndCharts!$A110+$A$11,IF($C$7,8,0),1,1) -> 671.55 | F110: =OFFSET(InputPriceData!E$15,CalculationsAndCharts!$A110+$A$11,IF($C$7,8,0),1,1) -> 666.31 | G110: =OFFSET(InputPriceData!F$15,CalculationsAndCharts!$A110+$A$11,IF($C$7,8,0),1,1) -> 668.29 | H110: 672.38 | I110: 588.58 | J110: 630.48 | K110: 639.5026926 | L110: 642.4801922 | M110: 629.179 | N110: 658.048 | O110: 649.0945 | P110: 640.75699 | W110: 639.5026926 | X110: 642.4801922 | AA110: 649.0945 | AD110: 35878600
A111: 79 | B111: =OFFSET(InputPriceData!B$15,CalculationsAndCharts!$A111+$A$11,0,1,1) -> 2010-09-24 | C111: =OFFSET(InputPriceData!G$15,CalculationsAndCharts!$A111+$A$11,IF($C$7,8,0),1,1) -> 41239500 | D111: =OFFSET(InputPriceData!C$15,CalculationsAndCharts!$A111+$A$11,IF($C$7,8,0),1,1) -> 655.91 | E111: =OFFSET(InputPriceData!D$15,CalculationsAndCharts!$A111+$A$11,IF($C$7,8,0),1,1) -> 671.01 | F111: =OFFSET(InputPriceData!E$15,CalculationsAndCharts!$A111+$A$11,IF($C$7,8,0),1,1) -> 655.91 | G111: =OFFSET(InputPriceData!F$15,CalculationsAndCharts!$A111+$A$11,IF($C$7,8,0),1,1) -> 671.01 | H111: 672.38 | I111: 588.58 | J111: 630.48 | K111: 639.6849692 | L111: 641.958782 | M111: 629.168 | N111: 656.447 | O111: 648.7432 | P111: 639.6331936 | W111: 639.6849692 | X111: 641.958782 | AA111: 648.7432 | AC111: 41239500
A112: 80 | B112: =OFFSET(InputPriceData!B$15,CalculationsAndCharts!$A112+$A$11,0,1,1) -> 2010-09-23 | C112: =OFFSET(InputPriceData!G$15,CalculationsAndCharts!$A112+$A$11,IF($C$7,8,0),1,1) -> 38478500 | D112: =OFFSET(InputPriceData!C$15,CalculationsAndCharts!$A112+$A$11,IF($C$7,8,0),1,1) -> 652.01 | E112: =OFFSET(InputPriceData!D$15,CalculationsAndCharts!$A112+$A$11,IF($C$7,8,0),1,1) -> 661.11 | F112: =OFFSET(InputPriceData!E$15,CalculationsAndCharts!$A112+$A$11,IF($C$7,8,0),1,1) -> 647.79 | G112: =OFFSET(InputPriceData!F$15,CalculationsAndCharts!$A112+$A$11,IF($C$7,8,0),1,1) -> 648.84 | H112: 672.38 | I112: 588.58 | J112: 630.48 | K112: 639.8709282 | L112: 641.3718887 | M112: 629.157 | N112: 652.992 | O112: 648.37665 | P112: 638.3525077 | W112: 639.8709282 | X112: 641.3718887 | AA112: 648.37665 | AD112: 38478500
A113: 81 | B113: =OFFSET(InputPriceData!B$15,CalculationsAndCharts!$A113+$A$11,0,1,1) -> 2010-09-22 | C113: =OFFSET(InputPriceData!G$15,CalculationsAndCharts!$A113+$A$11,IF($C$7,8,0),1,1) -> 39110700 | D113: =OFFSET(InputPriceData!C$15,CalculationsAndCharts!$A113+$A$11,IF($C$7,8,0),1,1) -> 662.49 | E113: =OFFSET(InputPriceData!D$15,CalculationsAndCharts!$A113+$A$11,IF($C$7,8,0),1,1) -> 666.73 | F113: =OFFSET(InputPriceData!E$15,CalculationsAndCharts!$A113+$A$11,IF($C$7,8,0),1,1) -> 652.87 | G113: =OFFSET(InputPriceData!F$15,CalculationsAndCharts!$A113+$A$11,IF($C$7,8,0),1,1) -> 656.71 | H113: 672.38 | I113: 588.58 | J113: 630.48 | K113: 640.0606439 | L113: 641.2210177 | M113: 629.146 | N113: 651.57 | O113: 648.15025 | P113: 637.9244468 | W113: 640.0606439 | X113: 641.2210177 | AA113: 648.15025 | AD113: 39110700
A114: 82 | B114: =OFFSET(InputPriceData!B$15,CalculationsAndCharts!$A114+$A$11,0,1,1) -> 2010-09-21 | C114: =OFFSET(InputPriceData!G$15,CalculationsAndCharts!$A114+$A$11,IF($C$7,8,0),1,1) -> 41756600 | D114: =OFFSET(InputPriceData!C$15,CalculationsAndCharts!$A114+$A$11,IF($C$7,8,0),1,1) -> 669.53 | E114: =OFFSET(InputPriceData!D$15,CalculationsAndCharts!$A114+$A$11,IF($C$7,8,0),1,1) -> 672.38 | F114: =OFFSET(InputPriceData!E$15,CalculationsAndCharts!$A114+$A$11,IF($C$7,8,0),1,1) -> 664.63 | G114: =OFFSET(InputPriceData!F$15,CalculationsAndCharts!$A114+$A$11,IF($C$7,8,0),1,1) -> 664.66 | H114: 672.38 | I114: 588.58 | J114: 630.48 | K114: 640.2541922 | L114: 640.908109 | M114: 629.135 | N114: 649.324 | O114: 647.88065 | P114: 637.1576895 | W114: 640.2541922 | X114: 640.908109 | AA114: 647.88065 | AD114: 41756600
A115: 83 | B115: =OFFSET(InputPriceData!B$15,CalculationsAndCharts!$A115+$A$11,0,1,1) -> 2010-09-20 | C115: =OFFSET(InputPriceData!G$15,CalculationsAndCharts!$A115+$A$11,IF($C$7,8,0),1,1) -> 33640800 | D115: =OFFSET(InputPriceData!C$15,CalculationsAndCharts!$A115+$A$11,IF($C$7,8,0),1,1) -> 652.86 | E115: =OFFSET(InputPriceData!D$15,CalculationsAndCharts!$A115+$A$11,IF($C$7,8,0),1,1) -> 670.34 | F115: =OFFSET(InputPriceData!E$15,CalculationsAndCharts!$A115+$A$11,IF($C$7,8,0),1,1) -> 649.86 | G115: =OFFSET(InputPriceData!F$15,CalculationsAndCharts!$A115+$A$11,IF($C$7,8,0),1,1) -> 669.98 | H115: 670.34 | I115: 588.58 | J115: 629.46 | K115: 640.4516507 | L115: 640.4282728 | M115: 629.124 | N115: 645.787 | O115: 647.50125 | P115: 636.0351462 | W115: 640.4516507 | X115: 640.4282728 | AA115: 647.50125 | AC115: 33640800
A116: 84 | B116: =OFFSET(InputPriceData!B$15,CalculationsAndCharts!$A116+$A$11,0,1,1) -> 2010-09-17 | C116: =OFFSET(InputPriceData!G$15,CalculationsAndCharts!$A116+$A$11,IF($C$7,8,0),1,1) -> 40861400 | D116: =OFFSET(InputPriceData!C$15,CalculationsAndCharts!$A116+$A$11,IF($C$7,8,0),1,1) -> 651.2 | E116: =OFFSET(InputPriceData!D$15,CalculationsAndCharts!$A116+$A$11,IF($C$7,8,0),1,1) -> 653.4 | F116: =OFFSET(InputPriceData!E$15,CalculationsAndCharts!$A116+$A$11,IF($C$7,8,0),1,1) -> 643.05 | G116: =OFFSET(InputPriceData!F$15,CalculationsAndCharts!$A116+$A$11,IF($C$7,8,0),1,1) -> 651.44 | H116: 664.46 | I116: 588.58 | J116: 626.52 | K116: 640.6737042 | L116: 639.8312682 | M116: 629.215 | N116: 643.125 | O116: 647.1318 | P116: 634.649642 | W116: 640.6737042 | X116: 639.8312682 | AA116: 647.1318 | AC116: 40861400
A117: 85 | B117: =OFFSET(InputPriceData!B$15,CalculationsAndCharts!$A117+$A$11,0,1,1) -> 2010-09-16 | C117: =OFFSET(InputPriceData!G$15,CalculationsAndCharts!$A117+$A$11,IF($C$7,8,0),1,1) -> 33640800 | D117: =OFFSET(InputPriceData!C$15,CalculationsAndCharts!$A117+$A$11,IF($C$7,8,0),1,1) -> 650.94 | E117: =OFFSET(InputPriceData!D$15,CalculationsAndCharts!$A117+$A$11,IF($C$7,8,0),1,1) -> 651.88 | F117: =OFFSET(InputPriceData!E$15,CalculationsAndCharts!$A117+$A$11,IF($C$7,8,0),1,1) -> 643.67 | G117: =OFFSET(InputPriceData!F$15,CalculationsAndCharts!$A117+$A$11,IF($C$7,8,0),1,1) -> 647.81 | H117: 664.46 | I117: 588.58 | J117: 626.52 | K117: 640.9596376 | L117: 639.5967484 | M117: 629.6 | N117: 641.207 | O117: 646.8206 | P117: 633.9643212 | W117: 640.9596376 | X117: 639.5967484 | AA117: 646.8206 | AD117: 33640800
A118: 86 | B118: =OFFSET(InputPriceData!B$15,CalculationsAndCharts!$A118+$A$11,0,1,1) -> 2010-09-15 | C118: =OFFSET(InputPriceData!G$15,CalculationsAndCharts!$A118+$A$11,IF($C$7,8,0),1,1) -> 33698400 | D118: =OFFSET(InputPriceData!C$15,CalculationsAndCharts!$A118+$A$11,IF($C$7,8,0),1,1) -> 647.11 | E118: =OFFSET(InputPriceData!D$15,CalculationsAndCharts!$A118+$A$11,IF($C$7,8,0),1,1) -> 653.86 | F118: =OFFSET(InputPriceData!E$15,CalculationsAndCharts!$A118+$A$11,IF($C$7,8,0),1,1) -> 643.21 | G118: =OFFSET(InputPriceData!F$15,CalculationsAndCharts!$A118+$A$11,IF($C$7,8,0),1,1) -> 652.51 | H118: 664.46 | I118: 588.58 | J118: 626.52 | K118: 641.2513475 | L118: 639.4308241 | M118: 629.985 | N118: 638.925 | O118: 646.4802 | P118: 633.3991915 | W118: 641.2513475 | X118: 639.4308241 | AA118: 646.4802 | AC118: 33698400
A119: 87 | B119: =OFFSET(InputPriceData!B$15,CalculationsAndCharts!$A119+$A$11,0,1,1) -> 2010-09-14 | C119: =OFFSET(InputPriceData!G$15,CalculationsAndCharts!$A119+$A$11,IF($C$7,8,0),1,1) -> 45210500 | D119: =OFFSET(InputPriceData!C$15,CalculationsAndCharts!$A119+$A$11,IF($C$7,8,0),1,1) -> 650.61 | E119: =OFFSET(InputPriceData!D$15,CalculationsAndCharts!$A119+$A$11,IF($C$7,8,0),1,1) -> 654.32 | F119: =OFFSET(InputPriceData!E$15,CalculationsAndCharts!$A119+$A$11,IF($C$7,8,0),1,1) -> 647 | G119: =OFFSET(InputPriceData!F$15,CalculationsAndCharts!$A119+$A$11,IF($C$7,8,0),1,1) -> 649.23 | H119: 672.16 | I119: 588.58 | J119: 630.37 | K119: 641.5489505 | L119: 639.1665984 | M119: 630.37 | N119: 633.88 | O119: 646.1037 | P119: 632.6191585 | W119: 641.5489505 | X119: 639.1665984 | AA119: 646.1037 | AD119: 45210500
A120: 88 | B120: =OFFSET(InputPriceData!B$15,CalculationsAndCharts!$A120+$A$11,0,1,1) -> 2010-09-13 | C120: =OFFSET(InputPriceData!G$15,CalculationsAndCharts!$A120+$A$11,IF($C$7,8,0),1,1) -> 45210500 | D120: =OFFSET(InputPriceData!C$15,CalculationsAndCharts!$A120+$A$11,IF($C$7,8,0),1,1) -> 641.4 | E120: =OFFSET(InputPriceData!D$15,CalculationsAndCharts!$A120+$A$11,IF($C$7,8,0),1,1) -> 653.59 | F120: =OFFSET(InputPriceData!E$15,CalculationsAndCharts!$A120+$A$11,IF($C$7,8,0),1,1) -> 641.4 | G120: =OFFSET(InputPriceData!F$15,CalculationsAndCharts!$A120+$A$11,IF($C$7,8,0),1,1) -> 652.28 | H120: 672.16 | I120: 588.58 | J120: 630.37 | K120: 641.7747878 | L120: 638.9632973 | M120: 630.37 | N120: 629.129 | O120: 645.8185 | P120: 631.9411649 | W120: 641.7747878 | X120: 638.9632973 | AA120: 645.8185 | AC120: 45210500
A121: 89 | B121: =OFFSET(InputPriceData!B$15,CalculationsAndCharts!$A121+$A$11,0,1,1) -> 2010-09-10 | C121: =OFFSET(InputPriceData!G$15,CalculationsAndCharts!$A121+$A$11,IF($C$7,8,0),1,1) -> 30611600 | D121: =OFFSET(InputPriceData!C$15,CalculationsAndCharts!$A121+$A$11,IF($C$7,8,0),1,1) -> 636.08 | E121: =OFFSET(InputPriceData!D$15,CalculationsAndCharts!$A121+$A$11,IF($C$7,8,0),1,1) -> 639.4 | F121: =OFFSET(InputPriceData!E$15,CalculationsAndCharts!$A121+$A$11,IF($C$7,8,0),1,1) -> 633.42 | G121: =OFFSET(InputPriceData!F$15,CalculationsAndCharts!$A121+$A$11,IF($C$7,8,0),1,1) -> 636.46 | H121: 672.16 | I121: 588.58 | J121: 630.37 | K121: 642.0051876 | L121: 638.694273 | M121: 630.37 | N121: 625.577 | O121: 645.52 | P121: 631.1110084 | W121: 642.0051876 | X121: 638.694273 | AA121: 645.52 | AC121: 30611600
A122: 90 | B122: =OFFSET(InputPriceData!B$15,CalculationsAndCharts!$A122+$A$11,0,1,1) -> 2010-09-09 | C122: =OFFSET(InputPriceData!G$15,CalculationsAndCharts!$A122+$A$11,IF($C$7,8,0),1,1) -> 33877700 | D122: =OFFSET(InputPriceData!C$15,CalculationsAndCharts!$A122+$A$11,IF($C$7,8,0),1,1) -> 639.25 | E122: =OFFSET(InputPriceData!D$15,CalculationsAndCharts!$A122+$A$11,IF($C$7,8,0),1,1) -> 641.88 | F122: =OFFSET(InputPriceData!E$15,CalculationsAndCharts!$A122+$A$11,IF($C$7,8,0),1,1) -> 630.36 | G122: =OFFSET(InputPriceData!F$15,CalculationsAndCharts!$A122+$A$11,IF($C$7,8,0),1,1) -> 634.62 | H122: 672.16 | I122: 588.58 | J122: 630.37 | K122: 642.2402419 | L122: 638.7394098 | M122: 630.37 | N122: 621.907 | O122: 645.31175 | P122: 630.8926822 | W122: 642.2402419 | X122: 638.7394098 | AA122: 645.31175 | AD122: 33877700
A123: 91 | B123: =OFFSET(InputPriceData!B$15,CalculationsAndCharts!$A123+$A$11,0,1,1) -> 2010-09-08 | C123: =OFFSET(InputPriceData!G$15,CalculationsAndCharts!$A123+$A$11,IF($C$7,8,0),1,1) -> 32246400 | D123: =OFFSET(InputPriceData!C$15,CalculationsAndCharts!$A123+$A$11,IF($C$7,8,0),1,1) -> 631.26 | E123: =OFFSET(InputPriceData!D$15,CalculationsAndCharts!$A123+$A$11,IF($C$7,8,0),1,1) -> 638.34 | F123: =OFFSET(InputPriceData!E$15,CalculationsAndCharts!$A123+$A$11,IF($C$7,8,0),1,1) -> 631.26 | G123: =OFFSET(InputPriceData!F$15,CalculationsAndCharts!$A123+$A$11,IF($C$7,8,0),1,1) -> 634.25 | H123: 672.16 | I123: 588.58 | J123: 630.37 | K123: 642.4800448 | L123: 638.8226302 | M123: 630.37 | N123: 618.932 | O123: 645.06205 | P123: 630.7405468 | W123: 642.4800448 | X123: 638.8226302 | AA123: 645.06205 | AC123: 32246400
A124: 92 | B124: =OFFSET(InputPriceData!B$15,CalculationsAndCharts!$A124+$A$11,0,1,1) -> 2010-09-07 | C124: =OFFSET(InputPriceData!G$15,CalculationsAndCharts!$A124+$A$11,IF($C$7,8,0),1,1) -> 31073800 | D124: =OFFSET(InputPriceData!C$15,CalculationsAndCharts!$A124+$A$11,IF($C$7,8,0),1,1) -> 641.06 | E124: =OFFSET(InputPriceData!D$15,CalculationsAndCharts!$A124+$A$11,IF($C$7,8,0),1,1) -> 641.06 | F124: =OFFSET(InputPriceData!E$15,CalculationsAndCharts!$A124+$A$11,IF($C$7,8,0),1,1) -> 628.51 | G124: =OFFSET(InputPriceData!F$15,CalculationsAndCharts!$A124+$A$11,IF($C$7,8,0),1,1) -> 629.29 | H124: 672.16 | I124: 588.58 | J124: 630.37 | K124: 642.7246921 | L124: 638.9150066 | M124: 630.37 | N124: 615.066 | O124: 644.8192 | P124: 630.5973038 | W124: 642.7246921 | X124: 638.9150066 | AA124: 644.8192 | AD124: 31073800
A125: 93 | B125: =OFFSET(InputPriceData!B$15,CalculationsAndCharts!$A125+$A$11,0,1,1) -> 2010-09-03 | C125: =OFFSET(InputPriceData!G$15,CalculationsAndCharts!$A125+$A$11,IF($C$7,8,0),1,1) -> 35345000 | D125: =OFFSET(InputPriceData!C$15,CalculationsAndCharts!$A125+$A$11,IF($C$7,8,0),1,1) -> 637.79 | E125: =OFFSET(InputPriceData!D$15,CalculationsAndCharts!$A125+$A$11,IF($C$7,8,0),1,1) -> 643.73 | F125: =OFFSET(InputPriceData!E$15,CalculationsAndCharts!$A125+$A$11,IF($C$7,8,0),1,1) -> 636.02 | G125: =OFFSET(InputPriceData!F$15,CalculationsAndCharts!$A125+$A$11,IF($C$7,8,0),1,1) -> 643.36 | H125: 672.16 | I125: 588.58 | J125: 630.37 | K125: 642.9742819 | L125: 639.1094512 | M125: 630.3245 | N125: 612.404 | O125: 644.6735 | P125: 630.6506631 | W125: 642.9742819 | X125: 639.1094512 | AA125: 644.6735 | AC125: 35345000
A126: 94 | B126: =OFFSET(InputPriceData!B$15,CalculationsAndCharts!$A126+$A$11,0,1,1) -> 2010-09-02 | C126: =OFFSET(InputPriceData!G$15,CalculationsAndCharts!$A126+$A$11,IF($C$7,8,0),1,1) -> 37042100 | D126: =OFFSET(InputPriceData!C$15,CalculationsAndCharts!$A126+$A$11,IF($C$7,8,0),1,1) -> 624.52 | E126: =OFFSET(InputPriceData!D$15,CalculationsAndCharts!$A126+$A$11,IF($C$7,8,0),1,1) -> 632.66 | F126: =OFFSET(InputPriceData!E$15,CalculationsAndCharts!$A126+$A$11,IF($C$7,8,0),1,1) -> 622.99 | G126: =OFFSET(InputPriceData!F$15,CalculationsAndCharts!$A126+$A$11,IF($C$7,8,0),1,1) -> 632.26 | H126: 672.16 | I126: 588.58 | J126: 630.37 | K126: 643.2289138 | L126: 639.0235815 | M126: 630.279 | N126: 609.146 | O126: 644.4684 | P126: 630.1319147 | W126: 643.2289138 | X126: 639.0235815 | AA126: 644.4684 | AC126: 37042100
A127: 95 | B127: =OFFSET(InputPriceData!B$15,CalculationsAndCharts!$A127+$A$11,0,1,1) -> 2010-09-01 | C127: =OFFSET(InputPriceData!G$15,CalculationsAndCharts!$A127+$A$11,IF($C$7,8,0),1,1) -> 43968800 | D127: =OFFSET(InputPriceData!C$15,CalculationsAndCharts!$A127+$A$11,IF($C$7,8,0),1,1) -> 603.33 | E127: =OFFSET(InputPriceData!D$15,CalculationsAndCharts!$A127+$A$11,IF($C$7,8,0),1,1) -> 624.99 | F127: =OFFSET(InputPriceData!E$15,CalculationsAndCharts!$A127+$A$11,IF($C$7,8,0),1,1) -> 603.33 | G127: =OFFSET(InputPriceData!F$15,CalculationsAndCharts!$A127+$A$11,IF($C$7,8,0),1,1) -> 624.99 | H127: 672.16 | I127: 588.58 | J127: 630.37 | K127: 643.4886899 | L127: 639.1602195 | M127: 630.2335 | N127: 607.016 | O127: 644.32145 | P127: 630.0450541 | W127: 643.4886899 | X127: 639.1602195 | AA127: 644.32145 | AC127: 43968800
A128: 96 | B128: =OFFSET(InputPriceData!B$15,CalculationsAndCharts!$A128+$A$11,0,1,1) -> 2010-08-31 | C128: =OFFSET(InputPriceData!G$15,CalculationsAndCharts!$A128+$A$11,IF($C$7,8,0),1,1) -> 40387700 | D128: =OFFSET(InputPriceData!C$15,CalculationsAndCharts!$A128+$A$11,IF($C$7,8,0),1,1) -> 600.47 | E128: =OFFSET(InputPriceData!D$15,CalculationsAndCharts!$A128+$A$11,IF($C$7,8,0),1,1) -> 607.63 | F128: =OFFSET(InputPriceData!E$15,CalculationsAndCharts!$A128+$A$11,IF($C$7,8,0),1,1) -> 597.33 | G128: =OFFSET(InputPriceData!F$15,CalculationsAndCharts!$A128+$A$11,IF($C$7,8,0),1,1) -> 602.06 | H128: 672.16 | I128: 588.58 | J128: 630.37 | K128: 643.7537139 | L128: 639.4464866 | M128: 630.188 | N128: 607.321 | O128: 644.1279 | P128: 630.2513828 | W128: 643.7537139 | X128: 639.4464866 | AA128: 644.1279 | AC128: 40387700
A129: 97 | B129: =OFFSET(InputPriceData!B$15,CalculationsAndCharts!$A129+$A$11,0,1,1) -> 2010-08-30 | C129: =OFFSET(InputPriceData!G$15,CalculationsAndCharts!$A129+$A$11,IF($C$7,8,0),1,1) -> 29179900 | D129: =OFFSET(InputPriceData!C$15,CalculationsAndCharts!$A129+$A$11,IF($C$7,8,0),1,1) -> 614.27 | E129: =OFFSET(InputPriceData!D$15,CalculationsAndCharts!$A129+$A$11,IF($C$7,8,0),1,1) -> 615.35 | F129: =OFFSET(InputPriceData!E$15,CalculationsAndCharts!$A129+$A$11,IF($C$7,8,0),1,1) -> 601.72 | G129: =OFFSET(InputPriceData!F$15,CalculationsAndCharts!$A129+$A$11,IF($C$7,8,0),1,1) -> 601.72 | H129: 672.16 | I129: 588.58 | J129: 630.37 | K129: 644.024092 | L129: 640.2017691 | M129: 630.1425 | N129: 609.745 | O129: 644.0192 | P129: 631.4020515 | W129: 644.024092 | X129: 640.2017691 | AA129: 644.0192 | AD129: 29179900
A130: 98 | B130: =OFFSET(InputPriceData!B$15,CalculationsAndCharts!$A130+$A$11,0,1,1) -> 2010-08-27 | C130: =OFFSET(InputPriceData!G$15,CalculationsAndCharts!$A130+$A$11,IF($C$7,8,0),1,1) -> 41024600 | D130: =OFFSET(InputPriceData!C$15,CalculationsAndCharts!$A130+$A$11,IF($C$7,8,0),1,1) -> 604.69 | E130: =OFFSET(InputPriceData!D$15,CalculationsAndCharts!$A130+$A$11,IF($C$7,8,0),1,1) -> 617.1 | F130: =OFFSET(InputPriceData!E$15,CalculationsAndCharts!$A130+$A$11,IF($C$7,8,0),1,1) -> 596.18 | G130: =OFFSET(InputPriceData!F$15,CalculationsAndCharts!$A130+$A$11,IF($C$7,8,0),1,1) -> 616.76 | H130: 672.16 | I130: 588.58 | J130: 630.37 | K130: 644.2999322 | L130: 640.9791786 | M130: 630.097 | N130: 611.083 | O130: 643.97415 | P130: 632.6135638 | W130: 644.2999322 | X130: 640.9791786 | AA130: 643.97415 | AC130: 41024600
A131: 99 | B131: =OFFSET(InputPriceData!B$15,CalculationsAndCharts!$A131+$A$11,0,1,1) -> 2010-08-26 | C131: =OFFSET(InputPriceData!G$15,CalculationsAndCharts!$A131+$A$11,IF($C$7,8,0),1,1) -> 36467100 | D131: =OFFSET(InputPriceData!C$15,CalculationsAndCharts!$A131+$A$11,IF($C$7,8,0),1,1) -> 606.54 | E131: =OFFSET(InputPriceData!D$15,CalculationsAndCharts!$A131+$A$11,IF($C$7,8,0),1,1) -> 611.36 | F131: =OFFSET(InputPriceData!E$15,CalculationsAndCharts!$A131+$A$11,IF($C$7,8,0),1,1) -> 598.62 | G131: =OFFSET(InputPriceData!F$15,CalculationsAndCharts!$A131+$A$11,IF($C$7,8,0),1,1) -> 599.76 | H131: 672.16 | I131: 588.58 | J131: 630.37 | K131: 644.581345 | L131: 641.468455 | M131: 630.0515 | N131: 610.356 | O131: 643.8252 | P131: 633.260648 | W131: 644.581345 | X131: 641.468455 | AA131: 643.8252 | AD131: 36467100
A132: 100 | B132: =OFFSET(InputPriceData!B$15,CalculationsAndCharts!$A132+$A$11,0,1,1) -> 2010-08-25 | C132: =OFFSET(InputPriceData!G$15,CalculationsAndCharts!$A132+$A$11,IF($C$7,8,0),1,1) -> 43601900 | D132: =OFFSET(InputPriceData!C$15,CalculationsAndCharts!$A132+$A$11,IF($C$7,8,0),1,1) -> 592.13 | E132: =OFFSET(InputPriceData!D$15,CalculationsAndCharts!$A132+$A$11,IF($C$7,8,0),1,1) -> 605.69 | F132: =OFFSET(InputPriceData!E$15,CalculationsAndCharts!$A132+$A$11,IF($C$7,8,0),1,1) -> 589.38 | G132: =OFFSET(InputPriceData!F$15,CalculationsAndCharts!$A132+$A$11,IF($C$7,8,0),1,1) -> 604.87 | H132: 672.16 | I132: 588.58 | J132: 630.37 | K132: 644.8684429 | L132: 642.31105 | M132: 630.006 | N132: 612.078 | O132: 643.78795 | P132: 634.6280214 | W132: 644.8684429 | X132: 642.31105 | AA132: 643.78795 | AC132: 43601900
A133: 101 | B133: =OFFSET(InputPriceData!B$15,CalculationsAndCharts!$A133+$A$11,0,1,1) -> 2010-08-24 | C133: =OFFSET(InputPriceData!G$15,CalculationsAndCharts!$A133+$A$11,IF($C$7,8,0),1,1) -> 44363300 | D133: =OFFSET(InputPriceData!C$15,CalculationsAndCharts!$A133+$A$11,IF($C$7,8,0),1,1) -> 596.91 | E133: =OFFSET(InputPriceData!D$15,CalculationsAndCharts!$A133+$A$11,IF($C$7,8,0),1,1) -> 601.77 | F133: =OFFSET(InputPriceData!E$15,CalculationsAndCharts!$A133+$A$11,IF($C$7,8,0),1,1) -> 588.58 | G133: =OFFSET(InputPriceData!F$15,CalculationsAndCharts!$A133+$A$11,IF($C$7,8,0),1,1) -> 595.59 | H133: 672.16 | I133: 588.58 | J133: 630.37 | K133: 645.1613407 | L133: 643.0674349 | M133: 629.9605 | N133: 613.63 | O133: 643.66535 | P133: 635.8426346 | W133: 645.1613407 | X133: 643.0674349 | AA133: 643.66535 | AD133: 44363300
A134: 102 | B134: =OFFSET(InputPriceData!B$15,CalculationsAndCharts!$A134+$A$11,0,1,1) -> 2010-08-23 | C134: =OFFSET(InputPriceData!G$15,CalculationsAndCharts!$A134+$A$11,IF($C$7,8,0),1,1) -> 32109500 | D134: =OFFSET(InputPriceData!C$15,CalculationsAndCharts!$A134+$A$11,IF($C$7,8,0),1,1) -> 613.79 | E134: =OFFSET(InputPriceData!D$15,CalculationsAndCharts!$A134+$A$11,IF($C$7,8,0),1,1) -> 617.75 | F134: =OFFSET(InputPriceData!E$15,CalculationsAndCharts!$A134+$A$11,IF($C$7,8,0),1,1) -> 602.42 | G134: =OFFSET(InputPriceData!F$15,CalculationsAndCharts!$A134+$A$11,IF($C$7,8,0),1,1) -> 602.67 | H134: 672.16 | I134: 587.67 | J134: 629.915 | K134: 645.4601557 | L134: 644.026575 | M134: 629.915 | N134: 618.707 | O134: 643.59315 | P134: 637.4855992 | W134: 645.4601557 | X134: 644.026575 | AA134: 643.59315 | AD134: 32109500
A135: 103 | B135: =OFFSET(InputPriceData!B$15,CalculationsAndCharts!$A135+$A$11,0,1,1) -> 2010-08-20 | C135: =OFFSET(InputPriceData!G$15,CalculationsAndCharts!$A135+$A$11,IF($C$7,8,0),1,1) -> 37615700 | D135: =OFFSET(InputPriceData!C$15,CalculationsAndCharts!$A135+$A$11,IF($C$7,8,0),1,1) -> 610.95 | E135: =OFFSET(InputPriceData!D$15,CalculationsAndCharts!$A135+$A$11,IF($C$7,8,0),1,1) -> 611.09 | F135: =OFFSET(InputPriceData!E$15,CalculationsAndCharts!$A135+$A$11,IF($C$7,8,0),1,1) -> 601.69 | G135: =OFFSET(InputPriceData!F$15,CalculationsAndCharts!$A135+$A$11,IF($C$7,8,0),1,1) -> 610.78 | H135: 672.16 | I135: 587.67 | J135: 629.915 | K135: 645.7741992 | L135: 644.8620613 | M135: 630.1645 | N135: 624.392 | O135: 643.3954 | P135: 638.9066441 | W135: 645.7741992 | X135: 644.8620613 | AA135: 643.3954 | AD135: 37615700
A136: 104 | B136: =OFFSET(InputPriceData!B$15,CalculationsAndCharts!$A136+$A$11,0,1,1) -> 2010-08-19 | C136: =OFFSET(InputPriceData!G$15,CalculationsAndCharts!$A136+$A$11,IF($C$7,8,0),1,1) -> 42905400 | D136: =OFFSET(InputPriceData!C$15,CalculationsAndCharts!$A136+$A$11,IF($C$7,8,0),1,1) -> 625.32 | E136: =OFFSET(InputPriceData!D$15,CalculationsAndCharts!$A136+$A$11,IF($C$7,8,0),1,1) -> 626.43 | F136: =OFFSET(InputPriceData!E$15,CalculationsAndCharts!$A136+$A$11,IF($C$7,8,0),1,1) -> 609.82 | G136: =OFFSET(InputPriceData!F$15,CalculationsAndCharts!$A136+$A$11,IF($C$7,8,0),1,1) -> 610.96 | H136: 672.16 | I136: 587.67 | J136: 629.915 | K136: 646.0945871 | L136: 645.5505878 | M136: 630.414 | N136: 628.382 | O136: 643.1946 | P136: 640.0546704 | W136: 646.0945871 | X136: 645.5505878 | AA136: 643.1946 | AD136: 42905400
A137: 105 | B137: =OFFSET(InputPriceData!B$15,CalculationsAndCharts!$A137+$A$11,0,1,1) -> 2010-08-18 | C137: =OFFSET(InputPriceData!G$15,CalculationsAndCharts!$A137+$A$11,IF($C$7,8,0),1,1) -> 37242600 | D137: =OFFSET(InputPriceData!C$15,CalculationsAndCharts!$A137+$A$11,IF($C$7,8,0),1,1) -> 625.83 | E137: =OFFSET(InputPriceData!D$15,CalculationsAndCharts!$A137+$A$11,IF($C$7,8,0),1,1) -> 632.77 | F137: =OFFSET(InputPriceData!E$15,CalculationsAndCharts!$A137+$A$11,IF($C$7,8,0),1,1) -> 620.24 | G137: =OFFSET(InputPriceData!F$15,CalculationsAndCharts!$A137+$A$11,IF($C$7,8,0),1,1) -> 628.04 | H137: 672.16 | I137: 587.67 | J137: 629.915 | K137: 646.4214474 | L137: 646.2493876 | M137: 630.6635 | N137: 632.793 | O137: 642.9518 | P137: 641.242208 | W137: 646.4214474 | X137: 646.2493876 | AA137: 642.9518 | AC137: 37242600
A138: 106 | B138: =OFFSET(InputPriceData!B$15,CalculationsAndCharts!$A138+$A$11,0,1,1) -> 2010-08-17 | C138: =OFFSET(InputPriceData!G$15,CalculationsAndCharts!$A138+$A$11,IF($C$7,8,0),1,1) -> 39682100 | D138: =OFFSET(InputPriceData!C$15,CalculationsAndCharts!$A138+$A$11,IF($C$7,8,0),1,1) -> 620.15 | E138: =OFFSET(InputPriceData!D$15,CalculationsAndCharts!$A138+$A$11,IF($C$7,8,0),1,1) -> 630.28 | F138: =OFFSET(InputPriceData!E$15,CalculationsAndCharts!$A138+$A$11,IF($C$7,8,0),1,1) -> 619.28 | G138: =OFFSET(InputPriceData!F$15,CalculationsAndCharts!$A138+$A$11,IF($C$7,8,0),1,1) -> 626.3 | H138: 672.16 | I138: 587.67 | J138: 629.915 | K138: 646.754911 | L138: 646.617254 | M138: 630.913 | N138: 636.285 | O138: 642.62545 | P138: 641.7810736 | W138: 646.754911 | X138: 646.617254 | AA138: 642.62545 | AC138: 39682100
A139: 107 | B139: =OFFSET(InputPriceData!B$15,CalculationsAndCharts!$A139+$A$11,0,1,1) -> 2010-08-16 | C139: =OFFSET(InputPriceData!G$15,CalculationsAndCharts!$A139+$A$11,IF($C$7,8,0),1,1) -> 31424500 | D139: =OFFSET(InputPriceData!C$15,CalculationsAndCharts!$A139+$A$11,IF($C$7,8,0),1,1) -> 606.71 | E139: =OFFSET(InputPriceData!D$15,CalculationsAndCharts!$A139+$A$11,IF($C$7,8,0),1,1) -> 618.02 | F139: =OFFSET(InputPriceData!E$15,CalculationsAndCharts!$A139+$A$11,IF($C$7,8,0),1,1) -> 604.83 | G139: =OFFSET(InputPriceData!F$15,CalculationsAndCharts!$A139+$A$11,IF($C$7,8,0),1,1) -> 615.1 | H139: 672.16 | I139: 587.67 | J139: 629.915 | K139: 647.0951112 | L139: 647.0277035 | M139: 631.1625 | N139: 639.221 | O139: 642.39505 | P139: 642.4129541 | W139: 647.0951112 | X139: 647.0277035 | AA139: 642.39505 | AC139: 31424500
A140: 108 | B140: =OFFSET(InputPriceData!B$15,CalculationsAndCharts!$A140+$A$11,0,1,1) -> 2010-08-13 | C140: =OFFSET(InputPriceData!G$15,CalculationsAndCharts!$A140+$A$11,IF($C$7,8,0),1,1) -> 33288900 | D140: =OFFSET(InputPriceData!C$15,CalculationsAndCharts!$A140+$A$11,IF($C$7,8,0),1,1) -> 615.47 | E140: =OFFSET(InputPriceData!D$15,CalculationsAndCharts!$A140+$A$11,IF($C$7,8,0),1,1) -> 616.19 | F140: =OFFSET(InputPriceData!E$15,CalculationsAndCharts!$A140+$A$11,IF($C$7,8,0),1,1) -> 609.49 | G140: =OFFSET(InputPriceData!F$15,CalculationsAndCharts!$A140+$A$11,IF($C$7,8,0),1,1) -> 609.49 | H140: 672.16 | I140: 587.67 | J140: 629.915 | K140: 647.4421842 | L140: 647.6727077 | M140: 631.412 | N140: 643.897 | O140: 642.15135 | P140: 643.5277686 | W140: 647.4421842 | X140: 647.6727077 | AA140: 642.15135 | AD140: 33288900
A141: 109 | B141: =OFFSET(InputPriceData!B$15,CalculationsAndCharts!$A141+$A$11,0,1,1) -> 2010-08-12 | C141: =OFFSET(InputPriceData!G$15,CalculationsAndCharts!$A141+$A$11,IF($C$7,8,0),1,1) -> 45210500 | D141: =OFFSET(InputPriceData!C$15,CalculationsAndCharts!$A141+$A$11,IF($C$7,8,0),1,1) -> 613.84 | E141: =OFFSET(InputPriceData!D$15,CalculationsAndCharts!$A141+$A$11,IF($C$7,8,0),1,1) -> 620.58 | F141: =OFFSET(InputPriceData!E$15,CalculationsAndCharts!$A141+$A$11,IF($C$7,8,0),1,1) -> 610.94 | G141: =OFFSET(InputPriceData!F$15,CalculationsAndCharts!$A141+$A$11,IF($C$7,8,0),1,1) -> 616.98 | H141: 672.16 | I141: 587.67 | J141: 629.915 | K141: 647.7962687 | L141: 648.4440755 | M141: 631.6615 | N141: 648.037 | O141: 642.03885 | P141: 644.9170653 | W141: 647.7962687 | X141: 648.4440755 | AA141: 642.03885 | AC141: 45210500
A142: 110 | B142: =OFFSET(InputPriceData!B$15,CalculationsAndCharts!$A142+$A$11,0,1,1) -> 2010-08-11 | C142: =OFFSET(InputPriceData!G$15,CalculationsAndCharts!$A142+$A$11,IF($C$7,8,0),1,1) -> 45118600 | D142: =OFFSET(InputPriceData!C$15,CalculationsAndCharts!$A142+$A$11,IF($C$7,8,0),1,1) -> 639.2 | E142: =OFFSET(InputPriceData!D$15,CalculationsAndCharts!$A142+$A$11,IF($C$7,8,0),1,1) -> 639.2 | F142: =OFFSET(InputPriceData!E$15,CalculationsAndCharts!$A142+$A$11,IF($C$7,8,0),1,1) -> 619.38 | G142: =OFFSET(InputPriceData!F$15,CalculationsAndCharts!$A142+$A$11,IF($C$7,8,0),1,1) -> 620.39 | H142: 672.16 | I142: 587.67 | J142: 629.915 | K142: 648.1575064 | L142: 649.0797134 | M142: 631.911 | N142: 651.382 | O142: 641.92235 | P142: 646.0573537 | W142: 648.1575064 | X142: 649.0797134 | AA142: 641.92235 | AD142: 45118600
A143: 111 | B143: =OFFSET(InputPriceData!B$15,CalculationsAndCharts!$A143+$A$11,0,1,1) -> 2010-08-10 | C143: =OFFSET(InputPriceData!G$15,CalculationsAndCharts!$A143+$A$11,IF($C$7,8,0),1,1) -> 39793600 | D143: =OFFSET(InputPriceData!C$15,CalculationsAndCharts!$A143+$A$11,IF($C$7,8,0),1,1) -> 654.84 | E143: =OFFSET(InputPriceData!D$15,CalculationsAndCharts!$A143+$A$11,IF($C$7,8,0),1,1) -> 654.84 | F143: =OFFSET(InputPriceData!E$15,CalculationsAndCharts!$A143+$A$11,IF($C$7,8,0),1,1) -> 642 | G143: =OFFSET(InputPriceData!F$15,CalculationsAndCharts!$A143+$A$11,IF($C$7,8,0),1,1) -> 646.36 | H143: 672.16 | I143: 587.67 | J143: 629.915 | K143: 648.5260419 | L143: 649.6593036 | M143: 632.1605 | N143: 654.419 | O143: 641.8247 | P143: 647.1050007 | W143: 648.5260419 | X143: 649.6593036 | AA143: 641.8247 | AD143: 39793600
A144: 112 | B144: =OFFSET(InputPriceData!B$15,CalculationsAndCharts!$A144+$A$11,0,1,1) -> 2010-08-09 | C144: =OFFSET(InputPriceData!G$15,CalculationsAndCharts!$A144+$A$11,IF($C$7,8,0),1,1) -> 39793600 | D144: =OFFSET(InputPriceData!C$15,CalculationsAndCharts!$A144+$A$11,IF($C$7,8,0),1,1) -> 654.29 | E144: =OFFSET(InputPriceData!D$15,CalculationsAndCharts!$A144+$A$11,IF($C$7,8,0),1,1) -> 660.2 | F144: =OFFSET(InputPriceData!E$15,CalculationsAndCharts!$A144+$A$11,IF($C$7,8,0),1,1) -> 651.91 | G144: =OFFSET(InputPriceData!F$15,CalculationsAndCharts!$A144+$A$11,IF($C$7,8,0),1,1) -> 659.52 | H144: 677.15 | I144: 587.67 | J144: 632.41 | K144: 648.9020226 | L144: 649.7259561 | M144: 632.41 | N144: 656 | O144: 641.6598 | P144: 647.1354089 | W144: 648.9020226 | X144: 649.7259561 | AA144: 641.6598 | AC144: 39793600
A145: 113 | B145: =OFFSET(InputPriceData!B$15,CalculationsAndCharts!$A145+$A$11,0,1,1) -> 2010-08-06 | C145: =OFFSET(InputPriceData!G$15,CalculationsAndCharts!$A145+$A$11,IF($C$7,8,0),1,1) -> 38578900 | D145: =OFFSET(InputPriceData!C$15,CalculationsAndCharts!$A145+$A$11,IF($C$7,8,0),1,1) -> 648.88 | E145: =OFFSET(InputPriceData!D$15,CalculationsAndCharts!$A145+$A$11,IF($C$7,8,0),1,1) -> 653.66 | F145: =OFFSET(InputPriceData!E$15,CalculationsAndCharts!$A145+$A$11,IF($C$7,8,0),1,1) -> 639.74 | G145: =OFFSET(InputPriceData!F$15,CalculationsAndCharts!$A145+$A$11,IF($C$7,8,0),1,1) -> 650.68 | H145: 677.15 | I145: 587.67 | J145: 632.41 | K145: 649.2351948 | L145: 649.5280967 | M145: 632.41 | N145: 656.57 | O145: 641.38775 | P145: 646.6299154 | W145: 649.2351948 | X145: 649.5280967 | AA145: 641.38775 | AC145: 38578900
A146: 114 | B146: =OFFSET(InputPriceData!B$15,CalculationsAndCharts!$A146+$A$11,0,1,1) -> 2010-08-05 | C146: =OFFSET(InputPriceData!G$15,CalculationsAndCharts!$A146+$A$11,IF($C$7,8,0),1,1) -> 36855600 | D146: =OFFSET(InputPriceData!C$15,CalculationsAndCharts!$A146+$A$11,IF($C$7,8,0),1,1) -> 658.76 | E146: =OFFSET(InputPriceData!D$15,CalculationsAndCharts!$A146+$A$11,IF($C$7,8,0),1,1) -> 661.16 | F146: =OFFSET(InputPriceData!E$15,CalculationsAndCharts!$A146+$A$11,IF($C$7,8,0),1,1) -> 655.07 | G146: =OFFSET(InputPriceData!F$15,CalculationsAndCharts!$A146+$A$11,IF($C$7,8,0),1,1) -> 655.07 | H146: 677.15 | I146: 587.67 | J146: 632.41 | K146: 649.5750977 | L146: 649.5048259 | M146: 632.41 | N146: 656.567 | O146: 641.2014 | P146: 646.4646058 | W146: 649.5750977 | X146: 649.5048259 | AA146: 641.2014 | AD146: 36855600
A147: 115 | B147: =OFFSET(InputPriceData!B$15,CalculationsAndCharts!$A147+$A$11,0,1,1) -> 2010-08-04 | C147: =OFFSET(InputPriceData!G$15,CalculationsAndCharts!$A147+$A$11,IF($C$7,8,0),1,1) -> 40578500 | D147: =OFFSET(InputPriceData!C$15,CalculationsAndCharts!$A147+$A$11,IF($C$7,8,0),1,1) -> 657.84 | E147: =OFFSET(InputPriceData!D$15,CalculationsAndCharts!$A147+$A$11,IF($C$7,8,0),1,1) -> 663.37 | F147: =OFFSET(InputPriceData!E$15,CalculationsAndCharts!$A147+$A$11,IF($C$7,8,0),1,1) -> 657.82 | G147: =OFFSET(InputPriceData!F$15,CalculationsAndCharts!$A147+$A$11,IF($C$7,8,0),1,1) -> 662.96 | H147: 677.15 | I147: 587.67 | J147: 632.41 | K147: 649.9218673 | L147: 649.3923981 | M147: 632.41 | N147: 654.608 | O147: 641.03775 | P147: 646.1133653 | W147: 649.9218673 | X147: 649.3923981 | AA147: 641.03775 | AC147: 40578500
A148: 116 | B148: =OFFSET(InputPriceData!B$15,CalculationsAndCharts!$A148+$A$11,0,1,1) -> 2010-08-03 | C148: =OFFSET(InputPriceData!G$15,CalculationsAndCharts!$A148+$A$11,IF($C$7,8,0),1,1) -> 40718200 | D148: =OFFSET(InputPriceData!C$15,CalculationsAndCharts!$A148+$A$11,IF($C$7,8,0),1,1) -> 659.31 | E148: =OFFSET(InputPriceData!D$15,CalculationsAndCharts!$A148+$A$11,IF($C$7,8,0),1,1) -> 664.37 | F148: =OFFSET(InputPriceData!E$15,CalculationsAndCharts!$A148+$A$11,IF($C$7,8,0),1,1) -> 652.04 | G148: =OFFSET(InputPriceData!F$15,CalculationsAndCharts!$A148+$A$11,IF($C$7,8,0),1,1) -> 655.66 | H148: 677.15 | I148: 587.67 | J148: 632.41 | K148: 650.2756424 | L148: 649.1183052 | M148: 632.41 | N148: 649.576 | O148: 640.80385 | P148: 645.4257475 | W148: 650.2756424 | X148: 649.1183052 | AA148: 640.80385 | AD148: 40718200
A149: 117 | B149: =OFFSET(InputPriceData!B$15,CalculationsAndCharts!$A149+$A$11,0,1,1) -> 2010-08-02 | C149: =OFFSET(InputPriceData!G$15,CalculationsAndCharts!$A149+$A$11,IF($C$7,8,0),1,1) -> 41441800 | D149: =OFFSET(InputPriceData!C$15,CalculationsAndCharts!$A149+$A$11,IF($C$7,8,0),1,1) -> 657.42 | E149: =OFFSET(InputPriceData!D$15,CalculationsAndCharts!$A149+$A$11,IF($C$7,8,0),1,1) -> 664.46 | F149: =OFFSET(InputPriceData!E$15,CalculationsAndCharts!$A149+$A$11,IF($C$7,8,0),1,1) -> 656.74 | G149: =OFFSET(InputPriceData!F$15,CalculationsAndCharts!$A149+$A$11,IF($C$7,8,0),1,1) -> 661.86 | H149: 677.15 | I149: 587.67 | J149: 632.41 | K149: 650.6365645 | L149: 648.9861497 | M149: 632.41 | N149: 646.434 | O149: 640.64225 | P149: 645.0080229 | W149: 650.6365645 | X149: 648.9861497 | AA149: 640.64225 | AC149: 41441800
A150: 118 | B150: =OFFSET(InputPriceData!B$15,CalculationsAndCharts!$A150+$A$11,0,1,1) -> 2010-07-30 | C150: =OFFSET(InputPriceData!G$15,CalculationsAndCharts!$A150+$A$11,IF($C$7,8,0),1,1) -> 40064500 | D150: =OFFSET(InputPriceData!C$15,CalculationsAndCharts!$A150+$A$11,IF($C$7,8,0),1,1) -> 643.44 | E150: =OFFSET(InputPriceData!D$15,CalculationsAndCharts!$A150+$A$11,IF($C$7,8,0),1,1) -> 654.8 | F150: =OFFSET(InputPriceData!E$15,CalculationsAndCharts!$A150+$A$11,IF($C$7,8,0),1,1) -> 639.47 | G150: =OFFSET(InputPriceData!F$15,CalculationsAndCharts!$A150+$A$11,IF($C$7,8,0),1,1) -> 650.89 | H150: 677.15 | I150: 587.67 | J150: 632.41 | K150: 651.0047779 | L150: 648.7260719 | M150: 632.41 | N150: 641.556 | O150: 640.45265 | P150: 644.3201871 | W150: 651.0047779 | X150: 648.7260719 | AA150: 640.45265 | AC150: 40064500
A151: 119 | B151: =OFFSET(InputPriceData!B$15,CalculationsAndCharts!$A151+$A$11,0,1,1) -> 2010-07-29 | C151: =OFFSET(InputPriceData!G$15,CalculationsAndCharts!$A151+$A$11,IF($C$7,8,0),1,1) -> 46124200 | D151: =OFFSET(InputPriceData!C$15,CalculationsAndCharts!$A151+$A$11,IF($C$7,8,0),1,1) -> 654.54 | E151: =OFFSET(InputPriceData!D$15,CalculationsAndCharts!$A151+$A$11,IF($C$7,8,0),1,1) -> 658.48 | F151: =OFFSET(InputPriceData!E$15,CalculationsAndCharts!$A151+$A$11,IF($C$7,8,0),1,1) -> 640.57 | G151: =OFFSET(InputPriceData!F$15,CalculationsAndCharts!$A151+$A$11,IF($C$7,8,0),1,1) -> 650.43 | H151: 677.15 | I151: 587.67 | J151: 632.41 | K151: 651.38043 | L151: 648.6823562 | M151: 632.41 | N151: 637.506 | O151: 640.2567 | P151: 644.0520315 | W151: 651.38043 | X151: 648.6823562 | AA151: 640.2567 | AD151: 46124200
A152: 120 | B152: =OFFSET(InputPriceData!B$15,CalculationsAndCharts!$A152+$A$11,0,1,1) -> 2010-07-28 | C152: =OFFSET(InputPriceData!G$15,CalculationsAndCharts!$A152+$A$11,IF($C$7,8,0),1,1) -> 40023900 | D152: =OFFSET(InputPriceData!C$15,CalculationsAndCharts!$A152+$A$11,IF($C$7,8,0),1,1) -> 660.21 | E152: =OFFSET(InputPriceData!D$15,CalculationsAndCharts!$A152+$A$11,IF($C$7,8,0),1,1) -> 663.01 | F152: =OFFSET(InputPriceData!E$15,CalculationsAndCharts!$A152+$A$11,IF($C$7,8,0),1,1) -> 648.45 | G152: =OFFSET(InputPriceData!F$15,CalculationsAndCharts!$A152+$A$11,IF($C$7,8,0),1,1) -> 650.76 | H152: 677.15 | I152: 587.67 | J152: 632.41 | K152: 651.763671 | L152: 648.6470503 | M152: 632.41 | N152: 635.925 | O152: 640.0736 | P152: 643.7917063 | W152: 651.763671 | X152: 648.6470503 | AA152: 640.0736 | AD152: 40023900
A153: 121 | B153: =OFFSET(InputPriceData!B$15,CalculationsAndCharts!$A153+$A$11,0,1,1) -> 2010-07-27 | C153: =OFFSET(InputPriceData!G$15,CalculationsAndCharts!$A153+$A$11,IF($C$7,8,0),1,1) -> 47256900 | D153: =OFFSET(InputPriceData!C$15,CalculationsAndCharts!$A153+$A$11,IF($C$7,8,0),1,1) -> 668.48 | E153: =OFFSET(InputPriceData!D$15,CalculationsAndCharts!$A153+$A$11,IF($C$7,8,0),1,1) -> 672.16 | F153: =OFFSET(InputPriceData!E$15,CalculationsAndCharts!$A153+$A$11,IF($C$7,8,0),1,1) -> 660.09 | G153: =OFFSET(InputPriceData!F$15,CalculationsAndCharts!$A153+$A$11,IF($C$7,8,0),1,1) -> 662.17 | H153: 677.15 | I153: 587.67 | J153: 632.41 | K153: 652.1546543 | L153: 648.6043644 | M153: 632.41 | N153: 634.865 | O153: 639.8944 | P153: 643.5072861 | W153: 652.1546543 | X153: 648.6043644 | AA153: 639.8944 | AD153: 47256900
A154: 122 | B154: =OFFSET(InputPriceData!B$15,CalculationsAndCharts!$A154+$A$11,0,1,1) -> 2010-07-26 | C154: =OFFSET(InputPriceData!G$15,CalculationsAndCharts!$A154+$A$11,IF($C$7,8,0),1,1) -> 40096500 | D154: =OFFSET(InputPriceData!C$15,CalculationsAndCharts!$A154+$A$11,IF($C$7,8,0),1,1) -> 652.4 | E154: =OFFSET(InputPriceData!D$15,CalculationsAndCharts!$A154+$A$11,IF($C$7,8,0),1,1) -> 665.3 | F154: =OFFSET(InputPriceData!E$15,CalculationsAndCharts!$A154+$A$11,IF($C$7,8,0),1,1) -> 650.14 | G154: =OFFSET(InputPriceData!F$15,CalculationsAndCharts!$A154+$A$11,IF($C$7,8,0),1,1) -> 665.22 | H154: 677.15 | I154: 587.67 | J154: 632.41 | K154: 652.5535362 | L154: 648.3303112 | M154: 632.41 | N154: 632.93 | O154: 639.6223 | P154: 642.7455427 | W154: 652.5535362 | X154: 648.3303112 | AA154: 639.6223 | AC154: 40096500
A155: 123 | B155: =OFFSET(InputPriceData!B$15,CalculationsAndCharts!$A155+$A$11,0,1,1) -> 2010-07-23 | C155: =OFFSET(InputPriceData!G$15,CalculationsAndCharts!$A155+$A$11,IF($C$7,8,0),1,1) -> 45245700 | D155: =OFFSET(InputPriceData!C$15,CalculationsAndCharts!$A155+$A$11,IF($C$7,8,0),1,1) -> 632.8 | E155: =OFFSET(InputPriceData!D$15,CalculationsAndCharts!$A155+$A$11,IF($C$7,8,0),1,1) -> 650.88 | F155: =OFFSET(InputPriceData!E$15,CalculationsAndCharts!$A155+$A$11,IF($C$7,8,0),1,1) -> 631.04 | G155: =OFFSET(InputPriceData!F$15,CalculationsAndCharts!$A155+$A$11,IF($C$7,8,0),1,1) -> 650.65 | H155: 677.15 | I155: 587.67 | J155: 632.41 | K155: 652.9604763 | L155: 647.9891054 | M155: 632.41 | N155: 628.569 | O155: 639.3066 | P155: 641.8282179 | W155: 652.9604763 | X155: 647.9891054 | AA155: 639.3066 | AC155: 45245700
A156: 124 | B156: =OFFSET(InputPriceData!B$15,CalculationsAndCharts!$A156+$A$11,0,1,1) -> 2010-07-22 | C156: =OFFSET(InputPriceData!G$15,CalculationsAndCharts!$A156+$A$11,IF($C$7,8,0),1,1) -> 48269000 | D156: =OFFSET(InputPriceData!C$15,CalculationsAndCharts!$A156+$A$11,IF($C$7,8,0),1,1) -> 618.46 | E156: =OFFSET(InputPriceData!D$15,CalculationsAndCharts!$A156+$A$11,IF($C$7,8,0),1,1) -> 635.95 | F156: =OFFSET(InputPriceData!E$15,CalculationsAndCharts!$A156+$A$11,IF($C$7,8,0),1,1) -> 618.46 | G156: =OFFSET(InputPriceData!F$15,CalculationsAndCharts!$A156+$A$11,IF($C$7,8,0),1,1) -> 635.48 | H156: 677.15 | I156: 587.67 | J156: 632.41 | K156: 653.3756374 | L156: 647.9353499 | M156: 632.41 | N156: 626.447 | O156: 639.06325 | P156: 641.4681452 | W156: 653.3756374 | X156: 647.9353499 | AA156: 639.06325 | AC156: 48269000
A157: 125 | B157: =OFFSET(InputPriceData!B$15,CalculationsAndCharts!$A157+$A$11,0,1,1) -> 2010-07-21 | C157: =OFFSET(InputPriceData!G$15,CalculationsAndCharts!$A157+$A$11,IF($C$7,8,0),1,1) -> 47471800 | D157: =OFFSET(InputPriceData!C$15,CalculationsAndCharts!$A157+$A$11,IF($C$7,8,0),1,1) -> 627.53 | E157: =OFFSET(InputPriceData!D$15,CalculationsAndCharts!$A157+$A$11,IF($C$7,8,0),1,1) -> 629.42 | F157: =OFFSET(InputPriceData!E$15,CalculationsAndCharts!$A157+$A$11,IF($C$7,8,0),1,1) -> 611.85 | G157: =OFFSET(InputPriceData!F$15,CalculationsAndCharts!$A157+$A$11,IF($C$7,8,0),1,1) -> 612.64 | H157: 677.15 | I157: 587.67 | J157: 632.41 | K157: 653.7991857 | L157: 648.1869731 | M157: 632.86 | N157: 624.926 | O157: 638.8414 | P157: 641.7125592 | W157: 653.7991857 | X157: 648.1869731 | AA157: 638.8414 | AD157: 47471800
A158: 126 | B158: =OFFSET(InputPriceData!B$15,CalculationsAndCharts!$A158+$A$11,0,1,1) -> 2010-07-20 | C158: =OFFSET(InputPriceData!G$15,CalculationsAndCharts!$A158+$A$11,IF($C$7,8,0),1,1) -> 47132800 | D158: =OFFSET(InputPriceData!C$15,CalculationsAndCharts!$A158+$A$11,IF($C$7,8,0),1,1) -> 606.76 | E158: =OFFSET(InputPriceData!D$15,CalculationsAndCharts!$A158+$A$11,IF($C$7,8,0),1,1) -> 624.31 | F158: =OFFSET(InputPriceData!E$15,CalculationsAndCharts!$A158+$A$11,IF($C$7,8,0),1,1) -> 603.5 | G158: =OFFSET(InputPriceData!F$15,CalculationsAndCharts!$A158+$A$11,IF($C$7,8,0),1,1) -> 624.24 | H158: 677.15 | I158: 587.67 | J158: 632.41 | K158: 654.2312904 | L158: 648.9050938 | M158: 634.2695 | N158: 624.828 | O158: 638.6792 | P158: 642.8991943 | W158: 654.2312904 | X158: 648.9050938 | AA158: 638.6792 | AC158: 47132800
A159: 127 | B159: =OFFSET(InputPriceData!B$15,CalculationsAndCharts!$A159+$A$11,0,1,1) -> 2010-07-19 | C159: =OFFSET(InputPriceData!G$15,CalculationsAndCharts!$A159+$A$11,IF($C$7,8,0),1,1) -> 40895000 | D159: =OFFSET(InputPriceData!C$15,CalculationsAndCharts!$A159+$A$11,IF($C$7,8,0),1,1) -> 612.26 | E159: =OFFSET(InputPriceData!D$15,CalculationsAndCharts!$A159+$A$11,IF($C$7,8,0),1,1) -> 614.02 | F159: =OFFSET(InputPriceData!E$15,CalculationsAndCharts!$A159+$A$11,IF($C$7,8,0),1,1) -> 602.64 | G159: =OFFSET(InputPriceData!F$15,CalculationsAndCharts!$A159+$A$11,IF($C$7,8,0),1,1) -> 613.08 | H159: 677.15 | I159: 587.67 | J159: 632.41 | K159: 654.6721246 | L159: 649.4033785 | M159: 635.679 | N159: 621.407 | O159: 638.47675 | P159: 643.6607941 | W159: 654.6721246 | X159: 649.4033785 | AA159: 638.47675 | AC159: 40895000
A160: 128 | B160: =OFFSET(InputPriceData!B$15,CalculationsAndCharts!$A160+$A$11,0,1,1) -> 2010-07-16 | C160: =OFFSET(InputPriceData!G$15,CalculationsAndCharts!$A160+$A$11,IF($C$7,8,0),1,1) -> 52973500 | D160: =OFFSET(InputPriceData!C$15,CalculationsAndCharts!$A160+$A$11,IF($C$7,8,0),1,1) -> 631.36 | E160: =OFFSET(InputPriceData!D$15,CalculationsAndCharts!$A160+$A$11,IF($C$7,8,0),1,1) -> 631.36 | F160: =OFFSET(InputPriceData!E$15,CalculationsAndCharts!$A160+$A$11,IF($C$7,8,0),1,1) -> 609.57 | G160: =OFFSET(InputPriceData!F$15,CalculationsAndCharts!$A160+$A$11,IF($C$7,8,0),1,1) -> 610.39 | H160: 677.15 | I160: 587.67 | J160: 632.41 | K160: 655.1218645 | L160: 650.1371842 | M160: 637.4325 | N160: 619.996 | O160: 638.43275 | P160: 644.9089898 | W160: 655.1218645 | X160: 650.1371842 | AA160: 638.43275 | AD160: 52973500
A161: 129 | B161: =OFFSET(InputPriceData!B$15,CalculationsAndCharts!$A161+$A$11,0,1,1) -> 2010-07-15 | C161: =OFFSET(InputPriceData!G$15,CalculationsAndCharts!$A161+$A$11,IF($C$7,8,0),1,1) -> 45524700 | D161: =OFFSET(InputPriceData!C$15,CalculationsAndCharts!$A161+$A$11,IF($C$7,8,0),1,1) -> 640.3 | E161: =OFFSET(InputPriceData!D$15,CalculationsAndCharts!$A161+$A$11,IF($C$7,8,0),1,1) -> 640.3 | F161: =OFFSET(InputPriceData!E$15,CalculationsAndCharts!$A161+$A$11,IF($C$7,8,0),1,1) -> 627.33 | G161: =OFFSET(InputPriceData!F$15,CalculationsAndCharts!$A161+$A$11,IF($C$7,8,0),1,1) -> 634.62 | H161: 677.15 | I161: 587.67 | J161: 632.41 | K161: 655.58069 | L161: 650.9401576 | M161: 639.705 | N161: 619.433 | O161: 638.43305 | P161: 646.3179281 | W161: 655.58069 | X161: 650.9401576 | AA161: 638.43305 | AC161: =IF(G161>=D161,C161,NA()) ->  | AD161: =IF(G161<D161,C161,NA()) -> 45524700
A162: 130 | B162: =OFFSET(InputPriceData!B$15,CalculationsAndCharts!$A162+$A$11,0,1,1) -> 2010-07-14 | C162: =OFFSET(InputPriceData!G$15,CalculationsAndCharts!$A162+$A$11,IF($C$7,8,0),1,1) -> 45210500 | D162: =OFFSET(InputPriceData!C$15,CalculationsAndCharts!$A162+$A$11,IF($C$7,8,0),1,1) -> 640.32 | E162: =OFFSET(InputPriceData!D$15,CalculationsAndCharts!$A162+$A$11,IF($C$7,8,0),1,1) -> 643.47 | F162: =OFFSET(InputPriceData!E$15,CalculationsAndCharts!$A162+$A$11,IF($C$7,8,0),1,1) -> 635.63 | G162: =OFFSET(InputPriceData!F$15,CalculationsAndCharts!$A162+$A$11,IF($C$7,8,0),1,1) -> 640.16 | H162: =MAX(OFFSET(E162,0,0,$A$19,1)) -> 677.15 | I162: =MIN(OFFSET(F162,0,0,$A$19,1)) -> 587.67 | J162: =(H162+I162)/2 -> 632.41 | K162: =$C$20*$J162+$D$20*K163 -> 656.0487847 | L162: =IF($A162>$A$8,0,IF($A162=$A$8,$G162,$C$20*$G162+$D$20*L163)) -> 651.2698577 | M162: =AVERAGE(OFFSET(J162,0,0,$A$21,1)) -> 642.8135 | N162: =IF($A162>$A$8,0,IF($A162=$A$8,$G162,AVERAGE(OFFSET($G162,0,0,$A$21,1)))) -> 616.92 | O162: =IF($A162>$A$8,0,IF($A162=$A$8,$G162,AVERAGE(OFFSET($G162,0,0,$A$16,1)))) -> 638.32605 | P162: =IF($A162>$A$8,0,IF($A162=$A$8,$G162,$C$17*$G162+$D$17*P163)) -> 646.7953946 | T162: =IF($R$4,H162,NA()) ->  | U162: =IF($R$5,I162,NA()) ->  | V162: =IF($R$6,J162,NA()) ->  | W162: =IF($R$8,K162,NA()) -> 656.0487847 | X162: =IF($R$9,L162,NA()) -> 651.2698577 | Y162: =IF($R$11,M162,NA()) ->  | Z162: =IF($R$12,N162,NA()) ->  | AA162: =IF($R$14,O162,NA()) -> 638.32605 | AB162: =IF($R$15,P162,NA()) ->  | AD162: 45210500
A163: 131 | B163: =OFFSET(InputPriceData!B$15,CalculationsAndCharts!$A163+$A$11,0,1,1) -> 2010-07-13 | C163: =OFFSET(InputPriceData!G$15,CalculationsAndCharts!$A163+$A$11,IF($C$7,8,0),1,1) -> 46404600 | D163: =OFFSET(InputPriceData!C$15,CalculationsAndCharts!$A163+$A$11,IF($C$7,8,0),1,1) -> 626.72 | E163: =OFFSET(InputPriceData!D$15,CalculationsAndCharts!$A163+$A$11,IF($C$7,8,0),1,1) -> 644.33 | F163: =OFFSET(InputPriceData!E$15,CalculationsAndCharts!$A163+$A$11,IF($C$7,8,0),1,1) -> 626.72 | G163: =OFFSET(InputPriceData!F$15,CalculationsAndCharts!$A163+$A$11,IF($C$7,8,0),1,1) -> 642.82 | H163: 677.15 | I163: 587.67 | J163: 632.41 | K163: 656.526336 | L163: 651.4942993 | M163: 645.922 | N163: 614.5 | O163: 638.11995 | P163: 647.066227 | W163: 656.526336 | X163: 651.4942993 | AA163: 638.11995 | AC163: 46404600
A164: 132 | B164: =OFFSET(InputPriceData!B$15,CalculationsAndCharts!$A164+$A$11,0,1,1) -> 2010-07-12 | C164: =OFFSET(InputPriceData!G$15,CalculationsAndCharts!$A164+$A$11,IF($C$7,8,0),1,1) -> 34269900 | D164: =OFFSET(InputPriceData!C$15,CalculationsAndCharts!$A164+$A$11,IF($C$7,8,0),1,1) -> 627.64 | E164: =OFFSET(InputPriceData!D$15,CalculationsAndCharts!$A164+$A$11,IF($C$7,8,0),1,1) -> 631.35 | F164: =OFFSET(InputPriceData!E$15,CalculationsAndCharts!$A164+$A$11,IF($C$7,8,0),1,1) -> 617.58 | G164: =OFFSET(InputPriceData!F$15,CalculationsAndCharts!$A164+$A$11,IF($C$7,8,0),1,1) -> 621.61 | H164: 677.15 | I164: 587.67 | J164: 632.41 | K164: 657.0135347 | L164: 651.6695377 | M164: 649.0305 | N164: 614.372 | O164: 637.9146 | P164: 647.2395424 | W164: 657.0135347 | X164: 651.6695377 | AA164: 637.9146 | AD164: 34269900
A165: 133 | B165: =OFFSET(InputPriceData!B$15,CalculationsAndCharts!$A165+$A$11,0,1,1) -> 2010-07-09 | C165: =OFFSET(InputPriceData!G$15,CalculationsAndCharts!$A165+$A$11,IF($C$7,8,0),1,1) -> 35065700 | D165: =OFFSET(InputPriceData!C$15,CalculationsAndCharts!$A165+$A$11,IF($C$7,8,0),1,1) -> 619.35 | E165: =OFFSET(InputPriceData!D$15,CalculationsAndCharts!$A165+$A$11,IF($C$7,8,0),1,1) -> 629.55 | F165: =OFFSET(InputPriceData!E$15,CalculationsAndCharts!$A165+$A$11,IF($C$7,8,0),1,1) -> 618.39 | G165: =OFFSET(InputPriceData!F$15,CalculationsAndCharts!$A165+$A$11,IF($C$7,8,0),1,1) -> 629.43 | H165: 677.15 | I165: 587.67 | J165: 632.41 | K165: 657.5105758 | L165: 652.2768011 | M165: 652.139 | N165: 616.722 | O165: 637.8734 | P165: 648.2856462 | W165: 657.5105758 | X165: 652.2768011 | AA165: 637.8734 | AC165: 35065700
A166: 134 | B166: =OFFSET(InputPriceData!B$15,CalculationsAndCharts!$A166+$A$11,0,1,1) -> 2010-07-08 | C166: =OFFSET(InputPriceData!G$15,CalculationsAndCharts!$A166+$A$11,IF($C$7,8,0),1,1) -> 45484600 | D166: =OFFSET(InputPriceData!C$15,CalculationsAndCharts!$A166+$A$11,IF($C$7,8,0),1,1) -> 615.63 | E166: =OFFSET(InputPriceData!D$15,CalculationsAndCharts!$A166+$A$11,IF($C$7,8,0),1,1) -> 620.4 | F166: =OFFSET(InputPriceData!E$15,CalculationsAndCharts!$A166+$A$11,IF($C$7,8,0),1,1) -> 611.54 | G166: =OFFSET(InputPriceData!F$15,CalculationsAndCharts!$A166+$A$11,IF($C$7,8,0),1,1) -> 620.27 | H166: 686.15 | I166: 587.67 | J166: 636.91 | K166: 658.0176581 | L166: 652.7383526 | M166: 655.2475 | N166: 617.096 | O166: 637.8297 | P166: 649.0552644 | W166: 658.0176581 | X166: 652.7383526 | AA166: 637.8297 | AC166: 45484600
A167: 135 | B167: =OFFSET(InputPriceData!B$15,CalculationsAndCharts!$A167+$A$11,0,1,1) -> 2010-07-07 | C167: =OFFSET(InputPriceData!G$15,CalculationsAndCharts!$A167+$A$11,IF($C$7,8,0),1,1) -> 49312200 | D167: =OFFSET(InputPriceData!C$15,CalculationsAndCharts!$A167+$A$11,IF($C$7,8,0),1,1) -> 592.11 | E167: =OFFSET(InputPriceData!D$15,CalculationsAndCharts!$A167+$A$11,IF($C$7,8,0),1,1) -> 611.68 | F167: =OFFSET(InputPriceData!E$15,CalculationsAndCharts!$A167+$A$11,IF($C$7,8,0),1,1) -> 592.09 | G167: =OFFSET(InputPriceData!F$15,CalculationsAndCharts!$A167+$A$11,IF($C$7,8,0),1,1) -> 611.66 | H167: 705.34 | I167: 587.67 | J167: 646.505 | K167: 658.4440754 | L167: 653.3942789 | M167: 657.906 | N167: 619.494 | O167: 637.8082 | P167: 650.2301731 | W167: 658.4440754 | X167: 653.3942789 | AA167: 637.8082 | AC167: 49312200
A168: 136 | B168: =OFFSET(InputPriceData!B$15,CalculationsAndCharts!$A168+$A$11,0,1,1) -> 2010-07-06 | C168: =OFFSET(InputPriceData!G$15,CalculationsAndCharts!$A168+$A$11,IF($C$7,8,0),1,1) -> 46912400 | D168: =OFFSET(InputPriceData!C$15,CalculationsAndCharts!$A168+$A$11,IF($C$7,8,0),1,1) -> 605.06 | E168: =OFFSET(InputPriceData!D$15,CalculationsAndCharts!$A168+$A$11,IF($C$7,8,0),1,1) -> 613.31 | F168: =OFFSET(InputPriceData!E$15,CalculationsAndCharts!$A168+$A$11,IF($C$7,8,0),1,1) -> 587.67 | G168: =OFFSET(InputPriceData!F$15,CalculationsAndCharts!$A168+$A$11,IF($C$7,8,0),1,1) -> 590.03 | H168: 705.34 | I168: 587.67 | J168: 646.505 | K168: 658.6852689 | L168: 654.2373957 | M168: 659.938 | N168: 622.919 | O168: 637.8393 | P168: 651.8044659 | W168: 658.6852689 | X168: 654.2373957 | AA168: 637.8393 | AD168: 46912400
A169: 137 | B169: =OFFSET(InputPriceData!B$15,CalculationsAndCharts!$A169+$A$11,0,1,1) -> 2010-07-02 | C169: =OFFSET(InputPriceData!G$15,CalculationsAndCharts!$A169+$A$11,IF($C$7,8,0),1,1) -> 39685000 | D169: =OFFSET(InputPriceData!C$15,CalculationsAndCharts!$A169+$A$11,IF($C$7,8,0),1,1) -> 604.93 | E169: =OFFSET(InputPriceData!D$15,CalculationsAndCharts!$A169+$A$11,IF($C$7,8,0),1,1) -> 608.69 | F169: =OFFSET(InputPriceData!E$15,CalculationsAndCharts!$A169+$A$11,IF($C$7,8,0),1,1) -> 595.39 | G169: =OFFSET(InputPriceData!F$15,CalculationsAndCharts!$A169+$A$11,IF($C$7,8,0),1,1) -> 598.97 | H169: 709.32 | I169: 590.57 | J169: 649.945 | K169: 658.9313349 | L169: 655.5345148 | M169: 662.2955 | N169: 629.919 | O169: 637.9665 | P169: 654.3258727 | W169: 658.9313349 | X169: 655.5345148 | AA169: 637.9665 | AD169: 39685000
A170: 138 | B170: =OFFSET(InputPriceData!B$15,CalculationsAndCharts!$A170+$A$11,0,1,1) -> 2010-07-01 | C170: =OFFSET(InputPriceData!G$15,CalculationsAndCharts!$A170+$A$11,IF($C$7,8,0),1,1) -> 64357700 | D170: =OFFSET(InputPriceData!C$15,CalculationsAndCharts!$A170+$A$11,IF($C$7,8,0),1,1) -> 609.77 | E170: =OFFSET(InputPriceData!D$15,CalculationsAndCharts!$A170+$A$11,IF($C$7,8,0),1,1) -> 611.11 | F170: =OFFSET(InputPriceData!E$15,CalculationsAndCharts!$A170+$A$11,IF($C$7,8,0),1,1) -> 590.57 | G170: =OFFSET(InputPriceData!F$15,CalculationsAndCharts!$A170+$A$11,IF($C$7,8,0),1,1) -> 604.76 | H170: 719.7 | I170: 590.57 | J170: 655.135 | K170: 659.112877 | L170: 656.6772322 | M170: 664.597 | N170: 636.714 | O170: 638.05855 | P170: 656.5852961 | W170: 659.112877 | X170: 656.6772322 | AA170: 638.05855 | AD170: 64357700
A171: 139 | B171: =OFFSET(InputPriceData!B$15,CalculationsAndCharts!$A171+$A$11,0,1,1) -> 2010-06-30 | C171: =OFFSET(InputPriceData!G$15,CalculationsAndCharts!$A171+$A$11,IF($C$7,8,0),1,1) -> 50670800 | D171: =OFFSET(InputPriceData!C$15,CalculationsAndCharts!$A171+$A$11,IF($C$7,8,0),1,1) -> 616.34 | E171: =OFFSET(InputPriceData!D$15,CalculationsAndCharts!$A171+$A$11,IF($C$7,8,0),1,1) -> 623.71 | F171: =OFFSET(InputPriceData!E$15,CalculationsAndCharts!$A171+$A$11,IF($C$7,8,0),1,1) -> 608.34 | G171: =OFFSET(InputPriceData!F$15,CalculationsAndCharts!$A171+$A$11,IF($C$7,8,0),1,1) -> 609.49 | H171: 719.7 | I171: 607.29 | J171: 663.495 | K171: 659.1932382 | L171: 657.7260652 | M171: 666.3795 | N171: 642.823 | O171: 638.05895 | P171: 658.7006143 | W171: 659.1932382 | X171: 657.7260652 | AA171: 638.05895 | AD171: 50670800
A172: 140 | B172: =OFFSET(InputPriceData!B$15,CalculationsAndCharts!$A172+$A$11,0,1,1) -> 2010-06-29 | C172: =OFFSET(InputPriceData!G$15,CalculationsAndCharts!$A172+$A$11,IF($C$7,8,0),1,1) -> 61367000 | D172: =OFFSET(InputPriceData!C$15,CalculationsAndCharts!$A172+$A$11,IF($C$7,8,0),1,1) -> 635.96 | E172: =OFFSET(InputPriceData!D$15,CalculationsAndCharts!$A172+$A$11,IF($C$7,8,0),1,1) -> 635.96 | F172: =OFFSET(InputPriceData!E$15,CalculationsAndCharts!$A172+$A$11,IF($C$7,8,0),1,1) -> 612.09 | G172: =OFFSET(InputPriceData!F$15,CalculationsAndCharts!$A172+$A$11,IF($C$7,8,0),1,1) -> 615.96 | H172: 719.7 | I172: 607.29 | J172: 663.495 | K172: 659.1063339 | L172: 658.7005312 | M172: 667.326 | N172: 648.487 | O172: 638.01165 | P172: 660.7092108 | W172: 659.1063339 | X172: 658.7005312 | AA172: 638.01165 | AD172: 61367000
A173: 141 | B173: =OFFSET(InputPriceData!B$15,CalculationsAndCharts!$A173+$A$11,0,1,1) -> 2010-06-28 | C173: =OFFSET(InputPriceData!G$15,CalculationsAndCharts!$A173+$A$11,IF($C$7,8,0),1,1) -> 38964100 | D173: =OFFSET(InputPriceData!C$15,CalculationsAndCharts!$A173+$A$11,IF($C$7,8,0),1,1) -> 644.16 | E173: =OFFSET(InputPriceData!D$15,CalculationsAndCharts!$A173+$A$11,IF($C$7,8,0),1,1) -> 649.72 | F173: =OFFSET(InputPriceData!E$15,CalculationsAndCharts!$A173+$A$11,IF($C$7,8,0),1,1) -> 638.53 | G173: =OFFSET(InputPriceData!F$15,CalculationsAndCharts!$A173+$A$11,IF($C$7,8,0),1,1) -> 641.54 | H173: 719.7 | I173: 607.29 | J173: 663.495 | K173: 659.017674 | L173: 659.5639762 | M173: 668.427 | N173: 653.768 | O173: 637.8998 | P173: 662.5357092 | W173: 659.017674 | X173: 659.5639762 | AA173: 637.8998 | AD173: 38964100
A174: 142 | B174: =OFFSET(InputPriceData!B$15,CalculationsAndCharts!$A174+$A$11,0,1,1) -> 2010-06-25 | C174: =OFFSET(InputPriceData!G$15,CalculationsAndCharts!$A174+$A$11,IF($C$7,8,0),1,1) -> 51288400 | D174: =OFFSET(InputPriceData!C$15,CalculationsAndCharts!$A174+$A$11,IF($C$7,8,0),1,1) -> 635.2 | E174: =OFFSET(InputPriceData!D$15,CalculationsAndCharts!$A174+$A$11,IF($C$7,8,0),1,1) -> 646.67 | F174: =OFFSET(InputPriceData!E$15,CalculationsAndCharts!$A174+$A$11,IF($C$7,8,0),1,1) -> 631.22 | G174: =OFFSET(InputPriceData!F$15,CalculationsAndCharts!$A174+$A$11,IF($C$7,8,0),1,1) -> 645.11 | H174: 719.7 | I174: 607.29 | J174: 663.495 | K174: 658.927223 | L174: 659.928097 | M174: 669.7395 | N174: 654.841 | O174: 637.6666 | P174: 663.3926769 | W174: 658.927223 | X174: 659.928097 | AA174: 637.6666 | AC174: 51288400
A175: 143 | B175: =OFFSET(InputPriceData!B$15,CalculationsAndCharts!$A175+$A$11,0,1,1) -> 2010-06-24 | C175: =OFFSET(InputPriceData!G$15,CalculationsAndCharts!$A175+$A$11,IF($C$7,8,0),1,1) -> 48148300 | D175: =OFFSET(InputPriceData!C$15,CalculationsAndCharts!$A175+$A$11,IF($C$7,8,0),1,1) -> 641.61 | E175: =OFFSET(InputPriceData!D$15,CalculationsAndCharts!$A175+$A$11,IF($C$7,8,0),1,1) -> 643.37 | F175: =OFFSET(InputPriceData!E$15,CalculationsAndCharts!$A175+$A$11,IF($C$7,8,0),1,1) -> 632.87 | G175: =OFFSET(InputPriceData!F$15,CalculationsAndCharts!$A175+$A$11,IF($C$7,8,0),1,1) -> 633.17 | H175: 719.7 | I175: 607.29 | J175: 663.495 | K175: 658.8349446 | L175: 660.2274525 | M175: 671.052 | N175: 655.23 | O175: 637.37305 | P175: 664.1389086 | W175: 658.8349446 | X175: 660.2274525 | AA175: 637.37305 | AD175: 48148300
A176: 144 | B176: =OFFSET(InputPriceData!B$15,CalculationsAndCharts!$A176+$A$11,0,1,1) -> 2010-06-23 | C176: =OFFSET(InputPriceData!G$15,CalculationsAndCharts!$A176+$A$11,IF($C$7,8,0),1,1) -> 45261500 | D176: =OFFSET(InputPriceData!C$15,CalculationsAndCharts!$A176+$A$11,IF($C$7,8,0),1,1) -> 645.29 | E176: =OFFSET(InputPriceData!D$15,CalculationsAndCharts!$A176+$A$11,IF($C$7,8,0),1,1) -> 650.04 | F176: =OFFSET(InputPriceData!E$15,CalculationsAndCharts!$A176+$A$11,IF($C$7,8,0),1,1) -> 637.74 | G176: =OFFSET(InputPriceData!F$15,CalculationsAndCharts!$A176+$A$11,IF($C$7,8,0),1,1) -> 644.25 | H176: 719.7 | I176: 607.29 | J176: 663.495 | K176: 658.7408021 | L176: 660.7740677 | M176: 672.3645 | N176: 655.892 | O176: 637.0891 | P176: 665.4029457 | W176: 658.7408021 | X176: 660.7740677 | AA176: 637.0891 | AD176: 45261500
A177: 145 | B177: =OFFSET(InputPriceData!B$15,CalculationsAndCharts!$A177+$A$11,0,1,1) -> 2010-06-22 | C177: =OFFSET(InputPriceData!G$15,CalculationsAndCharts!$A177+$A$11,IF($C$7,8,0),1,1) -> 45143800 | D177: =OFFSET(InputPriceData!C$15,CalculationsAndCharts!$A177+$A$11,IF($C$7,8,0),1,1) -> 661.8 | E177: =OFFSET(InputPriceData!D$15,CalculationsAndCharts!$A177+$A$11,IF($C$7,8,0),1,1) -> 668.21 | F177: =OFFSET(InputPriceData!E$15,CalculationsAndCharts!$A177+$A$11,IF($C$7,8,0),1,1) -> 645.63 | G177: =OFFSET(InputPriceData!F$15,CalculationsAndCharts!$A177+$A$11,IF($C$7,8,0),1,1) -> 645.91 | H177: 726.36 | I177: 607.29 | J177: 666.825 | K177: 658.6447577 | L177: 661.1078872 | M177: 673.677 | N177: 653.296 | O177: 636.72035 | P177: 666.2663312 | W177: 658.6447577 | X177: 661.1078872 | AA177: 636.72035 | AD177: 45143800
A178: 146 | B178: =OFFSET(InputPriceData!B$15,CalculationsAndCharts!$A178+$A$11,0,1,1) -> 2010-06-21 | C178: =OFFSET(InputPriceData!G$15,CalculationsAndCharts!$A178+$A$11,IF($C$7,8,0),1,1) -> 45143600 | D178: =OFFSET(InputPriceData!C$15,CalculationsAndCharts!$A178+$A$11,IF($C$7,8,0),1,1) -> 673.12 | E178: =OFFSET(InputPriceData!D$15,CalculationsAndCharts!$A178+$A$11,IF($C$7,8,0),1,1) -> 677.15 | F178: =OFFSET(InputPriceData!E$15,CalculationsAndCharts!$A178+$A$11,IF($C$7,8,0),1,1) -> 656.67 | G178: =OFFSET(InputPriceData!F$15,CalculationsAndCharts!$A178+$A$11,IF($C$7,8,0),1,1) -> 660.03 | H178: 732.87 | I178: 607.29 | J178: 670.08 | K178: 658.4795003 | L178: 661.4149152 | M178: 674.6565 | N178: 650.474 | O178: 636.30325 | P178: 667.0972019 | W178: 658.4795003 | X178: 661.4149152 | AA178: 636.30325 | AD178: 45143600
A179: 147 | B179: =OFFSET(InputPriceData!B$15,CalculationsAndCharts!$A179+$A$11,0,1,1) -> 2010-06-18 | C179: =OFFSET(InputPriceData!G$15,CalculationsAndCharts!$A179+$A$11,IF($C$7,8,0),1,1) -> 45553600 | D179: =OFFSET(InputPriceData!C$15,CalculationsAndCharts!$A179+$A$11,IF($C$7,8,0),1,1) -> 667.35 | E179: =OFFSET(InputPriceData!D$15,CalculationsAndCharts!$A179+$A$11,IF($C$7,8,0),1,1) -> 671.55 | F179: =OFFSET(InputPriceData!E$15,CalculationsAndCharts!$A179+$A$11,IF($C$7,8,0),1,1) -> 663.91 | G179: =OFFSET(InputPriceData!F$15,CalculationsAndCharts!$A179+$A$11,IF($C$7,8,0),1,1) -> 666.92 | H179: 738.63 | I179: 607.29 | J179: 672.96 | K179: 658.2451468 | L179: 661.4428933 | M179: 675.8265 | N179: 646.32 | O179: 635.78225 | P179: 667.3856591 | W179: 658.2451468 | X179: 661.4428933 | AA179: 635.78225 | AD179: 45553600
A180: 148 | B180: =OFFSET(InputPriceData!B$15,CalculationsAndCharts!$A180+$A$11,0,1,1) -> 2010-06-17 | C180: =OFFSET(InputPriceData!G$15,CalculationsAndCharts!$A180+$A$11,IF($C$7,8,0),1,1) -> 45577600 | D180: =OFFSET(InputPriceData!C$15,CalculationsAndCharts!$A180+$A$11,IF($C$7,8,0),1,1) -> 668.91 | E180: =OFFSET(InputPriceData!D$15,CalculationsAndCharts!$A180+$A$11,IF($C$7,8,0),1,1) -> 669.34 | F180: =OFFSET(InputPriceData!E$15,CalculationsAndCharts!$A180+$A$11,IF($C$7,8,0),1,1) -> 659.36 | G180: =OFFSET(InputPriceData!F$15,CalculationsAndCharts!$A180+$A$11,IF($C$7,8,0),1,1) -> 665.85 | H180: 738.63 | I180: 607.29 | J180: 672.96 | K180: 657.947877 | L180: 661.3322447 | M180: 676.7085 | N180: 643.025 | O180: 635.23795 | P180: 667.4046656 | W180: 657.947877 | X180: 661.3322447 | AA180: 635.23795 | AD180: 45577600
A181: 149 | B181: =OFFSET(InputPriceData!B$15,CalculationsAndCharts!$A181+$A$11,0,1,1) -> 2010-06-16 | C181: =OFFSET(InputPriceData!G$15,CalculationsAndCharts!$A181+$A$11,IF($C$7,8,0),1,1) -> 50026000 | D181: =OFFSET(InputPriceData!C$15,CalculationsAndCharts!$A181+$A$11,IF($C$7,8,0),1,1) -> 663.85 | E181: =OFFSET(InputPriceData!D$15,CalculationsAndCharts!$A181+$A$11,IF($C$7,8,0),1,1) -> 671.74 | F181: =OFFSET(InputPriceData!E$15,CalculationsAndCharts!$A181+$A$11,IF($C$7,8,0),1,1) -> 662.29 | G181: =OFFSET(InputPriceData!F$15,CalculationsAndCharts!$A181+$A$11,IF($C$7,8,0),1,1) -> 666.13 | H181: 738.63 | I181: 607.29 | J181: 672.96 | K181: 657.6446018 | L181: 661.2409769 | M181: 677.5905 | N181: 643.177 | O181: 634.76905 | P181: 667.4681213 | W181: 657.6446018 | X181: 661.2409769 | AA181: 634.76905 | AC181: 50026000
A182: 150 | B182: =OFFSET(InputPriceData!B$15,CalculationsAndCharts!$A182+$A$11,0,1,1) -> 2010-06-15 | C182: =OFFSET(InputPriceData!G$15,CalculationsAndCharts!$A182+$A$11,IF($C$7,8,0),1,1) -> 46444900 | D182: =OFFSET(InputPriceData!C$15,CalculationsAndCharts!$A182+$A$11,IF($C$7,8,0),1,1) -> 655.61 | E182: =OFFSET(InputPriceData!D$15,CalculationsAndCharts!$A182+$A$11,IF($C$7,8,0),1,1) -> 669.95 | F182: =OFFSET(InputPriceData!E$15,CalculationsAndCharts!$A182+$A$11,IF($C$7,8,0),1,1) -> 654.47 | G182: =OFFSET(InputPriceData!F$15,CalculationsAndCharts!$A182+$A$11,IF($C$7,8,0),1,1) -> 668.77 | H182: 741.72 | I182: 607.29 | J182: 674.505 | K182: 657.3351998 | L182: 661.1422088 | M182: 678.4725 | N182: 642.616 | O182: 634.3377 | P182: 667.5227385 | W182: 657.3351998 | X182: 661.1422088 | AA182: 634.3377 | AC182: 46444900
A183: 151 | B183: =OFFSET(InputPriceData!B$15,CalculationsAndCharts!$A183+$A$11,0,1,1) -> 2010-06-14 | C183: =OFFSET(InputPriceData!G$15,CalculationsAndCharts!$A183+$A$11,IF($C$7,8,0),1,1) -> 44258300 | D183: =OFFSET(InputPriceData!C$15,CalculationsAndCharts!$A183+$A$11,IF($C$7,8,0),1,1) -> 653.85 | E183: =OFFSET(InputPriceData!D$15,CalculationsAndCharts!$A183+$A$11,IF($C$7,8,0),1,1) -> 662.95 | F183: =OFFSET(InputPriceData!E$15,CalculationsAndCharts!$A183+$A$11,IF($C$7,8,0),1,1) -> 651.01 | G183: =OFFSET(InputPriceData!F$15,CalculationsAndCharts!$A183+$A$11,IF($C$7,8,0),1,1) -> 652.27 | H183: 745.95 | I183: 607.29 | J183: 676.62 | K183: 656.9883351 | L183: 660.988112 | M183: 679.2 | N183: 639.835 | O183: 633.9127 | P183: 667.4718299 | W183: 656.9883351 | X183: 660.988112 | AA183: 633.9127 | AD183: 44258300
A184: 152 | B184: =OFFSET(InputPriceData!B$15,CalculationsAndCharts!$A184+$A$11,0,1,1) -> 2010-06-11 | C184: =OFFSET(InputPriceData!G$15,CalculationsAndCharts!$A184+$A$11,IF($C$7,8,0),1,1) -> 40592800 | D184: =OFFSET(InputPriceData!C$15,CalculationsAndCharts!$A184+$A$11,IF($C$7,8,0),1,1) -> 634.18 | E184: =OFFSET(InputPriceData!D$15,CalculationsAndCharts!$A184+$A$11,IF($C$7,8,0),1,1) -> 649 | F184: =OFFSET(InputPriceData!E$15,CalculationsAndCharts!$A184+$A$11,IF($C$7,8,0),1,1) -> 632.82 | G184: =OFFSET(InputPriceData!F$15,CalculationsAndCharts!$A184+$A$11,IF($C$7,8,0),1,1) -> 649 | H184: 745.95 | I184: 607.29 | J184: 676.62 | K184: 656.5917359 | L184: 661.1642355 | M184: 679.716 | N184: 640.769 | O184: 633.57145 | P184: 668.0923127 | W184: 656.5917359 | X184: 661.1642355 | AA184: 633.57145 | AC184: 40592800
A185: 153 | B185: =OFFSET(InputPriceData!B$15,CalculationsAndCharts!$A185+$A$11,0,1,1) -> 2010-06-10 | C185: =OFFSET(InputPriceData!G$15,CalculationsAndCharts!$A185+$A$11,IF($C$7,8,0),1,1) -> 51447800 | D185: =OFFSET(InputPriceData!C$15,CalculationsAndCharts!$A185+$A$11,IF($C$7,8,0),1,1) -> 624.19 | E185: =OFFSET(InputPriceData!D$15,CalculationsAndCharts!$A185+$A$11,IF($C$7,8,0),1,1) -> 639.79 | F185: =OFFSET(InputPriceData!E$15,CalculationsAndCharts!$A185+$A$11,IF($C$7,8,0),1,1) -> 624.19 | G185: =OFFSET(InputPriceData!F$15,CalculationsAndCharts!$A185+$A$11,IF($C$7,8,0),1,1) -> 639.79 | H185: 745.95 | I185: 607.29 | J185: 676.62 | K185: 656.1871245 | L185: 661.4099776 | M185: 680.232 | N185: 642.92 | O185: 633.24255 | P185: 668.8715908 | W185: 656.1871245 | X185: 661.4099776 | AA185: 633.24255 | AC185: 51447800
A186: 154 | B186: =OFFSET(InputPriceData!B$15,CalculationsAndCharts!$A186+$A$11,0,1,1) -> 2010-06-09 | C186: =OFFSET(InputPriceData!G$15,CalculationsAndCharts!$A186+$A$11,IF($C$7,8,0),1,1) -> 59832000 | D186: =OFFSET(InputPriceData!C$15,CalculationsAndCharts!$A186+$A$11,IF($C$7,8,0),1,1) -> 619.98 | E186: =OFFSET(InputPriceData!D$15,CalculationsAndCharts!$A186+$A$11,IF($C$7,8,0),1,1) -> 632.24 | F186: =OFFSET(InputPriceData!E$15,CalculationsAndCharts!$A186+$A$11,IF($C$7,8,0),1,1) -> 615.56 | G186: =OFFSET(InputPriceData!F$15,CalculationsAndCharts!$A186+$A$11,IF($C$7,8,0),1,1) -> 618.29 | H186: 745.95 | I186: 607.29 | J186: 676.62 | K186: 655.7743391 | L186: 661.8467448 | M186: 680.748 | N186: 643.203 | O186: 632.9448 | P186: 670.0585945 | W186: 655.7743391 | X186: 661.8467448 | AA186: 632.9448 | AD186: 59832000
A187: 155 | B187: =OFFSET(InputPriceData!B$15,CalculationsAndCharts!$A187+$A$11,0,1,1) -> 2010-06-08 | C187: =OFFSET(InputPriceData!G$15,CalculationsAndCharts!$A187+$A$11,IF($C$7,8,0),1,1) -> 61927500 | D187: =OFFSET(InputPriceData!C$15,CalculationsAndCharts!$A187+$A$11,IF($C$7,8,0),1,1) -> 620.33 | E187: =OFFSET(InputPriceData!D$15,CalculationsAndCharts!$A187+$A$11,IF($C$7,8,0),1,1) -> 623.83 | F187: =OFFSET(InputPriceData!E$15,CalculationsAndCharts!$A187+$A$11,IF($C$7,8,0),1,1) -> 607.29 | G187: =OFFSET(InputPriceData!F$15,CalculationsAndCharts!$A187+$A$11,IF($C$7,8,0),1,1) -> 617.69 | H187: 745.95 | I187: 607.29 | J187: 676.62 | K187: 655.3532146 | L187: 662.7266791 | M187: 681.264 | N187: 645.376 | O187: 632.7609 | P187: 672.1715984 | W187: 655.3532146 | X187: 662.7266791 | AA187: 632.7609 | AD187: 61927500
A188: 156 | B188: =OFFSET(InputPriceData!B$15,CalculationsAndCharts!$A188+$A$11,0,1,1) -> 2010-06-07 | C188: =OFFSET(InputPriceData!G$15,CalculationsAndCharts!$A188+$A$11,IF($C$7,8,0),1,1) -> 54675600 | D188: =OFFSET(InputPriceData!C$15,CalculationsAndCharts!$A188+$A$11,IF($C$7,8,0),1,1) -> 636.01 | E188: =OFFSET(InputPriceData!D$15,CalculationsAndCharts!$A188+$A$11,IF($C$7,8,0),1,1) -> 639.22 | F188: =OFFSET(InputPriceData!E$15,CalculationsAndCharts!$A188+$A$11,IF($C$7,8,0),1,1) -> 617.99 | G188: =OFFSET(InputPriceData!F$15,CalculationsAndCharts!$A188+$A$11,IF($C$7,8,0),1,1) -> 618.49 | H188: 745.95 | I188: 617.61 | J188: 681.78 | K188: 654.9235826 | L188: 663.636511 | M188: 682.3775 | N188: 647.728 | O188: 632.51585 | P188: 674.3953371 | W188: 654.9235826 | X188: 663.636511 | AA188: 632.51585 | AD188: 54675600
A189: 157 | B189: =OFFSET(InputPriceData!B$15,CalculationsAndCharts!$A189+$A$11,0,1,1) -> 2010-06-04 | C189: =OFFSET(InputPriceData!G$15,CalculationsAndCharts!$A189+$A$11,IF($C$7,8,0),1,1) -> 61805800 | D189: =OFFSET(InputPriceData!C$15,CalculationsAndCharts!$A189+$A$11,IF($C$7,8,0),1,1) -> 658.6 | E189: =OFFSET(InputPriceData!D$15,CalculationsAndCharts!$A189+$A$11,IF($C$7,8,0),1,1) -> 658.6 | F189: =OFFSET(InputPriceData!E$15,CalculationsAndCharts!$A189+$A$11,IF($C$7,8,0),1,1) -> 633.13 | G189: =OFFSET(InputPriceData!F$15,CalculationsAndCharts!$A189+$A$11,IF($C$7,8,0),1,1) -> 633.97 | H189: 745.95 | I189: 617.61 | J189: 681.78 | K189: 654.3810287 | L189: 664.5485617 | M189: 682.975 | N189: 650.808 | O189: 632.23165 | P189: 676.6771876 | W189: 654.3810287 | X189: 664.5485617 | AA189: 632.23165 | AD189: 61805800
A190: 158 | B190: =OFFSET(InputPriceData!B$15,CalculationsAndCharts!$A190+$A$11,0,1,1) -> 2010-06-03 | C190: =OFFSET(InputPriceData!G$15,CalculationsAndCharts!$A190+$A$11,IF($C$7,8,0),1,1) -> 49959700 | D190: =OFFSET(InputPriceData!C$15,CalculationsAndCharts!$A190+$A$11,IF($C$7,8,0),1,1) -> 661.15 | E190: =OFFSET(InputPriceData!D$15,CalculationsAndCharts!$A190+$A$11,IF($C$7,8,0),1,1) -> 669.35 | F190: =OFFSET(InputPriceData!E$15,CalculationsAndCharts!$A190+$A$11,IF($C$7,8,0),1,1) -> 658.86 | G190: =OFFSET(InputPriceData!F$15,CalculationsAndCharts!$A190+$A$11,IF($C$7,8,0),1,1) -> 667.37 | H190: 745.95 | I190: 617.61 | J190: 681.78 | K190: 653.8275141 | L190: 665.1663104 | M190: 683.979 | N190: 651.415 | O190: 631.84395 | P190: 678.4203381 | W190: 653.8275141 | X190: 665.1663104 | AA190: 631.84395 | AC190: 49959700
A191: 159 | B191: =OFFSET(InputPriceData!B$15,CalculationsAndCharts!$A191+$A$11,0,1,1) -> 2010-06-02 | C191: =OFFSET(InputPriceData!G$15,CalculationsAndCharts!$A191+$A$11,IF($C$7,8,0),1,1) -> 50263600 | D191: =OFFSET(InputPriceData!C$15,CalculationsAndCharts!$A191+$A$11,IF($C$7,8,0),1,1) -> 644.08 | E191: =OFFSET(InputPriceData!D$15,CalculationsAndCharts!$A191+$A$11,IF($C$7,8,0),1,1) -> 660.52 | F191: =OFFSET(InputPriceData!E$15,CalculationsAndCharts!$A191+$A$11,IF($C$7,8,0),1,1) -> 640.36 | G191: =OFFSET(InputPriceData!F$15,CalculationsAndCharts!$A191+$A$11,IF($C$7,8,0),1,1) -> 660.52 | H191: 745.95 | I191: 617.61 | J191: 681.78 | K191: 653.2628175 | L191: 665.1217914 | M191: 684.983 | N191: 652.118 | O191: 631.248 | P191: 678.8713723 | W191: 653.2628175 | X191: 665.1217914 | AA191: 631.248 | AC191: 50263600
A192: 160 | B192: =OFFSET(InputPriceData!B$15,CalculationsAndCharts!$A192+$A$11,0,1,1) -> 2010-06-01 | C192: =OFFSET(InputPriceData!G$15,CalculationsAndCharts!$A192+$A$11,IF($C$7,8,0),1,1) -> 52714800 | D192: =OFFSET(InputPriceData!C$15,CalculationsAndCharts!$A192+$A$11,IF($C$7,8,0),1,1) -> 657.54 | E192: =OFFSET(InputPriceData!D$15,CalculationsAndCharts!$A192+$A$11,IF($C$7,8,0),1,1) -> 662.72 | F192: =OFFSET(InputPriceData!E$15,CalculationsAndCharts!$A192+$A$11,IF($C$7,8,0),1,1) -> 640.96 | G192: =OFFSET(InputPriceData!F$15,CalculationsAndCharts!$A192+$A$11,IF($C$7,8,0),1,1) -> 640.96 | H192: 745.95 | I192: 617.61 | J192: 681.78 | K192: 652.6867128 | L192: 665.2147569 | M192: 685.987 | N192: 654.341 | O192: 630.7649 | P192: 679.6204079 | W192: 652.6867128 | X192: 665.2147569 | AA192: 630.7649 | AD192: 52714800
A193: 161 | B193: =OFFSET(InputPriceData!B$15,CalculationsAndCharts!$A193+$A$11,0,1,1) -> 2010-05-28 | C193: =OFFSET(InputPriceData!G$15,CalculationsAndCharts!$A193+$A$11,IF($C$7,8,0),1,1) -> 48712100 | D193: =OFFSET(InputPriceData!C$15,CalculationsAndCharts!$A193+$A$11,IF($C$7,8,0),1,1) -> 668.83 | E193: =OFFSET(InputPriceData!D$15,CalculationsAndCharts!$A193+$A$11,IF($C$7,8,0),1,1) -> 670.08 | F193: =OFFSET(InputPriceData!E$15,CalculationsAndCharts!$A193+$A$11,IF($C$7,8,0),1,1) -> 657.36 | G193: =OFFSET(InputPriceData!F$15,CalculationsAndCharts!$A193+$A$11,IF($C$7,8,0),1,1) -> 661.61 | H193: 745.95 | I193: 617.61 | J193: 681.78 | K193: 652.0989696 | L193: 665.704752 | M193: 686.991 | N193: 659.816 | O193: 630.43605 | P193: 681.1983837 | W193: 652.0989696 | X193: 665.704752 | AA193: 630.43605 | AD193: 48712100
A194: 162 | B194: =OFFSET(InputPriceData!B$15,CalculationsAndCharts!$A194+$A$11,0,1,1) -> 2010-05-27 | C194: =OFFSET(InputPriceData!G$15,CalculationsAndCharts!$A194+$A$11,IF($C$7,8,0),1,1) -> 56984600 | D194: =OFFSET(InputPriceData!C$15,CalculationsAndCharts!$A194+$A$11,IF($C$7,8,0),1,1) -> 650.75 | E194: =OFFSET(InputPriceData!D$15,CalculationsAndCharts!$A194+$A$11,IF($C$7,8,0),1,1) -> 670.59 | F194: =OFFSET(InputPriceData!E$15,CalculationsAndCharts!$A194+$A$11,IF($C$7,8,0),1,1) -> 650.74 | G194: =OFFSET(InputPriceData!F$15,CalculationsAndCharts!$A194+$A$11,IF($C$7,8,0),1,1) -> 670.51 | H194: 745.95 | I194: 617.61 | J194: 681.78 | K194: 651.4993528 | L194: 665.7874743 | M194: 687.995 | N194: 663.053 | O194: 629.98885 | P194: 681.9979096 | W194: 651.4993528 | X194: 665.7874743 | AA194: 629.98885 | AC194: 56984600
A195: 163 | B195: =OFFSET(InputPriceData!B$15,CalculationsAndCharts!$A195+$A$11,0,1,1) -> 2010-05-26 | C195: =OFFSET(InputPriceData!G$15,CalculationsAndCharts!$A195+$A$11,IF($C$7,8,0),1,1) -> 45210500 | D195: =OFFSET(InputPriceData!C$15,CalculationsAndCharts!$A195+$A$11,IF($C$7,8,0),1,1) -> 642.9 | E195: =OFFSET(InputPriceData!D$15,CalculationsAndCharts!$A195+$A$11,IF($C$7,8,0),1,1) -> 657.95 | F195: =OFFSET(InputPriceData!E$15,CalculationsAndCharts!$A195+$A$11,IF($C$7,8,0),1,1) -> 640.35 | G195: =OFFSET(InputPriceData!F$15,CalculationsAndCharts!$A195+$A$11,IF($C$7,8,0),1,1) -> 642.62 | H195: 745.95 | I195: 617.61 | J195: 681.78 | K195: 650.8876226 | L195: 665.6920697 | M195: 688.999 | N195: 666.987 | O195: 629.4469 | P195: 682.4668039 | W195: 650.8876226 | X195: 665.6920697 | AA195: 629.4469 | AD195: 45210500
A196: 164 | B196: =OFFSET(InputPriceData!B$15,CalculationsAndCharts!$A196+$A$11,0,1,1) -> 2010-05-25 | C196: =OFFSET(InputPriceData!G$15,CalculationsAndCharts!$A196+$A$11,IF($C$7,8,0),1,1) -> 73295800 | D196: =OFFSET(InputPriceData!C$15,CalculationsAndCharts!$A196+$A$11,IF($C$7,8,0),1,1) -> 632.67 | E196: =OFFSET(InputPriceData!D$15,CalculationsAndCharts!$A196+$A$11,IF($C$7,8,0),1,1) -> 640.88 | F196: =OFFSET(InputPriceData!E$15,CalculationsAndCharts!$A196+$A$11,IF($C$7,8,0),1,1) -> 617.61 | G196: =OFFSET(InputPriceData!F$15,CalculationsAndCharts!$A196+$A$11,IF($C$7,8,0),1,1) -> 640.02 | H196: 745.95 | I196: 617.61 | J196: 681.78 | K196: 650.2635341 | L196: 666.1581721 | M196: 690.003 | N196: 674.336 | O196: 629.09315 | P196: 684.093204 | W196: 650.2635341 | X196: 666.1581721 | AA196: 629.09315 | AC196: 73295800
A197: 165 | B197: =OFFSET(InputPriceData!B$15,CalculationsAndCharts!$A197+$A$11,0,1,1) -> 2010-05-24 | C197: =OFFSET(InputPriceData!G$15,CalculationsAndCharts!$A197+$A$11,IF($C$7,8,0),1,1) -> 52240400 | D197: =OFFSET(InputPriceData!C$15,CalculationsAndCharts!$A197+$A$11,IF($C$7,8,0),1,1) -> 648.11 | E197: =OFFSET(InputPriceData!D$15,CalculationsAndCharts!$A197+$A$11,IF($C$7,8,0),1,1) -> 652.8 | F197: =OFFSET(InputPriceData!E$15,CalculationsAndCharts!$A197+$A$11,IF($C$7,8,0),1,1) -> 641.15 | G197: =OFFSET(InputPriceData!F$15,CalculationsAndCharts!$A197+$A$11,IF($C$7,8,0),1,1) -> 641.21 | H197: 745.95 | I197: 629.56 | J197: 687.755 | K197: 649.6268378 | L197: 666.686216 | M197: 691.007 | N197: 679.882 | O197: 628.75505 | P197: 685.8921103 | W197: 649.6268378 | X197: 666.686216 | AA197: 628.75505 | AD197: 52240400
A198: 166 | B198: =OFFSET(InputPriceData!B$15,CalculationsAndCharts!$A198+$A$11,0,1,1) -> 2010-05-21 | C198: =OFFSET(InputPriceData!G$15,CalculationsAndCharts!$A198+$A$11,IF($C$7,8,0),1,1) -> 54521300 | D198: =OFFSET(InputPriceData!C$15,CalculationsAndCharts!$A198+$A$11,IF($C$7,8,0),1,1) -> 634.98 | E198: =OFFSET(InputPriceData!D$15,CalculationsAndCharts!$A198+$A$11,IF($C$7,8,0),1,1) -> 654.5 | F198: =OFFSET(InputPriceData!E$15,CalculationsAndCharts!$A198+$A$11,IF($C$7,8,0),1,1) -> 629.56 | G198: =OFFSET(InputPriceData!F$15,CalculationsAndCharts!$A198+$A$11,IF($C$7,8,0),1,1) -> 649.29 | H198: 745.95 | I198: 629.56 | J198: 687.755 | K198: 648.8565719 | L198: 667.200887 | M198: 691.4135 | N198: 684.722 | O198: 628.3371 | P198: 687.7158699 | W198: 648.8565719 | X198: 667.200887 | AA198: 628.3371 | AC198: 54521300
A199: 167 | B199: =OFFSET(InputPriceData!B$15,CalculationsAndCharts!$A199+$A$11,0,1,1) -> 2010-05-20 | C199: =OFFSET(InputPriceData!G$15,CalculationsAndCharts!$A199+$A$11,IF($C$7,8,0),1,1) -> 83285700 | D199: =OFFSET(InputPriceData!C$15,CalculationsAndCharts!$A199+$A$11,IF($C$7,8,0),1,1) -> 665.91 | E199: =OFFSET(InputPriceData!D$15,CalculationsAndCharts!$A199+$A$11,IF($C$7,8,0),1,1) -> 665.91 | F199: =OFFSET(InputPriceData!E$15,CalculationsAndCharts!$A199+$A$11,IF($C$7,8,0),1,1) -> 640.04 | G199: =OFFSET(InputPriceData!F$15,CalculationsAndCharts!$A199+$A$11,IF($C$7,8,0),1,1) -> 640.04 | H199: 745.95 | I199: 637.69 | J199: 691.82 | K199: 648.0707451 | L199: 667.5627231 | M199: 691.82 | N199: 685.093 | O199: 627.9206 | P199: 689.2842728 | W199: 648.0707451 | X199: 667.5627231 | AA199: 627.9206 | AD199: 83285700
A200: 168 | B200: =OFFSET(InputPriceData!B$15,CalculationsAndCharts!$A200+$A$11,0,1,1) -> 2010-05-19 | C200: =OFFSET(InputPriceData!G$15,CalculationsAndCharts!$A200+$A$11,IF($C$7,8,0),1,1) -> 67658000 | D200: =OFFSET(InputPriceData!C$15,CalculationsAndCharts!$A200+$A$11,IF($C$7,8,0),1,1) -> 680.22 | E200: =OFFSET(InputPriceData!D$15,CalculationsAndCharts!$A200+$A$11,IF($C$7,8,0),1,1) -> 686.15 | F200: =OFFSET(InputPriceData!E$15,CalculationsAndCharts!$A200+$A$11,IF($C$7,8,0),1,1) -> 665.83 | G200: =OFFSET(InputPriceData!F$15,CalculationsAndCharts!$A200+$A$11,IF($C$7,8,0),1,1) -> 674.4 | H200: 745.95 | I200: 637.69 | J200: 691.82 | K200: 647.1869218 | L200: 668.1187377 | M200: 691.82 | N200: 688.312 | O200: 627.5741 | P200: 691.2942431 | W200: 647.1869218 | X200: 668.1187377 | AA200: 627.5741 | AD200: 67658000
A201: 169 | B201: =OFFSET(InputPriceData!B$15,CalculationsAndCharts!$A201+$A$11,0,1,1) -> 2010-05-18 | C201: =OFFSET(InputPriceData!G$15,CalculationsAndCharts!$A201+$A$11,IF($C$7,8,0),1,1) -> 61708400 | D201: =OFFSET(InputPriceData!C$15,CalculationsAndCharts!$A201+$A$11,IF($C$7,8,0),1,1) -> 700.97 | E201: =OFFSET(InputPriceData!D$15,CalculationsAndCharts!$A201+$A$11,IF($C$7,8,0),1,1) -> 705.34 | F201: =OFFSET(InputPriceData!E$15,CalculationsAndCharts!$A201+$A$11,IF($C$7,8,0),1,1) -> 681.54 | G201: =OFFSET(InputPriceData!F$15,CalculationsAndCharts!$A201+$A$11,IF($C$7,8,0),1,1) -> 682.75 | H201: 745.95 | I201: 637.69 | J201: 691.82 | K201: 646.2852434 | L201: 667.9918436 | M201: 693.31 | N201: 690.73 | O201: 627.031 | P201: 691.983804 | W201: 646.2852434 | X201: 667.9918436 | AA201: 627.031 | AD201: 61708400
A202: 170 | B202: =OFFSET(InputPriceData!B$15,CalculationsAndCharts!$A202+$A$11,0,1,1) -> 2010-05-17 | C202: =OFFSET(InputPriceData!G$15,CalculationsAndCharts!$A202+$A$11,IF($C$7,8,0),1,1) -> 59229200 | D202: =OFFSET(InputPriceData!C$15,CalculationsAndCharts!$A202+$A$11,IF($C$7,8,0),1,1) -> 696.59 | E202: =OFFSET(InputPriceData!D$15,CalculationsAndCharts!$A202+$A$11,IF($C$7,8,0),1,1) -> 703.62 | F202: =OFFSET(InputPriceData!E$15,CalculationsAndCharts!$A202+$A$11,IF($C$7,8,0),1,1) -> 677.94 | G202: =OFFSET(InputPriceData!F$15,CalculationsAndCharts!$A202+$A$11,IF($C$7,8,0),1,1) -> 695.71 | H202: 745.95 | I202: 637.69 | J202: 691.82 | K202: 645.3653494 | L202: 667.693699 | M202: 694.8 | N202: 693.425 | O202: 626.4008 | P202: 692.360694 | W202: 645.3653494 | X202: 667.693699 | AA202: 626.4008 | AD202: 59229200
A203: 171 | B203: =OFFSET(InputPriceData!B$15,CalculationsAndCharts!$A203+$A$11,0,1,1) -> 2010-05-14 | C203: =OFFSET(InputPriceData!G$15,CalculationsAndCharts!$A203+$A$11,IF($C$7,8,0),1,1) -> 61264000 | D203: =OFFSET(InputPriceData!C$15,CalculationsAndCharts!$A203+$A$11,IF($C$7,8,0),1,1) -> 709.32 | E203: =OFFSET(InputPriceData!D$15,CalculationsAndCharts!$A203+$A$11,IF($C$7,8,0),1,1) -> 709.32 | F203: =OFFSET(InputPriceData!E$15,CalculationsAndCharts!$A203+$A$11,IF($C$7,8,0),1,1) -> 686.5 | G203: =OFFSET(InputPriceData!F$15,CalculationsAndCharts!$A203+$A$11,IF($C$7,8,0),1,1) -> 693.98 | H203: 745.95 | I203: 637.69 | J203: 691.82 | K203: 644.4268716 | L203: 667.1277131 | M203: 696.29 | N203: 697.136 | O203: 625.71125 | P203: 692.2239876 | W203: 644.4268716 | X203: 667.1277131 | AA203: 625.71125 | AD203: 61264000
A204: 172 | B204: =OFFSET(InputPriceData!B$15,CalculationsAndCharts!$A204+$A$11,0,1,1) -> 2010-05-13 | C204: =OFFSET(InputPriceData!G$15,CalculationsAndCharts!$A204+$A$11,IF($C$7,8,0),1,1) -> 48706400 | D204: =OFFSET(InputPriceData!C$15,CalculationsAndCharts!$A204+$A$11,IF($C$7,8,0),1,1) -> 713.65 | E204: =OFFSET(InputPriceData!D$15,CalculationsAndCharts!$A204+$A$11,IF($C$7,8,0),1,1) -> 719.7 | F204: =OFFSET(InputPriceData!E$15,CalculationsAndCharts!$A204+$A$11,IF($C$7,8,0),1,1) -> 705.96 | G204: =OFFSET(InputPriceData!F$15,CalculationsAndCharts!$A204+$A$11,IF($C$7,8,0),1,1) -> 709.85 | H204: 745.95 | I204: 637.69 | J204: 691.82 | K204: 643.4694346 | L204: 666.5852427 | M204: 697.78 | N204: 699.398 | O204: 624.98325 | P204: 692.1523137 | W204: 643.4694346 | X204: 666.5852427 | AA204: 624.98325 | AD204: 48706400
... 2328 more rows

Sheet Follow
A1: Stocks and Indexes I wish to follow
A3: To ease following a stock, enter a Yahoo Finance acceptable symbol in column "A" anywhere below cell "A9".
A4: Thereafter you may doubleclick the cell containing a symbol of interest to initiate data retrieval and charting for that symbol.
A7: Symbol
A8: To | B8: Description | C8: Last Trade as of most recent check
A9: Follow | C9: Date | D9: Time | E9: Open | F9: High | G9: Low | H9: Close | I9: Volume | J9: Change
A10: A | B10: Agilent Technolog (A) -NYSE (Daily) | C10: 2015-02-02 | D10: 16:03:00 | E10: 37.9 | F10: 38.76 | G10: 37.71 | H10: 38.69 | I10: 2508493 | J10: 0.92
A11: AAL | B11: American Airlines (AAL) -NasdaqNM (Daily) | C11: 2015-02-19 | D11: 16:00:00 | E11: 50.73 | F11: 50.8 | G11: 49.59 | H11: 49.78 | I11: 11462722 | J11: 0.47
A12: ADM | B12: Archer-Daniels-Midland Company (ADM) -NYQ (Daily) | C12: 2016-03-07 | D12: 13:18:00 | E12: 37.17 | F12: 37.29 | G12: 36.85 | H12: 37.09 | I12: 2069198 | J12: -0.56
A13: AMC | B13: AMC Entertainment Holdings, Inc (AMC) -NYQ (Daily) | C13: 2015-09-04 | D13: 16:00:00 | E13: 27.14 | F13: 27.95 | G13: 26.99 | H13: 27.71 | I13: 167990 | J13: 0.28
A14: BSX | B14: Boston Scientific Corporation C (BSX) -NYQ (Daily) | C14: 2015-03-13 | D14: 16:01:00 | E14: 16.84 | F14: 16.91 | G14: 16.44 | H14: 16.61 | I14: 7262460 | J14: -0.28
A15: CASY | B15: Caseys General Stores, Inc. (CASY) -NMS (Daily) | C15: 2016-01-08 | D15: 11:34:00 | E15: 117.67 | F15: 117.97 | G15: 116.79 | H15: 117.01 | I15: 106398 | J15: 0.05
A16: CSCO | B16: Cisco Systems, In (CSCO) -NasdaqNM (Daily) | C16: 2015-02-19 | D16: 16:00:00 | E16: 29.32 | F16: 29.39 | G16: 29.13 | H16: 29.31 | I16: 21469012 | J16: -0.18
A17: CVS | B17: CVS Health Corpor (CVS) -NYSE (Daily) | C17: 2015-02-02 | D17: 16:01:00 | E17: 98.34 | F17: 99.22 | G17: 97.06 | H17: 99.11 | I17: 4416094 | J17: 0.95
A18: DIS | B18: Walt Disney Compa (DIS) -NYSE (Daily) | C18: 2015-02-26 | D18: 16:00:00 | E18: 105.5 | F18: 105.71 | G18: 104.14 | H18: 104.56 | I18: 5044969 | J18: -1.01
A19: EMC | B19: EMC Corporation C (EMC) -NYSE (Daily) | C19: 2015-02-19 | D19: 16:00:00 | E19: 28.26 | F19: 28.83 | G19: 28.19 | H19: 28.72 | I19: 11049079 | J19: 0.52
A20: F | B20: Ford Motor Company Common Stock (F) -NYQ (Daily) | C20: 2016-01-08 | D20: 11:42:00 | E20: 13.05 | F20: 13.1 | G20: 12.68 | H20: 12.7353 | I20: 19823416 | J20: 0.0353
A21: GSK | B21: GlaxoSmithKline P (GSK) -NYSE (Daily) | C21: 2015-02-02 | D21: 16:01:00 | E21: 44.11 | F21: 44.12 | G21: 43.71 | H21: 43.96 | I21: 3654466 | J21: -0.04
A22: HSY | B22: The Hershey Compa (HSY) -NYSE (Daily) | C22: 2015-02-19 | D22: 16:02:00 | E22: 106.97 | F22: 107.31 | G22: 105.42 | H22: 105.95 | I22: 1448321 | J22: -1
A23: HTLD | B23: Heartland Express (HTLD) -NasdaqNM (Daily) | C23: 2015-02-02 | D23: 16:00:00 | E23: 25.68 | F23: 25.81 | G23: 25.36 | H23: 25.62 | I23: 542510 | J23: -0.07
A24: IBM | B24: International Bus (IBM) -NYSE (Daily) | C24: 2015-02-02 | D24: 16:01:00 | E24: 154 | F24: 154.66 | G24: 151.51 | H24: 154.66 | I24: 4712247 | J24: 1.35
A25: INTC | B25: Intel Corporation (INTC) -NasdaqNM (Daily) | C25: 2015-02-19 | D25: 16:00:00 | E25: 34.25 | F25: 34.42 | G25: 34.05 | H25: 34.21 | I25: 11017541 | J25: -0.055
A26: JAH | B26: Jarden Corporation Common Stock (JAH) -NYQ (Daily) | C26: 2016-01-08 | D26: 16:02:00 | E26: 53.82 | F26: 53.88 | G26: 52.65 | H26: 52.73 | I26: 4519480 | J26: -0.81
A27: JNJ | B27: Johnson & Johnson Common Stock (JNJ) -NYQ (Daily) | C27: 2016-01-08 | D27: 11:37:00 | E27: 99.88 | F27: 99.94 | G27: 98.87 | H27: 98.88 | I27: 2448879 | J27: -0.34
A28: KO | B28: Coca-Cola Company (The) Common (KO) -NYQ (Daily) | C28: 2015-08-10 | D28: 16:00:00 | E28: 41.89 | F28: 41.99 | G28: 41.58 | H28: 41.68 | I28: 9501875 | J28: -0.09
A29: LHO | B29: LaSalle Hotel Pro (LHO) -NYSE (Daily) | C29: 2015-02-02 | D29: 16:06:00 | E29: 40.51 | F29: 40.74 | G29: 39.46 | H29: 40.26 | I29: 1034675 | J29: -0.2
A30: LINE | B30: Linn Energy, LLC (LINE) -NasdaqNM (Daily) | C30: 2015-02-02 | D30: 16:00:00 | E30: 10.4 | F30: 10.78 | G30: 10.25 | H30: 10.77 | I30: 3766537 | J30: 0.51
A31: LO | B31: Lorillard, Inc Co (LO) -NYSE (Daily) | C31: 2015-02-02 | D31: 16:03:00 | E31: 65.71 | F31: 66.29 | G31: 65.43 | H31: 66.29 | I31: 1563618 | J31: 0.68
A32: MCD | B32: McDonald's Corporation Common S (MCD) -NYQ (Daily) | C32: 2016-04-07 | D32: 16:10:00 | E32: 127.37 | F32: 128.52 | G32: 127.02 | H32: 128.14 | I32: 4720711 | J32: 0.62
A33: MDT | B33: Medtronic plc. Or (MDT) -NYSE (Daily) | C33: 2015-02-19 | D33: 16:01:00 | E33: 78.59 | F33: 78.59 | G33: 77.85 | H33: 78.13 | I33: 6900528 | J33: -0.37
A34: MGM | B34: MGM Resorts Inter (MGM) -NYSE (Daily) | C34: 2015-02-02 | D34: 16:00:00 | E34: 19.44 | F34: 19.75 | G34: 19.12 | H34: 19.74 | I34: 7570281 | J34: 0.26
A35: MO | B35: Altria Group, Inc (MO) -NYSE (Daily) | C35: 2015-02-02 | D35: 16:01:00 | E35: 53.25 | F35: 53.84 | G35: 52.98 | H35: 53.8 | I35: 9183582 | J35: 0.7
A36: MSFT | B36: Microsoft Corpora (MSFT) -NasdaqNM (Daily) | C36: 2015-02-20 | D36: 16:00:00 | E36: 43.51 | F36: 43.88 | G36: 43.29 | H36: 43.855 | I36: 29721132 | J36: 0.355
A37: NUGT | B37: Direxion Daily Gold Miners Inde (NUGT) -PCX (Daily) | C37: 2016-04-13 | D37: 14:18:00 | E37: 81.48 | F37: 84.97 | G37: 79.59 | H37: 80.5352 | I37: 4380827 | J37: -5.6148
A38: NVS | B38: Novartis AG Common Stock (NVS) -NYQ (Daily) | C38: 2016-01-08 | D38: 11:38:00 | E38: 83.38 | F38: 83.5 | G38: 82.37 | H38: 82.42 | I38: 979446 | J38: -1.52
A39: PRU | B39: Prudential Financ (PRU) -NYSE (Daily) | C39: 2015-02-23 | D39: 12:22:00 | E39: 80.25 | F39: 80.4499 | G39: 79.8 | H39: 80.12 | I39: 1604052 | J39: -0.69
A40: PSEC | B40: Prospect Capital Corporation (PSEC) -NMS (Daily) | C40: 2016-04-07 | D40: 16:00:00 | E40: 7.18 | F40: 7.25 | G40: 7.15 | H40: 7.21 | I40: 1116195 | J40: 0.02
A41: RAI | B41: Reynolds American (RAI) -NYSE (Daily) | C41: 2015-02-02 | D41: 16:03:00 | E41: 68.12 | F41: 69.06 | G41: 67.4346 | H41: 69.05 | I41: 1822013 | J41: 1.1
A42: RPM | B42: RPM International Inc. Common S (RPM) -NYQ (Daily) | C42: 2016-04-13 | D42: 12:43:00 | E42: 49.9 | F42: 50.21 | G42: 49.71 | H42: 49.97 | I42: 408337 | J42: 0.19 | K42: Owns the Rust-Oleum brand
A43: RSP | B43: Guggenheim S&P 500 Equal Weight (RSP) -PCX (Daily) | C43: 2016-01-08 | D43: 11:33:00 | E43: 73.24 | F43: 73.47 | G43: 72.41 | H43: 72.41 | I43: 754279 | J43: -0.48
A44: SONC | B44: Sonic Corp. (SONC) -NMS (Daily) | C44: 2016-01-08 | D44: 11:42:00 | E44: 30.24 | F44: 30.67 | G44: 29.89 | H44: 29.95 | I44: 327291 | J44: -0.05
A45: SWKS | B45: Skyworks Solution (SWKS) -NasdaqNM (Daily) | C45: 2015-02-02 | D45: 16:00:00 | E45: 83.07 | F45: 83.73 | G45: 80.15 | H45: 82.02 | I45: 4119001 | J45: -1.03
A46: TOL | B46: Toll Brothers Inc (TOL) -NYSE (Daily) | C46: 2015-02-23 | D46: 12:23:00 | E46: 37.56 | F46: 37.77 | G46: 37.1 | H46: 37.36 | I46: 1521944 | J46: -0.29
A47: UNP | B47: Union Pacific Cor (UNP) -NYSE (Daily) | C47: 2015-02-02 | D47: 16:10:00 | E47: 118.13 | F47: 119.06 | G47: 116.7 | H47: 119.01 | I47: 3259594 | J47: 1.8
A48: VZ | B48: Verizon Communica (VZ) -NYSE (Daily) | C48: 2015-02-23 | D48: 12:22:00 | E48: 48.94 | F48: 49 | G48: 48.54 | H48: 48.825 | I48: 4204644 | J48: -0.145
A49: WBA | B49: (WBA) -NasdaqNM (Daily) | C49: 2015-02-02 | D49: 16:00:00 | E49: 73.06 | F49: 74.98 | G49: 73 | H49: 74.89 | I49: 4247395 | J49: 1.14
A50: WMT | B50: Wal-Mart Stores, Inc. Common St (WMT) -NYQ (Daily) | C50: 2016-01-08 | D50: 11:39:00 | E50: 65.08 | F50: 65.41 | G50: 64.29 | H50: 64.55 | I50: 6674609 | J50: -0.48
A52: ^NDX | B52: NASDAQ-100 (^NDX) -NIM (Daily) | C52: 2015-08-10 | D52: 17:15:00 | E52: 4558.68 | F52: 4583.63 | G52: 4554.63 | H52: 4573.11 | I52: 0 | J52: 53.03
A53: ^DJI | B53: Dow Jones Industrial Average (^DJI) -DJI | C53: 2016-06-11 | D53: J un | E53: 17938.82 | F53: 17938.82 | G53: 17812.34 | H53: 17865.34 | I53: 0 | J53: -119.85
A54: SPY | B54: SPDR S&P 500 (SPY) -PCX (Daily) | C54: 2016-05-05 | D54: 16:00:00 | E54: 205.56 | F54: 205.98 | G54: 204.47 | H54: 204.97 | I54: 67619222 | J54: -0.04
A55: ^GSPC | B55: S&P 500 (^GSPC) -SNP (Daily) | C55: 2016-06-08 | D55: 16:34:00 | E55: 2112.71 | F55: 2120.55 | G55: 2112.71 | H55: 2119.12 | I55: 496867839 | J55: 6.99
A56: ^RUT | B56: Russell 2000 (^RUT) -WCB (Daily) | C56: 2016-06-10 | D56: 16:30:00 | E56: 1178.382446 | F56: 1178.382446 | G56: 1161.273438 | H56: 1163.930664 | I56: 0 | J56: -17.27124
A57: ^VIX | B57: VOLATILITY S&P 500 (^VIX) -WCB (Daily) | C57: 2015-12-04 | D57: 16:14:00 | E57: 17.43 | F57: 17.65 | G57: 14.69 | H57: 14.81 | I57: 0 | J57: -3.3
A60: ACAD | B60: ACADIA Pharmaceut (ACAD) -NasdaqNM (Daily) | C60: 2014-07-21 | D60: 16:00:00 | E60: 20.13 | F60: 20.55 | G60: 19.8101 | H60: 20.31 | I60: 691016
A61: CLDX | B61: Celldex Therapeut (CLDX) -NasdaqNM (Daily) | C61: 2015-02-02 | D61: 16:00:00 | E61: 21.47 | F61: 21.69 | G61: 20.11 | H61: 21.02 | I61: 1570418 | J61: -0.4
A62: ICPT | B62: Intercept Pharmac (ICPT) -NasdaqNM (Daily) | C62: 2014-07-21 | D62: 16:00:00 | E62: 215.97 | F62: 218.43 | G62: 213.05 | H62: 218.14 | I62: 191276
A63: INO | B63: Inovio Pharmaceut (INO) -AMEX (Daily) | C63: 2014-07-21 | D63: 16:00:00 | E63: 10.3 | F63: 11.08 | G63: 10.1 | H63: 11.01 | I63: 1800796
A64: JCP | B64: J.C. Penney Compa (JCP) -NYSE (Daily) | C64: 2015-02-02 | D64: 16:01:00 | E64: 7.16 | F64: 7.44 | G64: 7.01 | H64: 7.43 | I64: 12772679 | J64: 0.16
A65: LCI | B65: Lannett Co Inc Co (LCI) -NYSE (Daily) | C65: 2014-07-21 | D65: 16:02:00 | E65: 38.09 | F65: 38.803 | G65: 36.5101 | H65: 37.76 | I65: 611367
A66: NPSP | B66: NPS Pharmaceutica (NPSP) -NasdaqNM (Daily) | C66: 2014-07-21 | D66: 15:59:00 | E66: 28.75 | F66: 29.43 | G66: 28.31 | H66: 29.29 | I66: 1126758
A67: PBYI | B67: Puma Biotechnolog (PBYI) -NYSE (Daily) | C67: 2014-07-21 | D67: 16:02:00 | E67: 58.27 | F67: 59.46 | G67: 57.39 | H67: 58.98 | I67: 348030
